Body,Body Name,Date,TransNo,Amount � (Excl VAT),Supplier name,Supplier ID,Expense Area,Expense Type,Expense Code
http://opendatacommunities.org/id/london-borough-council/sutton,London Borough of Sutton,08/01/2020,6964379,"22,000.00 ",31ten Consulting Ltd,34321,Resources Directorate,Fees - Consultants (Ad Hoc),F283
http://opendatacommunities.org/id/london-borough-council/sutton,London Borough of Sutton,19/12/2019,6963911,750.00 ,39 Essex Chambers LlP PFA (A R Keene),99863,Peoples Services Directorate,Training - Course Fees,A520
http://opendatacommunities.org/id/london-borough-council/sutton,London Borough of Sutton,30/12/2019,6965138,"1,925.00 ",3C Environmental Technology Ltd,14611,Resources Directorate,FM - Planned Maintenance Contract - Mitie,G613
http://opendatacommunities.org/id/london-borough-council/sutton,London Borough of Sutton,13/12/2019,6964660,"12,738.80 ",A D Wibden Ltd,99815,"Environment, Housing & Regeneration Directorate",Grants -Made,Y610
http://opendatacommunities.org/id/london-borough-council/sutton,London Borough of Sutton,24/01/2020,6965133,600.00 ,A Froley & B Ghoorbin,25732,Chief Executive's Directorate,Provider Contract Payments,F470
http://opendatacommunities.org/id/london-borough-council/sutton,London Borough of Sutton,24/01/2020,6965139,800.00 ,A Froley & B Ghoorbin,25732,Chief Executive's Directorate,Provider Contract Payments,F470
http://opendatacommunities.org/id/london-borough-council/sutton,London Borough of Sutton,22/01/2020,6965019,"1,115.00 ",A T Sound Hire,10306,Resources Directorate,Special,D535
http://opendatacommunities.org/id/london-borough-council/sutton,London Borough of Sutton,01/12/2019,40375629,"23,785.67 ",A Wilderness Way Ltd,35014,Peoples Services Directorate,Residential Care-Children,G330
http://opendatacommunities.org/id/london-borough-council/sutton,London Borough of Sutton,24/01/2020,40381081,"2,354.30 ",Abbey Care Centre T/A Bhakti Shyama Care Centre,25267,Peoples Services Directorate,Respite Care,G333
http://opendatacommunities.org/id/london-borough-council/sutton,London Borough of Sutton,08/01/2020,6964174,520.00 ,Abbotts Adverstising & Sponsorship Ltd,27137,Chief Executive's Directorate,Advertising/Publicity (non Staff),F240
http://opendatacommunities.org/id/london-borough-council/sutton,London Borough of Sutton,22/01/2020,1286362,600.00 ,ABC Pre-School Beddington LLP,28675,Peoples Services Directorate,Non-Maintained Childrens' Nurseries - 2 Year Olds,G404
http://opendatacommunities.org/id/london-borough-council/sutton,London Borough of Sutton,22/01/2020,1286398,900.00 ,ABC Pre-School Beddington LLP,28675,Peoples Services Directorate,Non-Maintained Childrens' Nurseries - 3 & 4 yr olds,G405
http://opendatacommunities.org/id/london-borough-council/sutton,London Borough of Sutton,03/12/2019,6964793,"2,696.98 ",Ability Housing Association,23287,Peoples Services Directorate,Rent - General,D650
http://opendatacommunities.org/id/london-borough-council/sutton,London Borough of Sutton,30/12/2019,6963889,"5,070.19 ",Absolute Care Services Ltd,10021,Peoples Services Directorate,Homecare Core Services,G336
http://opendatacommunities.org/id/london-borough-council/sutton,London Borough of Sutton,30/12/2019,6963890,"4,851.00 ",Absolute Care Services Ltd,10021,Peoples Services Directorate,Homecare Core Services,G336
http://opendatacommunities.org/id/london-borough-council/sutton,London Borough of Sutton,23/12/2019,6963891,"4,851.00 ",Absolute Care Services Ltd,10021,Peoples Services Directorate,Homecare Core Services,G336
http://opendatacommunities.org/id/london-borough-council/sutton,London Borough of Sutton,30/12/2019,6963892,"5,766.81 ",Absolute Care Services Ltd,10021,Peoples Services Directorate,Homecare Core Services,G336
http://opendatacommunities.org/id/london-borough-council/sutton,London Borough of Sutton,23/12/2019,6963893,"5,070.19 ",Absolute Care Services Ltd,10021,Peoples Services Directorate,Homecare Core Services,G336
http://opendatacommunities.org/id/london-borough-council/sutton,London Borough of Sutton,23/12/2019,6963909,"5,766.81 ",Absolute Care Services Ltd,10021,Peoples Services Directorate,Homecare Core Services,G336
http://opendatacommunities.org/id/london-borough-council/sutton,London Borough of Sutton,13/01/2020,6964841,"4,851.00 ",Absolute Care Services Ltd,10021,Peoples Services Directorate,Homecare Core Services,G336
http://opendatacommunities.org/id/london-borough-council/sutton,London Borough of Sutton,13/01/2020,6964842,"5,766.81 ",Absolute Care Services Ltd,10021,Peoples Services Directorate,Homecare Core Services,G336
http://opendatacommunities.org/id/london-borough-council/sutton,London Borough of Sutton,06/01/2020,6964844,"4,851.00 ",Absolute Care Services Ltd,10021,Peoples Services Directorate,Homecare Core Services,G336
http://opendatacommunities.org/id/london-borough-council/sutton,London Borough of Sutton,06/01/2020,6964866,"5,766.81 ",Absolute Care Services Ltd,10021,Peoples Services Directorate,Homecare Core Services,G336
http://opendatacommunities.org/id/london-borough-council/sutton,London Borough of Sutton,13/01/2020,6964867,"5,070.19 ",Absolute Care Services Ltd,10021,Peoples Services Directorate,Homecare Core Services,G336
http://opendatacommunities.org/id/london-borough-council/sutton,London Borough of Sutton,06/01/2020,6964868,"5,070.19 ",Absolute Care Services Ltd,10021,Peoples Services Directorate,Homecare Core Services,G336
http://opendatacommunities.org/id/london-borough-council/sutton,London Borough of Sutton,27/01/2020,6965330,"5,070.19 ",Absolute Care Services Ltd,10021,Peoples Services Directorate,Homecare Core Services,G336
http://opendatacommunities.org/id/london-borough-council/sutton,London Borough of Sutton,20/01/2020,6965331,"5,070.19 ",Absolute Care Services Ltd,10021,Peoples Services Directorate,Homecare Core Services,G336
http://opendatacommunities.org/id/london-borough-council/sutton,London Borough of Sutton,27/01/2020,6965332,"5,766.81 ",Absolute Care Services Ltd,10021,Peoples Services Directorate,Homecare Core Services,G336
http://opendatacommunities.org/id/london-borough-council/sutton,London Borough of Sutton,20/01/2020,6965333,"4,851.00 ",Absolute Care Services Ltd,10021,Peoples Services Directorate,Homecare Core Services,G336
http://opendatacommunities.org/id/london-borough-council/sutton,London Borough of Sutton,20/01/2020,6965334,"5,766.81 ",Absolute Care Services Ltd,10021,Peoples Services Directorate,Homecare Core Services,G336
http://opendatacommunities.org/id/london-borough-council/sutton,London Borough of Sutton,27/01/2020,6965335,"4,851.00 ",Absolute Care Services Ltd,10021,Peoples Services Directorate,Homecare Core Services,G336
http://opendatacommunities.org/id/london-borough-council/sutton,London Borough of Sutton,29/12/2019,40377171,481.60 ,Absolute Care Services Ltd,10021,Peoples Services Directorate,Home Care,G334
http://opendatacommunities.org/id/london-borough-council/sutton,London Borough of Sutton,22/12/2019,40377563,672.00 ,Absolute Care Services Ltd,10021,Peoples Services Directorate,Home Care,G334
http://opendatacommunities.org/id/london-borough-council/sutton,London Borough of Sutton,29/12/2019,40377564,672.00 ,Absolute Care Services Ltd,10021,Peoples Services Directorate,Home Care,G334
http://opendatacommunities.org/id/london-borough-council/sutton,London Borough of Sutton,22/12/2019,40377565,656.55 ,Absolute Care Services Ltd,10021,Peoples Services Directorate,Home Care,G334
http://opendatacommunities.org/id/london-borough-council/sutton,London Borough of Sutton,29/12/2019,40377566,672.00 ,Absolute Care Services Ltd,10021,Peoples Services Directorate,Home Care,G334
http://opendatacommunities.org/id/london-borough-council/sutton,London Borough of Sutton,22/12/2019,40377630,695.10 ,Absolute Care Services Ltd,10021,Peoples Services Directorate,Home Care,G334
http://opendatacommunities.org/id/london-borough-council/sutton,London Borough of Sutton,29/12/2019,40377631,637.18 ,Absolute Care Services Ltd,10021,Peoples Services Directorate,Home Care,G334
http://opendatacommunities.org/id/london-borough-council/sutton,London Borough of Sutton,22/12/2019,40377652,504.00 ,Absolute Care Services Ltd,10021,Peoples Services Directorate,Home Care,G334
http://opendatacommunities.org/id/london-borough-council/sutton,London Borough of Sutton,29/12/2019,40377653,504.00 ,Absolute Care Services Ltd,10021,Peoples Services Directorate,Home Care,G334
http://opendatacommunities.org/id/london-borough-council/sutton,London Borough of Sutton,22/12/2019,40377728,521.33 ,Absolute Care Services Ltd,10021,Peoples Services Directorate,Home Care,G334
http://opendatacommunities.org/id/london-borough-council/sutton,London Borough of Sutton,29/12/2019,40377729,521.33 ,Absolute Care Services Ltd,10021,Peoples Services Directorate,Home Care,G334
http://opendatacommunities.org/id/london-borough-council/sutton,London Borough of Sutton,08/01/2020,6964182,"1,590.00 ",Access Independent Ltd,24086,Chief Executive's Directorate,Mobility Scheme for the Disabled,H401
http://opendatacommunities.org/id/london-borough-council/sutton,London Borough of Sutton,24/01/2020,40380652,"2,903.20 ",Acorn Lodge,15804,Peoples Services Directorate,Residential Care - Ext Provider,G310
http://opendatacommunities.org/id/london-borough-council/sutton,London Borough of Sutton,24/01/2020,40380799,"3,042.36 ",Acorn Residential Home,15828,Peoples Services Directorate,Residential Care - Ext Provider,G310
http://opendatacommunities.org/id/london-borough-council/sutton,London Borough of Sutton,15/01/2020,6964572,"2,400.00 ",Activist Group Ltd,34649,Chief Executive's Directorate,Training - Course Fees,A520
http://opendatacommunities.org/id/london-borough-council/sutton,London Borough of Sutton,06/12/2019,6963916,867.78 ,AD2000 GROUP LTD,34436,Peoples Services Directorate,Other Premises Costs,D715
http://opendatacommunities.org/id/london-borough-council/sutton,London Borough of Sutton,31/10/2019,6964823,639.42 ,AD2000 GROUP LTD,34436,Peoples Services Directorate,Agency Staff - Other,A301
http://opendatacommunities.org/id/london-borough-council/sutton,London Borough of Sutton,31/12/2019,6963815,"35,135.61 ",ADAM HTT LTD,34364,Peoples Services Directorate,Hired Peoples Transport (Children),E072
http://opendatacommunities.org/id/london-borough-council/sutton,London Borough of Sutton,31/12/2019,6963815,"6,701.20 ",ADAM HTT LTD,34364,Peoples Services Directorate,Hired Peoples Transport (Children),E072
http://opendatacommunities.org/id/london-borough-council/sutton,London Borough of Sutton,08/01/2020,6964151,"32,353.82 ",ADAM HTT LTD,34364,Peoples Services Directorate,Hired Peoples Transport (Children),E072
http://opendatacommunities.org/id/london-borough-council/sutton,London Borough of Sutton,08/01/2020,6964151,(524.16),ADAM HTT LTD,34364,Peoples Services Directorate,Hired Peoples Transport (Children),E072
http://opendatacommunities.org/id/london-borough-council/sutton,London Borough of Sutton,15/01/2020,6964590,"86,025.31 ",ADAM HTT LTD,34364,Peoples Services Directorate,Hired Peoples Transport (Children),E072
http://opendatacommunities.org/id/london-borough-council/sutton,London Borough of Sutton,15/01/2020,6964590,"53,156.30 ",ADAM HTT LTD,34364,Peoples Services Directorate,Hired Peoples Transport (Children),E072
http://opendatacommunities.org/id/london-borough-council/sutton,London Borough of Sutton,22/01/2020,6964969,"59,874.04 ",ADAM HTT LTD,34364,Peoples Services Directorate,Hired Peoples Transport (Children),E072
http://opendatacommunities.org/id/london-borough-council/sutton,London Borough of Sutton,22/01/2020,6964969,"99,004.54 ",ADAM HTT LTD,34364,Peoples Services Directorate,Hired Peoples Transport (Children),E072
http://opendatacommunities.org/id/london-borough-council/sutton,London Borough of Sutton,08/01/2020,1285856,"215,114.27 ",Adecco Uk Ltd,10059,Resources Directorate,Suspense/Holding Accounts,X550
http://opendatacommunities.org/id/london-borough-council/sutton,London Borough of Sutton,08/01/2020,1285856,"66,848.28 ",Adecco Uk Ltd,10059,Resources Directorate,Suspense/Holding Accounts,X550
http://opendatacommunities.org/id/london-borough-council/sutton,London Borough of Sutton,13/01/2020,1286085,"125,990.97 ",Adecco Uk Ltd,10059,Resources Directorate,Suspense/Holding Accounts,X550
http://opendatacommunities.org/id/london-borough-council/sutton,London Borough of Sutton,20/01/2020,1286295,"159,133.10 ",Adecco Uk Ltd,10059,Resources Directorate,Suspense/Holding Accounts,X550
http://opendatacommunities.org/id/london-borough-council/sutton,London Borough of Sutton,27/01/2020,1286939,"169,593.33 ",Adecco Uk Ltd,10059,Resources Directorate,Suspense/Holding Accounts,X550
http://opendatacommunities.org/id/london-borough-council/sutton,London Borough of Sutton,01/01/2020,40378719,495.07 ,Adelfi Homecare Ltd,33284,Peoples Services Directorate,Home Care,G334
http://opendatacommunities.org/id/london-borough-council/sutton,London Borough of Sutton,01/01/2020,6964702,"1,376.99 ",AdEPT Education,10310,Peoples Services Directorate,"Telephones - Mobile, Pagers etc.",F374
http://opendatacommunities.org/id/london-borough-council/sutton,London Borough of Sutton,09/01/2020,6965024,496.00 ,Adt Fire & Security Plc,10063,Peoples Services Directorate,Security Systems - SCH,D880
http://opendatacommunities.org/id/london-borough-council/sutton,London Borough of Sutton,10/01/2020,6965032,"3,561.22 ",Adt Fire & Security Plc,10063,Peoples Services Directorate,Security Systems - SCH,D880
http://opendatacommunities.org/id/london-borough-council/sutton,London Borough of Sutton,31/12/2019,6964877,"1,264.56 ",Advanced Demand Side Management Ltd,26989,Resources Directorate,Water - Metered,D690
http://opendatacommunities.org/id/london-borough-council/sutton,London Borough of Sutton,10/01/2020,6964315,"7,280.00 ",Advanced Tree Services Ltd,30240,"Environment, Housing & Regeneration Directorate",Highway Trees - Maintenance,D560
http://opendatacommunities.org/id/london-borough-council/sutton,London Borough of Sutton,31/12/2019,6963866,"2,916.67 ",Advocacy For All,24795,Peoples Services Directorate,Provider Contract Payments,F470
http://opendatacommunities.org/id/london-borough-council/sutton,London Borough of Sutton,31/12/2019,6963867,"12,916.66 ",Advocacy For All,24795,Peoples Services Directorate,Provider Contract Payments,F470
http://opendatacommunities.org/id/london-borough-council/sutton,London Borough of Sutton,23/01/2020,6965097,"72,008.40 ",AECOM Ltd,22196,"Environment, Housing & Regeneration Directorate",Fees - Consultants (Ad Hoc),F283
http://opendatacommunities.org/id/london-borough-council/sutton,London Borough of Sutton,31/12/2019,40375556,"2,006.00 ",Affinity Fostering Services Ltd,26535,Peoples Services Directorate,Foster Parents,G326
http://opendatacommunities.org/id/london-borough-council/sutton,London Borough of Sutton,31/12/2019,40375592,"3,981.33 ",Affinity Fostering Services Ltd,26535,Peoples Services Directorate,Foster Parents,G326
http://opendatacommunities.org/id/london-borough-council/sutton,London Borough of Sutton,31/12/2019,40375593,"3,538.34 ",Affinity Fostering Services Ltd,26535,Peoples Services Directorate,Foster Parents,G326
http://opendatacommunities.org/id/london-borough-council/sutton,London Borough of Sutton,10/01/2020,6964589,477.21 ,AGM,34577,Peoples Services Directorate,General Maintenance,D500
http://opendatacommunities.org/id/london-borough-council/sutton,London Borough of Sutton,17/01/2020,6964776,942.85 ,AH Media Limited,99803,Chief Executive's Directorate,General Office Expenses,F235
http://opendatacommunities.org/id/london-borough-council/sutton,London Borough of Sutton,24/01/2020,40380800,"7,511.00 ",Aims Care Partnership (Leighton House Ltd),12628,Peoples Services Directorate,Residential Care - Ext Provider,G310
http://opendatacommunities.org/id/london-borough-council/sutton,London Borough of Sutton,15/01/2020,6965272,"6,635.97 ",Airwave Solutions Ltd,19431,"Environment, Housing & Regeneration Directorate",Purchase of IT Equipment,F380
http://opendatacommunities.org/id/london-borough-council/sutton,London Borough of Sutton,24/01/2020,40380789,"5,278.00 ",Aitch Care Homes,20446,Peoples Services Directorate,Residential Care - Ext Provider,G310
http://opendatacommunities.org/id/london-borough-council/sutton,London Borough of Sutton,24/01/2020,40380925,"8,400.16 ",Aitch Care Homes,20446,Peoples Services Directorate,Residential Care - Ext Provider,G310
http://opendatacommunities.org/id/london-borough-council/sutton,London Borough of Sutton,01/01/2020,6964160,"1,008.00 ",Alarm,10132,Resources Directorate,Subscriptions to Professional Bodies,A740
http://opendatacommunities.org/id/london-borough-council/sutton,London Borough of Sutton,03/09/2019,6963895,836.00 ,Alere Toxicology Plc,24389,Peoples Services Directorate,Children Assessments,G329
http://opendatacommunities.org/id/london-borough-council/sutton,London Borough of Sutton,04/09/2019,6963896,854.00 ,Alere Toxicology Plc,24389,Peoples Services Directorate,Children Assessments,G329
http://opendatacommunities.org/id/london-borough-council/sutton,London Borough of Sutton,26/11/2019,6963994,"1,724.00 ",Alere Toxicology Plc,24389,Peoples Services Directorate,Children Assessments,G329
http://opendatacommunities.org/id/london-borough-council/sutton,London Borough of Sutton,28/10/2019,6964247,"1,724.00 ",Alere Toxicology Plc,24389,Peoples Services Directorate,Children Assessments,G329
http://opendatacommunities.org/id/london-borough-council/sutton,London Borough of Sutton,24/12/2019,6963728,997.10 ,Alfred O Okrah & Rebecca M Quansah,34836,"Environment, Housing & Regeneration Directorate",Temporary Protection - Homeless Persons,H300
http://opendatacommunities.org/id/london-borough-council/sutton,London Borough of Sutton,24/12/2019,6963729,997.10 ,Alfred O Okrah & Rebecca M Quansah,34836,"Environment, Housing & Regeneration Directorate",Temporary Protection - Homeless Persons,H300
http://opendatacommunities.org/id/london-borough-council/sutton,London Borough of Sutton,01/01/2020,6964034,"2,676.25 ",Aligned Assets Ltd,30095,Resources Directorate,Fees - Computer Software,F384
http://opendatacommunities.org/id/london-borough-council/sutton,London Borough of Sutton,01/01/2020,6964034,"2,676.25 ",Aligned Assets Ltd,30095,Resources Directorate,Fees - Computer Software,F384
http://opendatacommunities.org/id/london-borough-council/sutton,London Borough of Sutton,08/09/2019,1285797,"7,775.00 ",All Saints Benhilton C Of E,10115,Peoples Services Directorate,Top-up Funding,G064
http://opendatacommunities.org/id/london-borough-council/sutton,London Borough of Sutton,01/01/2020,1286016,"7,775.00 ",All Saints Benhilton C Of E,10115,Peoples Services Directorate,Top-up Funding,G064
http://opendatacommunities.org/id/london-borough-council/sutton,London Borough of Sutton,08/09/2019,1285798,"8,522.50 ",All Saints Carshalton Primary School,16772,Peoples Services Directorate,Top-up Funding,G064
http://opendatacommunities.org/id/london-borough-council/sutton,London Borough of Sutton,01/01/2020,1286017,"8,522.50 ",All Saints Carshalton Primary School,16772,Peoples Services Directorate,Top-up Funding,G064
http://opendatacommunities.org/id/london-borough-council/sutton,London Borough of Sutton,01/01/2020,6965025,"1,360.38 ",All Security Ltd,97190,Chief Executive's Directorate,Agency Services,G431
http://opendatacommunities.org/id/london-borough-council/sutton,London Borough of Sutton,28/01/2020,6965277,"1,125.00 ",Allen Lane Ltd,18334,Resources Directorate,Agency Staff - Other,A301
http://opendatacommunities.org/id/london-borough-council/sutton,London Borough of Sutton,28/01/2020,6965277,"1,125.00 ",Allen Lane Ltd,18334,Resources Directorate,Agency Staff - Other,A301
http://opendatacommunities.org/id/london-borough-council/sutton,London Borough of Sutton,28/01/2020,6965279,"1,850.00 ",Allen Lane Ltd,18334,Resources Directorate,Agency Staff - Other,A301
http://opendatacommunities.org/id/london-borough-council/sutton,London Borough of Sutton,24/01/2020,40380985,"3,625.00 ",Alliance Care (Dale Homes) Ltd T/A Uplands Care Home,26835,Peoples Services Directorate,Nursing Care - Ext Provider,G311
http://opendatacommunities.org/id/london-borough-council/sutton,London Borough of Sutton,24/01/2020,40380754,"4,454.16 ",Allied Care (Mhs) Ltd,10145,Peoples Services Directorate,Residential Care - Ext Provider,G310
http://opendatacommunities.org/id/london-borough-council/sutton,London Borough of Sutton,31/12/2019,6963958,633.62 ,Allied Publicity Services (Manchester) Ltd,34039,Chief Executive's Directorate,Mobility Scheme for the Disabled,H401
http://opendatacommunities.org/id/london-borough-council/sutton,London Borough of Sutton,28/01/2020,6965285,565.62 ,Allied Publicity Services (Manchester) Ltd,34039,Chief Executive's Directorate,Mobility Scheme for the Disabled,H401
http://opendatacommunities.org/id/london-borough-council/sutton,London Borough of Sutton,22/01/2020,6965028,"1,475.00 ",Alljos Services Ltd,99815,"Environment, Housing & Regeneration Directorate",Grants -Made,Y610
http://opendatacommunities.org/id/london-borough-council/sutton,London Borough of Sutton,01/01/2020,6963987,"1,352.98 ",Allstar Business Solutions,24482,"Environment, Housing & Regeneration Directorate",Fuel Etc,E030
http://opendatacommunities.org/id/london-borough-council/sutton,London Borough of Sutton,24/01/2020,40380745,"4,400.00 ",Allswell Care Services Ltd,20761,Peoples Services Directorate,Residential Care - Ext Provider,G310
http://opendatacommunities.org/id/london-borough-council/sutton,London Borough of Sutton,24/01/2020,40380802,"6,370.00 ",Allswell Care Services Ltd,20761,Peoples Services Directorate,Residential Care - Ext Provider,G310
http://opendatacommunities.org/id/london-borough-council/sutton,London Borough of Sutton,24/01/2020,40380840,"3,480.00 ",Allswell Care Services Ltd,20761,Peoples Services Directorate,Residential Care - Ext Provider,G310
http://opendatacommunities.org/id/london-borough-council/sutton,London Borough of Sutton,24/01/2020,40380822,"3,180.00 ",ANA Treatment Centres Ltd,10196,Peoples Services Directorate,Interim Placements - Ext Provider,G317
http://opendatacommunities.org/id/london-borough-council/sutton,London Borough of Sutton,24/01/2020,40380869,"2,271.43 ",ANA Treatment Centres Ltd,10196,Peoples Services Directorate,Interim Placements - Ext Provider,G317
http://opendatacommunities.org/id/london-borough-council/sutton,London Borough of Sutton,24/01/2020,40380870,"2,044.29 ",ANA Treatment Centres Ltd,10196,Peoples Services Directorate,Interim Placements - Ext Provider,G317
http://opendatacommunities.org/id/london-borough-council/sutton,London Borough of Sutton,24/01/2020,40381083,"3,180.00 ",ANA Treatment Centres Ltd,10196,Peoples Services Directorate,Interim Placements - Ext Provider,G317
http://opendatacommunities.org/id/london-borough-council/sutton,London Borough of Sutton,01/12/2019,40375630,"3,361.33 ",Anchor Foster Care Services Ltd,10179,Peoples Services Directorate,Foster Parents,G326
http://opendatacommunities.org/id/london-borough-council/sutton,London Borough of Sutton,24/01/2020,40381017,"8,078.57 ",Anchor Trust,17878,Peoples Services Directorate,Residential Care - Ext Provider,G310
http://opendatacommunities.org/id/london-borough-council/sutton,London Borough of Sutton,07/01/2020,6964119,"1,128.00 ",ANDY STEWART,99898,"Environment, Housing & Regeneration Directorate",Depositors,X460
http://opendatacommunities.org/id/london-borough-council/sutton,London Borough of Sutton,01/02/2020,6965396,"9,134.00 ",ANS Group Europe LLP,23713,"Environment, Housing & Regeneration Directorate",Other Services,F340
http://opendatacommunities.org/id/london-borough-council/sutton,London Borough of Sutton,31/12/2019,6964037,"21,255.40 ",Apex Housing Solutions Ltd,29950,"Environment, Housing & Regeneration Directorate",Bed and Breakfast Accommodation,G400
http://opendatacommunities.org/id/london-borough-council/sutton,London Borough of Sutton,31/12/2019,6964078,"4,085.80 ",APL Properties,26226,"Environment, Housing & Regeneration Directorate",Bed and Breakfast Accommodation,G400
http://opendatacommunities.org/id/london-borough-council/sutton,London Borough of Sutton,06/01/2020,6964076,800.00 ,Approved Multi Services Ltd,97774,"Environment, Housing & Regeneration Directorate",Road Markings,D523
http://opendatacommunities.org/id/london-borough-council/sutton,London Borough of Sutton,07/01/2020,6964099,800.00 ,Approved Multi Services Ltd,97774,"Environment, Housing & Regeneration Directorate",Road Markings,D523
http://opendatacommunities.org/id/london-borough-council/sutton,London Borough of Sutton,27/12/2019,6964130,787.50 ,Architype Ltd,25419,Peoples Services Directorate,External Fees  - Architects,Y100
http://opendatacommunities.org/id/london-borough-council/sutton,London Borough of Sutton,02/01/2020,6964613,"8,558.75 ",Arnold & Self,16110,"Environment, Housing & Regeneration Directorate",Tenants Removal Expenses,F326
http://opendatacommunities.org/id/london-borough-council/sutton,London Borough of Sutton,11/12/2019,6963772,653.33 ,Arthur Rai Medical Services Ltd,35084,Chief Executive's Directorate,Agency Staff - Other,A301
http://opendatacommunities.org/id/london-borough-council/sutton,London Borough of Sutton,23/12/2019,6963963,"1,008.94 ",Arthur Rai Medical Services Ltd,35084,Chief Executive's Directorate,Agency Staff - Other,A301
http://opendatacommunities.org/id/london-borough-council/sutton,London Borough of Sutton,02/01/2020,6964241,719.49 ,Arthur Rai Medical Services Ltd,35084,Chief Executive's Directorate,Agency Staff - Other,A301
http://opendatacommunities.org/id/london-borough-council/sutton,London Borough of Sutton,08/01/2020,6964362,951.05 ,Arthur Rai Medical Services Ltd,35084,Chief Executive's Directorate,Agency Staff - Other,A301
http://opendatacommunities.org/id/london-borough-council/sutton,London Borough of Sutton,24/01/2020,40380670,"6,848.00 ",Ashcroft Care Services,22571,Peoples Services Directorate,Residential Care - Ext Provider,G310
http://opendatacommunities.org/id/london-borough-council/sutton,London Borough of Sutton,24/01/2020,40380907,"7,534.40 ",Ashcroft Care Services,22571,Peoples Services Directorate,Residential Care - Ext Provider,G310
http://opendatacommunities.org/id/london-borough-council/sutton,London Borough of Sutton,01/10/2019,40381412,"1,182.96 ",Ashlong House Ltd,23101,Peoples Services Directorate,Supported Living - Ext Provider,G306
http://opendatacommunities.org/id/london-borough-council/sutton,London Borough of Sutton,01/07/2019,40381413,"1,182.96 ",Ashlong House Ltd,23101,Peoples Services Directorate,Supported Living - Ext Provider,G306
http://opendatacommunities.org/id/london-borough-council/sutton,London Borough of Sutton,01/08/2019,40381414,"1,182.96 ",Ashlong House Ltd,23101,Peoples Services Directorate,Supported Living - Ext Provider,G306
http://opendatacommunities.org/id/london-borough-council/sutton,London Borough of Sutton,01/09/2019,40381417,"1,144.80 ",Ashlong House Ltd,23101,Peoples Services Directorate,Supported Living - Ext Provider,G306
http://opendatacommunities.org/id/london-borough-council/sutton,London Borough of Sutton,24/01/2020,40380830,"5,492.48 ",Aspens Charities,30002,Peoples Services Directorate,Residential Care - Ext Provider,G310
http://opendatacommunities.org/id/london-borough-council/sutton,London Borough of Sutton,31/12/2019,40378697,"2,480.00 ",Aspirations Care Ltd,25173,Peoples Services Directorate,Home Care,G334
http://opendatacommunities.org/id/london-borough-council/sutton,London Borough of Sutton,31/12/2019,40378697,"7,356.30 ",Aspirations Care Ltd,25173,Peoples Services Directorate,Home Care,G334
http://opendatacommunities.org/id/london-borough-council/sutton,London Borough of Sutton,31/12/2019,6964415,"25,929.00 ",Assetgrove Lettings Ltd,28820,"Environment, Housing & Regeneration Directorate",Bed and Breakfast Accommodation,G400
http://opendatacommunities.org/id/london-borough-council/sutton,London Borough of Sutton,18/12/2019,6965271,652.00 ,Associated Security Group Ltd,10254,Peoples Services Directorate,General Maintenance,D500
http://opendatacommunities.org/id/london-borough-council/sutton,London Borough of Sutton,10/12/2019,6962819,"13,125.00 ",Atkins Ltd,10307,Peoples Services Directorate,External Fees  - Architects,Y100
http://opendatacommunities.org/id/london-borough-council/sutton,London Borough of Sutton,24/01/2020,40380657,"4,580.72 ",Autism & Aspergers Care Services,10327,Peoples Services Directorate,Residential Care - Ext Provider,G310
http://opendatacommunities.org/id/london-borough-council/sutton,London Borough of Sutton,24/01/2020,40380701,"1,302.32 ",Avante Ltd (Weybourne),24009,Peoples Services Directorate,Residential Care - Ext Provider,G310
http://opendatacommunities.org/id/london-borough-council/sutton,London Borough of Sutton,08/09/2019,1285799,"20,185.00 ",Avenue Primary Acadamy,26025,Peoples Services Directorate,Top-up Funding,G064
http://opendatacommunities.org/id/london-borough-council/sutton,London Borough of Sutton,08/09/2019,1285799,"49,945.00 ",Avenue Primary Acadamy,26025,Peoples Services Directorate,Place Funding,G063
http://opendatacommunities.org/id/london-borough-council/sutton,London Borough of Sutton,01/01/2020,1286018,"20,185.00 ",Avenue Primary Acadamy,26025,Peoples Services Directorate,Top-up Funding,G064
http://opendatacommunities.org/id/london-borough-council/sutton,London Borough of Sutton,01/01/2020,1286018,"49,945.00 ",Avenue Primary Acadamy,26025,Peoples Services Directorate,Place Funding,G063
http://opendatacommunities.org/id/london-borough-council/sutton,London Borough of Sutton,31/12/2019,6964112,750.00 ,Axcis Education Recruitment,21583,Peoples Services Directorate,One to One Care,G335
http://opendatacommunities.org/id/london-borough-council/sutton,London Borough of Sutton,24/12/2019,6964113,"1,150.00 ",Axcis Education Recruitment,21583,Peoples Services Directorate,One to One Care,G335
http://opendatacommunities.org/id/london-borough-council/sutton,London Borough of Sutton,08/01/2020,6964192,750.00 ,Axcis Education Recruitment,21583,Peoples Services Directorate,One to One Care,G335
http://opendatacommunities.org/id/london-borough-council/sutton,London Borough of Sutton,15/01/2020,6964725,825.00 ,Axcis Education Recruitment,21583,Peoples Services Directorate,One to One Care,G335
http://opendatacommunities.org/id/london-borough-council/sutton,London Borough of Sutton,22/01/2020,6965059,675.00 ,Axcis Education Recruitment,21583,Peoples Services Directorate,One to One Care,G335
http://opendatacommunities.org/id/london-borough-council/sutton,London Borough of Sutton,29/01/2020,6965452,918.75 ,Axcis Education Recruitment,21583,Peoples Services Directorate,One to One Care,G335
http://opendatacommunities.org/id/london-borough-council/sutton,London Borough of Sutton,23/12/2019,6963635,"2,885.00 ",Axiom Traffic Ltd,23141,"Environment, Housing & Regeneration Directorate",Roads & Sewers Etc-Main Contract,Y300
http://opendatacommunities.org/id/london-borough-council/sutton,London Borough of Sutton,22/01/2020,1286399,"1,200.00 ",B Mallen T/A The Adventure Pre-School,10072,Peoples Services Directorate,Non-Maintained Childrens' Nurseries - 3 & 4 yr olds,G405
http://opendatacommunities.org/id/london-borough-council/sutton,London Borough of Sutton,30/12/2019,6964914,"44,609.79 ",Bandon Hill Pre-School,10357,Peoples Services Directorate,Building Works -Main Contractor,Y350
http://opendatacommunities.org/id/london-borough-council/sutton,London Borough of Sutton,08/09/2019,1285800,"3,235.00 ",Bandon Hill Primary,10372,Peoples Services Directorate,Top-up Funding,G064
http://opendatacommunities.org/id/london-borough-council/sutton,London Borough of Sutton,08/09/2019,1285800,"8,462.50 ",Bandon Hill Primary,10372,Peoples Services Directorate,Top-up Funding,G064
http://opendatacommunities.org/id/london-borough-council/sutton,London Borough of Sutton,08/09/2019,1285800,"141,015.00 ",Bandon Hill Primary,10372,Peoples Services Directorate,Place Funding,G063
http://opendatacommunities.org/id/london-borough-council/sutton,London Borough of Sutton,08/09/2019,1285801,"13,425.00 ",Bandon Hill Primary,10372,Peoples Services Directorate,Top-up Funding,G064
http://opendatacommunities.org/id/london-borough-council/sutton,London Borough of Sutton,08/09/2019,1285802,"9,850.00 ",Bandon Hill Primary,10372,Peoples Services Directorate,Top-up Funding,G064
http://opendatacommunities.org/id/london-borough-council/sutton,London Borough of Sutton,08/09/2019,1285802,"3,357.50 ",Bandon Hill Primary,10372,Peoples Services Directorate,Place Funding,G063
http://opendatacommunities.org/id/london-borough-council/sutton,London Borough of Sutton,01/01/2020,1286019,"3,235.00 ",Bandon Hill Primary,10372,Peoples Services Directorate,Top-up Funding,G064
http://opendatacommunities.org/id/london-borough-council/sutton,London Borough of Sutton,01/01/2020,1286019,"8,462.50 ",Bandon Hill Primary,10372,Peoples Services Directorate,Top-up Funding,G064
http://opendatacommunities.org/id/london-borough-council/sutton,London Borough of Sutton,01/01/2020,1286019,"141,015.00 ",Bandon Hill Primary,10372,Peoples Services Directorate,Place Funding,G063
http://opendatacommunities.org/id/london-borough-council/sutton,London Borough of Sutton,01/01/2020,1286020,"13,425.00 ",Bandon Hill Primary,10372,Peoples Services Directorate,Top-up Funding,G064
http://opendatacommunities.org/id/london-borough-council/sutton,London Borough of Sutton,01/01/2020,1286021,"9,850.00 ",Bandon Hill Primary,10372,Peoples Services Directorate,Top-up Funding,G064
http://opendatacommunities.org/id/london-borough-council/sutton,London Borough of Sutton,01/01/2020,1286021,"3,357.50 ",Bandon Hill Primary,10372,Peoples Services Directorate,Place Funding,G063
http://opendatacommunities.org/id/london-borough-council/sutton,London Borough of Sutton,24/01/2020,40380865,"3,502.24 ",Barchester Healthcare (Epsom Beaumont Care Home),19157,Peoples Services Directorate,Nursing Care - Ext Provider,G311
http://opendatacommunities.org/id/london-borough-council/sutton,London Borough of Sutton,24/01/2020,40380679,"5,200.00 ",Barchester Healthcare Homes Ltd,34661,Peoples Services Directorate,Nursing Care - Ext Provider,G311
http://opendatacommunities.org/id/london-borough-council/sutton,London Borough of Sutton,07/01/2020,6964432,"7,533.00 ",Barnardo's,10370,Peoples Services Directorate,Play Groups,G322
http://opendatacommunities.org/id/london-borough-council/sutton,London Borough of Sutton,07/01/2020,6964433,"3,353.52 ",Barnardo's,10370,Peoples Services Directorate,Play Groups,G322
http://opendatacommunities.org/id/london-borough-council/sutton,London Borough of Sutton,11/12/2019,40375655,"3,559.11 ",Barnardo's,10370,Peoples Services Directorate,Foster Parents,G326
http://opendatacommunities.org/id/london-borough-council/sutton,London Borough of Sutton,23/12/2019,40381351,510.00 ,Barnardo's,10370,Peoples Services Directorate,Provider Contract Payments,F470
http://opendatacommunities.org/id/london-borough-council/sutton,London Borough of Sutton,23/12/2019,40381352,510.00 ,Barnardo's,10370,Peoples Services Directorate,Provider Contract Payments,F470
http://opendatacommunities.org/id/london-borough-council/sutton,London Borough of Sutton,23/12/2019,40381355,722.75 ,Barnardo's,10370,Peoples Services Directorate,Provider Contract Payments,F470
http://opendatacommunities.org/id/london-borough-council/sutton,London Borough of Sutton,23/12/2019,40381356,424.00 ,Barnardo's,10370,Peoples Services Directorate,Provider Contract Payments,F470
http://opendatacommunities.org/id/london-borough-council/sutton,London Borough of Sutton,23/12/2019,40381357,540.00 ,Barnardo's,10370,Peoples Services Directorate,Provider Contract Payments,F470
http://opendatacommunities.org/id/london-borough-council/sutton,London Borough of Sutton,23/12/2019,40381359,"1,530.00 ",Barnardo's,10370,Peoples Services Directorate,Provider Contract Payments,F470
http://opendatacommunities.org/id/london-borough-council/sutton,London Borough of Sutton,23/12/2019,40381375,490.00 ,Barnardo's,10370,Peoples Services Directorate,Provider Contract Payments,F470
http://opendatacommunities.org/id/london-borough-council/sutton,London Borough of Sutton,23/12/2019,40381376,833.00 ,Barnardo's,10370,Peoples Services Directorate,Provider Contract Payments,F470
http://opendatacommunities.org/id/london-borough-council/sutton,London Borough of Sutton,23/12/2019,40381379,477.75 ,Barnardo's,10370,Peoples Services Directorate,Provider Contract Payments,F470
http://opendatacommunities.org/id/london-borough-council/sutton,London Borough of Sutton,23/12/2019,40381391,848.00 ,Barnardo's,10370,Peoples Services Directorate,Provider Contract Payments,F470
http://opendatacommunities.org/id/london-borough-council/sutton,London Borough of Sutton,23/12/2019,40381392,588.00 ,Barnardo's,10370,Peoples Services Directorate,Provider Contract Payments,F470
http://opendatacommunities.org/id/london-borough-council/sutton,London Borough of Sutton,23/12/2019,40381393,967.75 ,Barnardo's,10370,Peoples Services Directorate,Provider Contract Payments,F470
http://opendatacommunities.org/id/london-borough-council/sutton,London Borough of Sutton,23/12/2019,40381394,490.00 ,Barnardo's,10370,Peoples Services Directorate,Provider Contract Payments,F470
http://opendatacommunities.org/id/london-borough-council/sutton,London Borough of Sutton,11/12/2019,6962996,"46,271.25 ",Barnett Waddingham LLP,28449,Non-Service Cost Centres,Investment Expenses,A931
http://opendatacommunities.org/id/london-borough-council/sutton,London Borough of Sutton,06/01/2020,6964128,"10,000.00 ",BDC BRICKWORK & PROPERTY DEVELOPMENT,99815,"Environment, Housing & Regeneration Directorate",Grants -Made,Y610
http://opendatacommunities.org/id/london-borough-council/sutton,London Borough of Sutton,20/01/2020,6965294,"10,000.00 ",BDC BRICKWORK AND PROPERTY DEVELOPMENT,99815,"Environment, Housing & Regeneration Directorate",Grants -Made,Y610
http://opendatacommunities.org/id/london-borough-council/sutton,London Borough of Sutton,08/09/2019,1285804,"4,512.50 ",Beddington Infants School,10445,Peoples Services Directorate,Top-up Funding,G064
http://opendatacommunities.org/id/london-borough-council/sutton,London Borough of Sutton,01/01/2020,1286023,"4,512.50 ",Beddington Infants School,10445,Peoples Services Directorate,Top-up Funding,G064
http://opendatacommunities.org/id/london-borough-council/sutton,London Borough of Sutton,01/01/2020,1286975,"10,149.99 ",Beddington Infants School,10445,Peoples Services Directorate,Top-up Funding,G064
http://opendatacommunities.org/id/london-borough-council/sutton,London Borough of Sutton,08/09/2019,1285805,"1,037.50 ",Beddington Park Primary (Academy),25879,Peoples Services Directorate,Top-up Funding,G064
http://opendatacommunities.org/id/london-borough-council/sutton,London Borough of Sutton,01/01/2020,1286024,"1,037.50 ",Beddington Park Primary (Academy),25879,Peoples Services Directorate,Top-up Funding,G064
http://opendatacommunities.org/id/london-borough-council/sutton,London Borough of Sutton,12/12/2019,6963659,"2,700.00 ",Beeches Tree Care,10451,"Environment, Housing & Regeneration Directorate",Nature Conservation,G014
http://opendatacommunities.org/id/london-borough-council/sutton,London Borough of Sutton,16/01/2020,6964654,"1,024.83 ",Bellville-Homes Ltd,26490,"Environment, Housing & Regeneration Directorate",Temporary Protection - Homeless Persons,H300
http://opendatacommunities.org/id/london-borough-council/sutton,London Borough of Sutton,22/01/2020,1286363,600.00 ,Belmont Village Playgroup,17807,Peoples Services Directorate,Non-Maintained Childrens' Nurseries - 2 Year Olds,G404
http://opendatacommunities.org/id/london-borough-council/sutton,London Borough of Sutton,16/01/2020,6964757,"1,660.00 ",Benhill & Belmont GP Centre,15665,Chief Executive's Directorate,Provider Contract Payments,F470
http://opendatacommunities.org/id/london-borough-council/sutton,London Borough of Sutton,09/12/2019,40373232,800.00 ,Best at Home Domiciliary Care Services Ltd,30159,Peoples Services Directorate,Home Care,G334
http://opendatacommunities.org/id/london-borough-council/sutton,London Borough of Sutton,09/12/2019,40373233,502.50 ,Best at Home Domiciliary Care Services Ltd,30159,Peoples Services Directorate,Home Care,G334
http://opendatacommunities.org/id/london-borough-council/sutton,London Borough of Sutton,09/12/2019,40373236,912.00 ,Best at Home Domiciliary Care Services Ltd,30159,Peoples Services Directorate,Home Care,G334
http://opendatacommunities.org/id/london-borough-council/sutton,London Borough of Sutton,18/12/2019,40373246,912.00 ,Best at Home Domiciliary Care Services Ltd,30159,Peoples Services Directorate,Home Care,G334
http://opendatacommunities.org/id/london-borough-council/sutton,London Borough of Sutton,09/12/2019,40373252,488.50 ,Best at Home Domiciliary Care Services Ltd,30159,Peoples Services Directorate,Home Care,G334
http://opendatacommunities.org/id/london-borough-council/sutton,London Borough of Sutton,09/12/2019,40373259,614.00 ,Best at Home Domiciliary Care Services Ltd,30159,Peoples Services Directorate,Home Care,G334
http://opendatacommunities.org/id/london-borough-council/sutton,London Borough of Sutton,18/12/2019,40373268,614.00 ,Best at Home Domiciliary Care Services Ltd,30159,Peoples Services Directorate,Home Care,G334
http://opendatacommunities.org/id/london-borough-council/sutton,London Borough of Sutton,18/12/2019,40373271,502.50 ,Best at Home Domiciliary Care Services Ltd,30159,Peoples Services Directorate,Home Care,G334
http://opendatacommunities.org/id/london-borough-council/sutton,London Borough of Sutton,18/12/2019,40373276,800.00 ,Best at Home Domiciliary Care Services Ltd,30159,Peoples Services Directorate,Home Care,G334
http://opendatacommunities.org/id/london-borough-council/sutton,London Borough of Sutton,09/12/2019,40373280,442.00 ,Best at Home Domiciliary Care Services Ltd,30159,Peoples Services Directorate,Home Care,G334
http://opendatacommunities.org/id/london-borough-council/sutton,London Borough of Sutton,18/12/2019,40373290,488.50 ,Best at Home Domiciliary Care Services Ltd,30159,Peoples Services Directorate,Home Care,G334
http://opendatacommunities.org/id/london-borough-council/sutton,London Borough of Sutton,23/12/2019,40377784,614.00 ,Best at Home Domiciliary Care Services Ltd,30159,Peoples Services Directorate,Home Care,G334
http://opendatacommunities.org/id/london-borough-council/sutton,London Borough of Sutton,23/12/2019,40377793,502.50 ,Best at Home Domiciliary Care Services Ltd,30159,Peoples Services Directorate,Home Care,G334
http://opendatacommunities.org/id/london-borough-council/sutton,London Borough of Sutton,23/12/2019,40377842,800.00 ,Best at Home Domiciliary Care Services Ltd,30159,Peoples Services Directorate,Home Care,G334
http://opendatacommunities.org/id/london-borough-council/sutton,London Borough of Sutton,23/12/2019,40377862,912.00 ,Best at Home Domiciliary Care Services Ltd,30159,Peoples Services Directorate,Home Care,G334
http://opendatacommunities.org/id/london-borough-council/sutton,London Borough of Sutton,23/12/2019,40377866,488.50 ,Best at Home Domiciliary Care Services Ltd,30159,Peoples Services Directorate,Home Care,G334
http://opendatacommunities.org/id/london-borough-council/sutton,London Borough of Sutton,06/01/2020,40381114,"1,016.00 ",Best at Home Domiciliary Care Services Ltd,30159,Peoples Services Directorate,Home Care,G334
http://opendatacommunities.org/id/london-borough-council/sutton,London Borough of Sutton,06/01/2020,40381138,686.00 ,Best at Home Domiciliary Care Services Ltd,30159,Peoples Services Directorate,Home Care,G334
http://opendatacommunities.org/id/london-borough-council/sutton,London Borough of Sutton,06/01/2020,40381140,562.50 ,Best at Home Domiciliary Care Services Ltd,30159,Peoples Services Directorate,Home Care,G334
http://opendatacommunities.org/id/london-borough-council/sutton,London Borough of Sutton,06/01/2020,40381141,542.50 ,Best at Home Domiciliary Care Services Ltd,30159,Peoples Services Directorate,Home Care,G334
http://opendatacommunities.org/id/london-borough-council/sutton,London Borough of Sutton,06/01/2020,40381181,426.00 ,Best at Home Domiciliary Care Services Ltd,30159,Peoples Services Directorate,Home Care,G334
http://opendatacommunities.org/id/london-borough-council/sutton,London Borough of Sutton,06/01/2020,40381197,892.00 ,Best at Home Domiciliary Care Services Ltd,30159,Peoples Services Directorate,Home Care,G334
http://opendatacommunities.org/id/london-borough-council/sutton,London Borough of Sutton,06/01/2020,40381198,426.00 ,Best at Home Domiciliary Care Services Ltd,30159,Peoples Services Directorate,Home Care,G334
http://opendatacommunities.org/id/london-borough-council/sutton,London Borough of Sutton,06/01/2020,40381204,426.00 ,Best at Home Domiciliary Care Services Ltd,30159,Peoples Services Directorate,Home Care,G334
http://opendatacommunities.org/id/london-borough-council/sutton,London Borough of Sutton,06/01/2020,40381212,426.00 ,Best at Home Domiciliary Care Services Ltd,30159,Peoples Services Directorate,Home Care,G334
http://opendatacommunities.org/id/london-borough-council/sutton,London Borough of Sutton,06/01/2020,40381213,440.00 ,Best at Home Domiciliary Care Services Ltd,30159,Peoples Services Directorate,Home Care,G334
http://opendatacommunities.org/id/london-borough-council/sutton,London Borough of Sutton,06/01/2020,40381214,446.00 ,Best at Home Domiciliary Care Services Ltd,30159,Peoples Services Directorate,Home Care,G334
http://opendatacommunities.org/id/london-borough-council/sutton,London Borough of Sutton,31/12/2019,6964610,"2,912.00 ",Bestcourt UK Ltd,10441,"Environment, Housing & Regeneration Directorate",Bed and Breakfast Accommodation,G400
http://opendatacommunities.org/id/london-borough-council/sutton,London Borough of Sutton,19/12/2019,6964109,"1,625.50 ",Bevan Brittan LLP,28285,"Environment, Housing & Regeneration Directorate",Other Services,F340
http://opendatacommunities.org/id/london-borough-council/sutton,London Borough of Sutton,17/12/2019,6964468,"1,161.00 ",Bevan Brittan LLP,28285,Resources Directorate,Fees - Consultants (Ad Hoc),F283
http://opendatacommunities.org/id/london-borough-council/sutton,London Borough of Sutton,17/12/2019,1286118,"21,347.66 ",Beyond Autism,17692,Peoples Services Directorate,Independent Schools,G325
http://opendatacommunities.org/id/london-borough-council/sutton,London Borough of Sutton,17/12/2019,1286119,"21,347.66 ",Beyond Autism,17692,Peoples Services Directorate,Independent Schools,G325
http://opendatacommunities.org/id/london-borough-council/sutton,London Borough of Sutton,17/12/2019,1286120,"29,680.99 ",Beyond Autism,17692,Peoples Services Directorate,Independent Schools,G325
http://opendatacommunities.org/id/london-borough-council/sutton,London Borough of Sutton,17/12/2019,1286121,"21,810.16 ",Beyond Autism,17692,Peoples Services Directorate,Independent Schools,G325
http://opendatacommunities.org/id/london-borough-council/sutton,London Borough of Sutton,17/12/2019,1286122,"21,501.83 ",Beyond Autism,17692,Peoples Services Directorate,Independent Schools,G325
http://opendatacommunities.org/id/london-borough-council/sutton,London Borough of Sutton,17/12/2019,1286123,"18,852.57 ",Beyond Autism,17692,Peoples Services Directorate,Independent Schools,G325
http://opendatacommunities.org/id/london-borough-council/sutton,London Borough of Sutton,08/01/2020,1286129,"16,150.00 ",Blossom House Lower School,10507,Peoples Services Directorate,Independent Schools,G325
http://opendatacommunities.org/id/london-borough-council/sutton,London Borough of Sutton,02/12/2019,1286983,"18,250.00 ",Blossom House Lower School,10507,Peoples Services Directorate,Independent Schools,G325
http://opendatacommunities.org/id/london-borough-council/sutton,London Borough of Sutton,01/12/2019,40375633,"3,697.37 ",Blue Sky Fostering Ltd,26171,Peoples Services Directorate,Foster Parents,G326
http://opendatacommunities.org/id/london-borough-council/sutton,London Borough of Sutton,01/12/2019,40375660,"3,697.37 ",Blue Sky Fostering Ltd,26171,Peoples Services Directorate,Foster Parents,G326
http://opendatacommunities.org/id/london-borough-council/sutton,London Borough of Sutton,30/01/2020,6965434,"7,492.44 ",Book Trust,10530,Peoples Services Directorate,LAC - Education,F269
http://opendatacommunities.org/id/london-borough-council/sutton,London Borough of Sutton,23/01/2020,6965286,"5,250.00 ",Bournemouth University,10556,Chief Executive's Directorate,Training - Course Fees,A520
http://opendatacommunities.org/id/london-borough-council/sutton,London Borough of Sutton,17/12/2019,6964011,"72,689.43 ",Breyer Group Plc,97044,"Environment, Housing & Regeneration Directorate",Building Works -Main Contractor,Y350
http://opendatacommunities.org/id/london-borough-council/sutton,London Borough of Sutton,24/01/2020,40380720,"2,026.48 ",Bridge House Care Centre,10620,Peoples Services Directorate,Nursing Care - Ext Provider,G311
http://opendatacommunities.org/id/london-borough-council/sutton,London Borough of Sutton,24/01/2020,40380721,"3,472.00 ",Bridge House Care Centre,10620,Peoples Services Directorate,Nursing Care - Ext Provider,G311
http://opendatacommunities.org/id/london-borough-council/sutton,London Borough of Sutton,24/01/2020,40380723,"3,472.00 ",Bridge House Care Centre,10620,Peoples Services Directorate,Nursing Care - Ext Provider,G311
http://opendatacommunities.org/id/london-borough-council/sutton,London Borough of Sutton,24/01/2020,40380729,"1,751.12 ",Bridge House Care Centre,10620,Peoples Services Directorate,Nursing Care - Short Term Placements,G328
http://opendatacommunities.org/id/london-borough-council/sutton,London Borough of Sutton,24/01/2020,40380756,"3,472.64 ",Bridge House Care Centre,10620,Peoples Services Directorate,Nursing Care - Ext Provider,G311
http://opendatacommunities.org/id/london-borough-council/sutton,London Borough of Sutton,24/01/2020,40380815,"3,502.24 ",Bridge House Care Centre,10620,Peoples Services Directorate,Nursing Care - Ext Provider,G311
http://opendatacommunities.org/id/london-borough-council/sutton,London Borough of Sutton,24/01/2020,40380838,"3,268.00 ",Bridge House Care Centre,10620,Peoples Services Directorate,Nursing Care - Ext Provider,G311
http://opendatacommunities.org/id/london-borough-council/sutton,London Borough of Sutton,24/01/2020,40380856,"3,516.64 ",Bridge House Care Centre,10620,Peoples Services Directorate,Nursing Care - Ext Provider,G311
http://opendatacommunities.org/id/london-borough-council/sutton,London Borough of Sutton,24/01/2020,40380861,"2,840.00 ",Bridge House Care Centre,10620,Peoples Services Directorate,Nursing Care - Ext Provider,G311
http://opendatacommunities.org/id/london-borough-council/sutton,London Borough of Sutton,24/01/2020,40380954,"3,472.00 ",Bridge House Care Centre,10620,Peoples Services Directorate,Nursing Care - Ext Provider,G311
http://opendatacommunities.org/id/london-borough-council/sutton,London Borough of Sutton,24/01/2020,40380964,"3,472.00 ",Bridge House Care Centre,10620,Peoples Services Directorate,Nursing Care - Ext Provider,G311
http://opendatacommunities.org/id/london-borough-council/sutton,London Borough of Sutton,24/01/2020,40380965,"6,254.00 ",Bridge House Care Centre,10620,Peoples Services Directorate,Nursing Care - Ext Provider,G311
http://opendatacommunities.org/id/london-borough-council/sutton,London Borough of Sutton,24/01/2020,40380997,"3,472.00 ",Bridge House Care Centre,10620,Peoples Services Directorate,Nursing Care - Ext Provider,G311
http://opendatacommunities.org/id/london-borough-council/sutton,London Borough of Sutton,24/01/2020,40380999,"3,688.00 ",Bridge House Care Centre,10620,Peoples Services Directorate,Nursing Care - Ext Provider,G311
http://opendatacommunities.org/id/london-borough-council/sutton,London Borough of Sutton,24/01/2020,40381003,"2,122.96 ",Bridge House Care Centre,10620,Peoples Services Directorate,Nursing Care - Ext Provider,G311
http://opendatacommunities.org/id/london-borough-council/sutton,London Borough of Sutton,24/01/2020,40381018,"3,042.86 ",Bridge House Care Centre,10620,Peoples Services Directorate,Nursing Care - Ext Provider,G311
http://opendatacommunities.org/id/london-borough-council/sutton,London Borough of Sutton,24/01/2020,40381051,"3,472.64 ",Bridge House Care Centre,10620,Peoples Services Directorate,Nursing Care - Ext Provider,G311
http://opendatacommunities.org/id/london-borough-council/sutton,London Borough of Sutton,24/01/2020,40381062,"3,516.64 ",Bridge House Care Centre,10620,Peoples Services Directorate,Nursing Care - Ext Provider,G311
http://opendatacommunities.org/id/london-borough-council/sutton,London Borough of Sutton,24/01/2020,40381078,"2,126.36 ",Bridge House Care Centre,10620,Peoples Services Directorate,Nursing Care - Ext Provider,G311
http://opendatacommunities.org/id/london-borough-council/sutton,London Borough of Sutton,24/01/2020,40381082,"3,472.00 ",Bridge House Care Centre,10620,Peoples Services Directorate,Nursing Care - Ext Provider,G311
http://opendatacommunities.org/id/london-borough-council/sutton,London Borough of Sutton,01/12/2019,40375653,"3,365.71 ",Brighter Futures Foster Care Ltd,27648,Peoples Services Directorate,Foster Parents,G326
http://opendatacommunities.org/id/london-borough-council/sutton,London Borough of Sutton,01/12/2019,40375675,"2,860.82 ",Brighter Futures Foster Care Ltd,27648,Peoples Services Directorate,Foster Parents,G326
http://opendatacommunities.org/id/london-borough-council/sutton,London Borough of Sutton,01/12/2019,40375676,"2,790.00 ",Brighter Futures Foster Care Ltd,27648,Peoples Services Directorate,Foster Parents,G326
http://opendatacommunities.org/id/london-borough-council/sutton,London Borough of Sutton,01/12/2019,40375677,"3,808.66 ",Brighter Futures Foster Care Ltd,27648,Peoples Services Directorate,Foster Parents,G326
http://opendatacommunities.org/id/london-borough-council/sutton,London Borough of Sutton,21/11/2019,6964155,552.97 ,British Gas,10641,Resources Directorate,Gas - General,D610
http://opendatacommunities.org/id/london-borough-council/sutton,London Borough of Sutton,24/01/2020,40380736,"2,710.40 ",British Home & Hospital For Incurables,10589,Peoples Services Directorate,Nursing Care - Ext Provider,G311
http://opendatacommunities.org/id/london-borough-council/sutton,London Borough of Sutton,24/01/2020,40380881,"2,439.36 ",British Home & Hospital For Incurables,10589,Peoples Services Directorate,Nursing Care - Ext Provider,G311
http://opendatacommunities.org/id/london-borough-council/sutton,London Borough of Sutton,16/01/2020,6964984,"14,141.35 ",British Telecommunications Plc,10574,"Environment, Housing & Regeneration Directorate",Alts To Undertakers Plant-Telecom,Y243
http://opendatacommunities.org/id/london-borough-council/sutton,London Borough of Sutton,24/01/2020,40380753,"3,460.00 ",Broadlands Nursing Home,10586,Peoples Services Directorate,Nursing Care - Ext Provider,G311
http://opendatacommunities.org/id/london-borough-council/sutton,London Borough of Sutton,24/01/2020,40380764,"3,460.00 ",Broadlands Nursing Home,10586,Peoples Services Directorate,Nursing Care - Ext Provider,G311
http://opendatacommunities.org/id/london-borough-council/sutton,London Borough of Sutton,24/01/2020,40380866,"3,472.64 ",Broadlands Nursing Home,10586,Peoples Services Directorate,Nursing Care - Ext Provider,G311
http://opendatacommunities.org/id/london-borough-council/sutton,London Borough of Sutton,24/01/2020,40380908,"3,752.64 ",Broadlands Nursing Home,10586,Peoples Services Directorate,Nursing Care - Ext Provider,G311
http://opendatacommunities.org/id/london-borough-council/sutton,London Borough of Sutton,24/01/2020,40381029,"3,285.16 ",Broadlands Nursing Home,10586,Peoples Services Directorate,Nursing Care - Ext Provider,G311
http://opendatacommunities.org/id/london-borough-council/sutton,London Borough of Sutton,24/01/2020,40381070,"3,502.24 ",Broadlands Nursing Home,10586,Peoples Services Directorate,Nursing Care - Ext Provider,G311
http://opendatacommunities.org/id/london-borough-council/sutton,London Borough of Sutton,28/01/2020,1287056,"1,174.80 ",Brunswick Cars 9761/1961276/Loc09,10611,Peoples Services Directorate,Hired Peoples Transport (Children),E072
http://opendatacommunities.org/id/london-borough-council/sutton,London Borough of Sutton,14/01/2020,6964686,"1,793.22 ",BT Business Direct Ltd,22323,Peoples Services Directorate,Purchase of IT Equipment,F380
http://opendatacommunities.org/id/london-borough-council/sutton,London Borough of Sutton,10/01/2020,6964687,511.00 ,BT Business Direct Ltd,22323,Peoples Services Directorate,Purchase of IT Equipment,F380
http://opendatacommunities.org/id/london-borough-council/sutton,London Borough of Sutton,06/12/2019,6963586,420.00 ,Buller Hotel,23493,"Environment, Housing & Regeneration Directorate",Bed and Breakfast Accommodation,G400
http://opendatacommunities.org/id/london-borough-council/sutton,London Borough of Sutton,06/12/2019,6963587,900.00 ,Buller Hotel,23493,"Environment, Housing & Regeneration Directorate",Bed and Breakfast Accommodation,G400
http://opendatacommunities.org/id/london-borough-council/sutton,London Borough of Sutton,06/12/2019,6963588,840.00 ,Buller Hotel,23493,"Environment, Housing & Regeneration Directorate",Bed and Breakfast Accommodation,G400
http://opendatacommunities.org/id/london-borough-council/sutton,London Borough of Sutton,06/12/2019,6963589,900.00 ,Buller Hotel,23493,"Environment, Housing & Regeneration Directorate",Bed and Breakfast Accommodation,G400
http://opendatacommunities.org/id/london-borough-council/sutton,London Borough of Sutton,06/12/2019,6963590,900.00 ,Buller Hotel,23493,"Environment, Housing & Regeneration Directorate",Bed and Breakfast Accommodation,G400
http://opendatacommunities.org/id/london-borough-council/sutton,London Borough of Sutton,06/12/2019,6963591,420.00 ,Buller Hotel,23493,"Environment, Housing & Regeneration Directorate",Bed and Breakfast Accommodation,G400
http://opendatacommunities.org/id/london-borough-council/sutton,London Borough of Sutton,07/01/2020,6964172,651.96 ,Bunzl Catering Supplies,10706,Chief Executive's Directorate,Refreshments,F155
http://opendatacommunities.org/id/london-borough-council/sutton,London Borough of Sutton,22/01/2020,1286402,"3,000.00 ",Busy Bees Day Nurseries Ltd. - Carshalton Beeches,24082,Peoples Services Directorate,Non-Maintained Childrens' Nurseries - 3 & 4 yr olds,G405
http://opendatacommunities.org/id/london-borough-council/sutton,London Borough of Sutton,24/01/2020,40380891,"7,824.28 ",Butterfly's Care Homes Ltd,28860,Peoples Services Directorate,Residential Care - Ext Provider,G310
http://opendatacommunities.org/id/london-borough-council/sutton,London Borough of Sutton,01/01/2020,40375539,"5,936.77 ",By The Bridge Ltd,25655,Peoples Services Directorate,Foster Parents,G326
http://opendatacommunities.org/id/london-borough-council/sutton,London Borough of Sutton,01/01/2020,40375572,"2,298.11 ",By The Bridge Ltd,25655,Peoples Services Directorate,Foster Parents,G326
http://opendatacommunities.org/id/london-borough-council/sutton,London Borough of Sutton,01/01/2020,40375576,"4,711.38 ",By The Bridge Ltd,25655,Peoples Services Directorate,Foster Parents,G326
http://opendatacommunities.org/id/london-borough-council/sutton,London Borough of Sutton,01/01/2020,40375607,"4,711.38 ",By The Bridge Ltd,25655,Peoples Services Directorate,Foster Parents,G326
http://opendatacommunities.org/id/london-borough-council/sutton,London Borough of Sutton,20/01/2020,6964893,"1,824.00 ",C.E.R Investments Ltd,26967,"Environment, Housing & Regeneration Directorate",Temporary Protection - Homeless Persons,H300
http://opendatacommunities.org/id/london-borough-council/sutton,London Borough of Sutton,12/11/2019,1286385,"22,898.03 ",Cambian Asperger Syndrome Services Ltd,12082,Peoples Services Directorate,Residential Care-Children,G330
http://opendatacommunities.org/id/london-borough-council/sutton,London Borough of Sutton,18/08/2019,1286386,"22,898.03 ",Cambian Asperger Syndrome Services Ltd,12082,Peoples Services Directorate,Residential Care-Children,G330
http://opendatacommunities.org/id/london-borough-council/sutton,London Borough of Sutton,26/12/2019,6963776,746.30 ,Canon (UK) Ltd,13275,Resources Directorate,Printing - General,F215
http://opendatacommunities.org/id/london-borough-council/sutton,London Borough of Sutton,26/12/2019,6963777,"15,261.17 ",Canon (UK) Ltd,13275,Resources Directorate,Printing - General,F215
http://opendatacommunities.org/id/london-borough-council/sutton,London Borough of Sutton,24/01/2020,40380896,"3,821.84 ",Canterbury Oast Trust,10755,Peoples Services Directorate,Residential Care - Ext Provider,G310
http://opendatacommunities.org/id/london-borough-council/sutton,London Borough of Sutton,30/12/2019,6963774,"1,373.94 ",Capita Business Services Ltd,10780,Peoples Services Directorate,Training - Course Fees,A520
http://opendatacommunities.org/id/london-borough-council/sutton,London Borough of Sutton,30/11/2019,6964693,"1,373.94 ",Capita Business Services Ltd,10780,Peoples Services Directorate,Training - Course Fees,A520
http://opendatacommunities.org/id/london-borough-council/sutton,London Borough of Sutton,16/01/2020,6965131,796.18 ,Capita Business Services Ltd,10780,Peoples Services Directorate,Other Services,F340
http://opendatacommunities.org/id/london-borough-council/sutton,London Borough of Sutton,06/01/2020,6964079,"3,437.02 ",Capital Hair and Beauty,17777,Peoples Services Directorate,Education Equipment,F009
http://opendatacommunities.org/id/london-borough-council/sutton,London Borough of Sutton,02/12/2019,40375647,"5,739.34 ",Capstone Foster Care (South East) Ltd,16360,Peoples Services Directorate,Foster Parents,G326
http://opendatacommunities.org/id/london-borough-council/sutton,London Borough of Sutton,02/12/2019,40375670,"5,358.66 ",Capstone Foster Care (South East) Ltd,16360,Peoples Services Directorate,Foster Parents,G326
http://opendatacommunities.org/id/london-borough-council/sutton,London Borough of Sutton,02/12/2019,40375674,"3,432.32 ",Capstone Foster Care (South East) Ltd,16360,Peoples Services Directorate,Foster Parents,G326
http://opendatacommunities.org/id/london-borough-council/sutton,London Borough of Sutton,06/12/2019,6962790,"13,464.12 ",Care 2 Share Ltd,33341,Peoples Services Directorate,Children Assessments,G329
http://opendatacommunities.org/id/london-borough-council/sutton,London Borough of Sutton,01/12/2019,40375669,"19,884.33 ",Care 4 Children Residential Services Ltd,29992,Peoples Services Directorate,Residential Care-Children,G330
http://opendatacommunities.org/id/london-borough-council/sutton,London Borough of Sutton,31/12/2019,40378570,"2,942.86 ",Care Advocates Ltd,34664,Peoples Services Directorate,Supported Living - Ext Provider,G306
http://opendatacommunities.org/id/london-borough-council/sutton,London Borough of Sutton,28/11/2019,40381234,"9,200.00 ",Care Advocates Ltd,34664,Peoples Services Directorate,Supported Living - Ext Provider,G306
http://opendatacommunities.org/id/london-borough-council/sutton,London Borough of Sutton,25/10/2019,40381237,"9,200.00 ",Care Advocates Ltd,34664,Peoples Services Directorate,Supported Living - Ext Provider,G306
http://opendatacommunities.org/id/london-borough-council/sutton,London Borough of Sutton,04/12/2019,40381238,"2,300.00 ",Care Advocates Ltd,34664,Peoples Services Directorate,Supported Living - Ext Provider,G306
http://opendatacommunities.org/id/london-borough-council/sutton,London Borough of Sutton,01/08/2019,5018266,"(5,585.08)",Care Connections Ltd,10798,Peoples Services Directorate,Client Care/Assistance,H301
http://opendatacommunities.org/id/london-borough-council/sutton,London Borough of Sutton,01/04/2019,5018267,"(5,585.08)",Care Connections Ltd,10798,Peoples Services Directorate,Client Care/Assistance,H301
http://opendatacommunities.org/id/london-borough-council/sutton,London Borough of Sutton,24/01/2020,40380752,"3,080.00 ",Care Direct Uk Ltd  (David House),27080,Peoples Services Directorate,Residential Care - Ext Provider,G310
http://opendatacommunities.org/id/london-borough-council/sutton,London Borough of Sutton,16/12/2019,40376280,"1,092.00 ",Care More Ltd,33872,Peoples Services Directorate,Home Care,G334
http://opendatacommunities.org/id/london-borough-council/sutton,London Borough of Sutton,16/12/2019,40376281,"1,344.00 ",Care More Ltd,33872,Peoples Services Directorate,Home Care,G334
http://opendatacommunities.org/id/london-borough-council/sutton,London Borough of Sutton,16/12/2019,40376282,952.00 ,Care More Ltd,33872,Peoples Services Directorate,Home Care,G334
http://opendatacommunities.org/id/london-borough-council/sutton,London Borough of Sutton,16/12/2019,40376282,420.00 ,Care More Ltd,33872,Peoples Services Directorate,Home Care,G334
http://opendatacommunities.org/id/london-borough-council/sutton,London Borough of Sutton,16/12/2019,40376284,734.00 ,Care More Ltd,33872,Peoples Services Directorate,Home Care,G334
http://opendatacommunities.org/id/london-borough-council/sutton,London Borough of Sutton,16/12/2019,40376291,884.00 ,Care More Ltd,33872,Peoples Services Directorate,Home Care,G334
http://opendatacommunities.org/id/london-borough-council/sutton,London Borough of Sutton,16/12/2019,40376296,459.00 ,Care More Ltd,33872,Peoples Services Directorate,Home Care,G334
http://opendatacommunities.org/id/london-borough-council/sutton,London Borough of Sutton,16/12/2019,40376297,714.00 ,Care More Ltd,33872,Peoples Services Directorate,Home Care,G334
http://opendatacommunities.org/id/london-borough-council/sutton,London Borough of Sutton,16/12/2019,40376298,456.00 ,Care More Ltd,33872,Peoples Services Directorate,Home Care,G334
http://opendatacommunities.org/id/london-borough-council/sutton,London Borough of Sutton,16/12/2019,40376300,"1,428.00 ",Care More Ltd,33872,Peoples Services Directorate,Home Care,G334
http://opendatacommunities.org/id/london-borough-council/sutton,London Borough of Sutton,16/12/2019,40376312,651.00 ,Care More Ltd,33872,Peoples Services Directorate,Home Care,G334
http://opendatacommunities.org/id/london-borough-council/sutton,London Borough of Sutton,16/12/2019,40376316,672.00 ,Care More Ltd,33872,Peoples Services Directorate,Home Care,G334
http://opendatacommunities.org/id/london-borough-council/sutton,London Borough of Sutton,16/12/2019,40376318,456.00 ,Care More Ltd,33872,Peoples Services Directorate,Home Care,G334
http://opendatacommunities.org/id/london-borough-council/sutton,London Borough of Sutton,16/12/2019,40376319,"1,263.50 ",Care More Ltd,33872,Peoples Services Directorate,Home Care,G334
http://opendatacommunities.org/id/london-borough-council/sutton,London Borough of Sutton,16/12/2019,40376320,"1,344.00 ",Care More Ltd,33872,Peoples Services Directorate,Home Care,G334
http://opendatacommunities.org/id/london-borough-council/sutton,London Borough of Sutton,16/12/2019,40376322,546.00 ,Care More Ltd,33872,Peoples Services Directorate,Home Care,G334
http://opendatacommunities.org/id/london-borough-council/sutton,London Borough of Sutton,16/12/2019,40376323,"1,708.00 ",Care More Ltd,33872,Peoples Services Directorate,Home Care,G334
http://opendatacommunities.org/id/london-borough-council/sutton,London Borough of Sutton,16/12/2019,40376324,691.00 ,Care More Ltd,33872,Peoples Services Directorate,Home Care,G334
http://opendatacommunities.org/id/london-borough-council/sutton,London Borough of Sutton,16/12/2019,40376332,714.00 ,Care More Ltd,33872,Peoples Services Directorate,Home Care,G334
http://opendatacommunities.org/id/london-borough-council/sutton,London Borough of Sutton,16/12/2019,40376354,714.00 ,Care More Ltd,33872,Peoples Services Directorate,Home Care,G334
http://opendatacommunities.org/id/london-borough-council/sutton,London Borough of Sutton,16/12/2019,40376356,603.00 ,Care More Ltd,33872,Peoples Services Directorate,Home Care,G334
http://opendatacommunities.org/id/london-borough-council/sutton,London Borough of Sutton,16/12/2019,40376358,714.00 ,Care More Ltd,33872,Peoples Services Directorate,Home Care,G334
http://opendatacommunities.org/id/london-borough-council/sutton,London Borough of Sutton,16/12/2019,40376359,714.00 ,Care More Ltd,33872,Peoples Services Directorate,Home Care,G334
http://opendatacommunities.org/id/london-borough-council/sutton,London Borough of Sutton,16/12/2019,40376361,488.00 ,Care More Ltd,33872,Peoples Services Directorate,Home Care,G334
http://opendatacommunities.org/id/london-borough-council/sutton,London Borough of Sutton,30/12/2019,40381095,"1,344.00 ",Care More Ltd,33872,Peoples Services Directorate,Home Care,G334
http://opendatacommunities.org/id/london-borough-council/sutton,London Borough of Sutton,30/12/2019,40381103,"1,428.00 ",Care More Ltd,33872,Peoples Services Directorate,Home Care,G334
http://opendatacommunities.org/id/london-borough-council/sutton,London Borough of Sutton,30/12/2019,40381105,672.00 ,Care More Ltd,33872,Peoples Services Directorate,Home Care,G334
http://opendatacommunities.org/id/london-borough-council/sutton,London Borough of Sutton,30/12/2019,40381107,468.00 ,Care More Ltd,33872,Peoples Services Directorate,Home Care,G334
http://opendatacommunities.org/id/london-borough-council/sutton,London Borough of Sutton,30/12/2019,40381109,750.00 ,Care More Ltd,33872,Peoples Services Directorate,Home Care,G334
http://opendatacommunities.org/id/london-borough-council/sutton,London Borough of Sutton,30/12/2019,40381110,636.00 ,Care More Ltd,33872,Peoples Services Directorate,Home Care,G334
http://opendatacommunities.org/id/london-borough-council/sutton,London Borough of Sutton,30/12/2019,40381112,714.00 ,Care More Ltd,33872,Peoples Services Directorate,Home Care,G334
http://opendatacommunities.org/id/london-borough-council/sutton,London Borough of Sutton,30/12/2019,40381113,714.00 ,Care More Ltd,33872,Peoples Services Directorate,Home Care,G334
http://opendatacommunities.org/id/london-borough-council/sutton,London Borough of Sutton,30/12/2019,40381124,803.00 ,Care More Ltd,33872,Peoples Services Directorate,Home Care,G334
http://opendatacommunities.org/id/london-borough-council/sutton,London Borough of Sutton,30/12/2019,40381126,"1,708.00 ",Care More Ltd,33872,Peoples Services Directorate,Home Care,G334
http://opendatacommunities.org/id/london-borough-council/sutton,London Borough of Sutton,30/12/2019,40381127,564.00 ,Care More Ltd,33872,Peoples Services Directorate,Home Care,G334
http://opendatacommunities.org/id/london-borough-council/sutton,London Borough of Sutton,30/12/2019,40381128,599.00 ,Care More Ltd,33872,Peoples Services Directorate,Home Care,G334
http://opendatacommunities.org/id/london-borough-council/sutton,London Borough of Sutton,30/12/2019,40381129,488.00 ,Care More Ltd,33872,Peoples Services Directorate,Home Care,G334
http://opendatacommunities.org/id/london-borough-council/sutton,London Borough of Sutton,30/12/2019,40381133,714.00 ,Care More Ltd,33872,Peoples Services Directorate,Home Care,G334
http://opendatacommunities.org/id/london-borough-council/sutton,London Borough of Sutton,30/12/2019,40381135,952.00 ,Care More Ltd,33872,Peoples Services Directorate,Home Care,G334
http://opendatacommunities.org/id/london-borough-council/sutton,London Borough of Sutton,30/12/2019,40381135,420.00 ,Care More Ltd,33872,Peoples Services Directorate,Home Care,G334
http://opendatacommunities.org/id/london-borough-council/sutton,London Borough of Sutton,30/12/2019,40381153,"1,344.00 ",Care More Ltd,33872,Peoples Services Directorate,Home Care,G334
http://opendatacommunities.org/id/london-borough-council/sutton,London Borough of Sutton,30/12/2019,40381154,770.00 ,Care More Ltd,33872,Peoples Services Directorate,Home Care,G334
http://opendatacommunities.org/id/london-borough-council/sutton,London Borough of Sutton,30/12/2019,40381155,522.00 ,Care More Ltd,33872,Peoples Services Directorate,Home Care,G334
http://opendatacommunities.org/id/london-borough-council/sutton,London Borough of Sutton,30/12/2019,40381157,638.00 ,Care More Ltd,33872,Peoples Services Directorate,Home Care,G334
http://opendatacommunities.org/id/london-borough-council/sutton,London Borough of Sutton,30/12/2019,40381173,654.00 ,Care More Ltd,33872,Peoples Services Directorate,Home Care,G334
http://opendatacommunities.org/id/london-borough-council/sutton,London Borough of Sutton,30/12/2019,40381174,"1,092.00 ",Care More Ltd,33872,Peoples Services Directorate,Home Care,G334
http://opendatacommunities.org/id/london-borough-council/sutton,London Borough of Sutton,30/12/2019,40381176,672.00 ,Care More Ltd,33872,Peoples Services Directorate,Home Care,G334
http://opendatacommunities.org/id/london-borough-council/sutton,London Borough of Sutton,30/12/2019,40381178,534.00 ,Care More Ltd,33872,Peoples Services Directorate,Home Care,G334
http://opendatacommunities.org/id/london-borough-council/sutton,London Borough of Sutton,30/12/2019,40381208,494.00 ,Care More Ltd,33872,Peoples Services Directorate,Home Care,G334
http://opendatacommunities.org/id/london-borough-council/sutton,London Borough of Sutton,30/12/2019,40381209,651.00 ,Care More Ltd,33872,Peoples Services Directorate,Home Care,G334
http://opendatacommunities.org/id/london-borough-council/sutton,London Borough of Sutton,30/12/2019,40381210,"1,216.00 ",Care More Ltd,33872,Peoples Services Directorate,Home Care,G334
http://opendatacommunities.org/id/london-borough-council/sutton,London Borough of Sutton,24/01/2020,40380655,"3,400.00 ",Care UK Homecare Ltd,10853,Peoples Services Directorate,Nursing Care - Ext Provider,G311
http://opendatacommunities.org/id/london-borough-council/sutton,London Borough of Sutton,24/01/2020,40381001,"3,472.00 ",Care UK Homecare Ltd,10853,Peoples Services Directorate,Nursing Care - Ext Provider,G311
http://opendatacommunities.org/id/london-borough-council/sutton,London Borough of Sutton,27/01/2020,1287053,512.50 ,Caremark (Sutton),25541,Peoples Services Directorate,Hired Peoples Transport (Children),E072
http://opendatacommunities.org/id/london-borough-council/sutton,London Borough of Sutton,02/01/2020,6964124,670.00 ,Caremark (Sutton),25541,Peoples Services Directorate,Home Care,G334
http://opendatacommunities.org/id/london-borough-council/sutton,London Borough of Sutton,13/01/2020,6964461,458.00 ,Caremark (Sutton),25541,Peoples Services Directorate,Home Care,G334
http://opendatacommunities.org/id/london-borough-council/sutton,London Borough of Sutton,27/01/2020,6965252,770.00 ,Caremark (Sutton),25541,Peoples Services Directorate,Home Care,G334
http://opendatacommunities.org/id/london-borough-council/sutton,London Borough of Sutton,08/12/2019,40375099,826.00 ,Caremark (Sutton),25541,Peoples Services Directorate,Home Care,G334
http://opendatacommunities.org/id/london-borough-council/sutton,London Borough of Sutton,15/12/2019,40375100,826.00 ,Caremark (Sutton),25541,Peoples Services Directorate,Home Care,G334
http://opendatacommunities.org/id/london-borough-council/sutton,London Borough of Sutton,22/12/2019,40375101,826.00 ,Caremark (Sutton),25541,Peoples Services Directorate,Home Care,G334
http://opendatacommunities.org/id/london-borough-council/sutton,London Borough of Sutton,08/12/2019,40375102,760.29 ,Caremark (Sutton),25541,Peoples Services Directorate,Home Care,G334
http://opendatacommunities.org/id/london-borough-council/sutton,London Borough of Sutton,15/12/2019,40375103,772.25 ,Caremark (Sutton),25541,Peoples Services Directorate,Home Care,G334
http://opendatacommunities.org/id/london-borough-council/sutton,London Borough of Sutton,22/12/2019,40375104,772.25 ,Caremark (Sutton),25541,Peoples Services Directorate,Home Care,G334
http://opendatacommunities.org/id/london-borough-council/sutton,London Borough of Sutton,08/12/2019,40375105,755.20 ,Caremark (Sutton),25541,Peoples Services Directorate,Home Care,G334
http://opendatacommunities.org/id/london-borough-council/sutton,London Borough of Sutton,15/12/2019,40375106,767.03 ,Caremark (Sutton),25541,Peoples Services Directorate,Home Care,G334
http://opendatacommunities.org/id/london-borough-council/sutton,London Borough of Sutton,22/12/2019,40375107,767.03 ,Caremark (Sutton),25541,Peoples Services Directorate,Home Care,G334
http://opendatacommunities.org/id/london-borough-council/sutton,London Borough of Sutton,08/12/2019,40375108,735.08 ,Caremark (Sutton),25541,Peoples Services Directorate,Home Care,G334
http://opendatacommunities.org/id/london-borough-council/sutton,London Borough of Sutton,15/12/2019,40375109,747.06 ,Caremark (Sutton),25541,Peoples Services Directorate,Home Care,G334
http://opendatacommunities.org/id/london-borough-council/sutton,London Borough of Sutton,22/12/2019,40375110,747.06 ,Caremark (Sutton),25541,Peoples Services Directorate,Home Care,G334
http://opendatacommunities.org/id/london-borough-council/sutton,London Borough of Sutton,08/12/2019,40375123,"1,620.00 ",Caremark (Sutton),25541,Peoples Services Directorate,Home Care,G334
http://opendatacommunities.org/id/london-borough-council/sutton,London Borough of Sutton,15/12/2019,40375124,"1,620.00 ",Caremark (Sutton),25541,Peoples Services Directorate,Home Care,G334
http://opendatacommunities.org/id/london-borough-council/sutton,London Borough of Sutton,08/12/2019,40375150,896.35 ,Caremark (Sutton),25541,Peoples Services Directorate,Home Care,G334
http://opendatacommunities.org/id/london-borough-council/sutton,London Borough of Sutton,15/12/2019,40375151,953.52 ,Caremark (Sutton),25541,Peoples Services Directorate,Home Care,G334
http://opendatacommunities.org/id/london-borough-council/sutton,London Borough of Sutton,22/12/2019,40375152,917.79 ,Caremark (Sutton),25541,Peoples Services Directorate,Home Care,G334
http://opendatacommunities.org/id/london-borough-council/sutton,London Borough of Sutton,15/12/2019,40375153,580.00 ,Caremark (Sutton),25541,Peoples Services Directorate,Home Care,G334
http://opendatacommunities.org/id/london-borough-council/sutton,London Borough of Sutton,09/01/2020,40381251,492.00 ,Caremark (Sutton),25541,Peoples Services Directorate,Home Care,G334
http://opendatacommunities.org/id/london-borough-council/sutton,London Borough of Sutton,07/01/2020,40381252,508.00 ,Caremark (Sutton),25541,Peoples Services Directorate,Home Care,G334
http://opendatacommunities.org/id/london-borough-council/sutton,London Borough of Sutton,20/01/2020,40381253,492.00 ,Caremark (Sutton),25541,Peoples Services Directorate,Home Care,G334
http://opendatacommunities.org/id/london-borough-council/sutton,London Borough of Sutton,09/01/2020,40381254,508.00 ,Caremark (Sutton),25541,Peoples Services Directorate,Home Care,G334
http://opendatacommunities.org/id/london-borough-council/sutton,London Borough of Sutton,29/12/2019,40381453,"1,584.00 ",Caremark (Sutton),25541,Peoples Services Directorate,Home Care,G334
http://opendatacommunities.org/id/london-borough-council/sutton,London Borough of Sutton,29/12/2019,40381474,869.98 ,Caremark (Sutton),25541,Peoples Services Directorate,Home Care,G334
http://opendatacommunities.org/id/london-borough-council/sutton,London Borough of Sutton,29/12/2019,40381476,444.50 ,Caremark (Sutton),25541,Peoples Services Directorate,Home Care,G334
http://opendatacommunities.org/id/london-borough-council/sutton,London Borough of Sutton,29/12/2019,40381528,848.40 ,Caremark (Sutton),25541,Peoples Services Directorate,Home Care,G334
http://opendatacommunities.org/id/london-borough-council/sutton,London Borough of Sutton,29/12/2019,40381529,790.42 ,Caremark (Sutton),25541,Peoples Services Directorate,Home Care,G334
http://opendatacommunities.org/id/london-borough-council/sutton,London Borough of Sutton,29/12/2019,40381530,784.82 ,Caremark (Sutton),25541,Peoples Services Directorate,Home Care,G334
http://opendatacommunities.org/id/london-borough-council/sutton,London Borough of Sutton,29/12/2019,40381531,765.95 ,Caremark (Sutton),25541,Peoples Services Directorate,Home Care,G334
http://opendatacommunities.org/id/london-borough-council/sutton,London Borough of Sutton,13/01/2020,6964483,"2,860.00 ",Careoline Carers Services Ltd,23798,Peoples Services Directorate,Home Care,G334
http://opendatacommunities.org/id/london-borough-council/sutton,London Borough of Sutton,13/01/2020,6964582,"2,530.00 ",Careoline Carers Services Ltd,23798,Peoples Services Directorate,Home Care,G334
http://opendatacommunities.org/id/london-borough-council/sutton,London Borough of Sutton,13/01/2020,6964583,"2,502.50 ",Careoline Carers Services Ltd,23798,Peoples Services Directorate,Home Care,G334
http://opendatacommunities.org/id/london-borough-council/sutton,London Borough of Sutton,01/12/2019,40373300,"2,092.50 ",Caretech Community Services Ltd,10791,Peoples Services Directorate,One to One Care,G335
http://opendatacommunities.org/id/london-borough-council/sutton,London Borough of Sutton,24/01/2020,40380780,"5,531.60 ",Caretech Community Services Ltd,10791,Peoples Services Directorate,Residential Care - Ext Provider,G310
http://opendatacommunities.org/id/london-borough-council/sutton,London Borough of Sutton,24/01/2020,40380817,"5,534.00 ",Caretech Community Services Ltd,10791,Peoples Services Directorate,Residential Care - Ext Provider,G310
http://opendatacommunities.org/id/london-borough-council/sutton,London Borough of Sutton,24/01/2020,40380818,"5,534.00 ",Caretech Community Services Ltd,10791,Peoples Services Directorate,Residential Care - Ext Provider,G310
http://opendatacommunities.org/id/london-borough-council/sutton,London Borough of Sutton,24/01/2020,40381067,"5,676.16 ",Caretech Community Services Ltd,10791,Peoples Services Directorate,Residential Care - Ext Provider,G310
http://opendatacommunities.org/id/london-borough-council/sutton,London Borough of Sutton,23/01/2020,6965253,450.00 ,Carew Academy,25284,Peoples Services Directorate,One to One Care,G335
http://opendatacommunities.org/id/london-borough-council/sutton,London Borough of Sutton,23/01/2020,6965254,500.00 ,Carew Academy,25284,Peoples Services Directorate,One to One Care,G335
http://opendatacommunities.org/id/london-borough-council/sutton,London Borough of Sutton,25/10/2019,40375034,915.00 ,Carlene House,10763,Peoples Services Directorate,Supported Living - Ext Provider,G306
http://opendatacommunities.org/id/london-borough-council/sutton,London Borough of Sutton,04/09/2019,40375035,915.00 ,Carlene House,10763,Peoples Services Directorate,Supported Living - Ext Provider,G306
http://opendatacommunities.org/id/london-borough-council/sutton,London Borough of Sutton,25/10/2019,40375036,915.00 ,Carlene House,10763,Peoples Services Directorate,Supported Living - Ext Provider,G306
http://opendatacommunities.org/id/london-borough-council/sutton,London Borough of Sutton,01/07/2019,40375037,915.00 ,Carlene House,10763,Peoples Services Directorate,Supported Living - Ext Provider,G306
http://opendatacommunities.org/id/london-borough-council/sutton,London Borough of Sutton,04/09/2019,40375038,915.00 ,Carlene House,10763,Peoples Services Directorate,Supported Living - Ext Provider,G306
http://opendatacommunities.org/id/london-borough-council/sutton,London Borough of Sutton,06/01/2020,40376260,"3,525.56 ",Carlene House,10763,Peoples Services Directorate,Supported Living - Ext Provider,G306
http://opendatacommunities.org/id/london-borough-council/sutton,London Borough of Sutton,27/08/2019,40376261,615.60 ,Carlene House,10763,Peoples Services Directorate,Supported Living - Ext Provider,G306
http://opendatacommunities.org/id/london-borough-council/sutton,London Borough of Sutton,06/01/2020,40376262,"2,528.56 ",Carlene House,10763,Peoples Services Directorate,Supported Living - Ext Provider,G306
http://opendatacommunities.org/id/london-borough-council/sutton,London Borough of Sutton,27/08/2019,40376263,615.60 ,Carlene House,10763,Peoples Services Directorate,Supported Living - Ext Provider,G306
http://opendatacommunities.org/id/london-borough-council/sutton,London Borough of Sutton,06/01/2020,40376267,"2,528.56 ",Carlene House,10763,Peoples Services Directorate,Supported Living - Ext Provider,G306
http://opendatacommunities.org/id/london-borough-council/sutton,London Borough of Sutton,07/01/2020,40376269,"1,107.01 ",Carlene House,10763,Peoples Services Directorate,Day Care,G337
http://opendatacommunities.org/id/london-borough-council/sutton,London Borough of Sutton,07/01/2020,40376270,"1,107.01 ",Carlene House,10763,Peoples Services Directorate,Day Care,G337
http://opendatacommunities.org/id/london-borough-council/sutton,London Borough of Sutton,07/01/2020,40376271,"1,107.01 ",Carlene House,10763,Peoples Services Directorate,Day Care,G337
http://opendatacommunities.org/id/london-borough-council/sutton,London Borough of Sutton,07/01/2020,40376272,"1,107.01 ",Carlene House,10763,Peoples Services Directorate,Day Care,G337
http://opendatacommunities.org/id/london-borough-council/sutton,London Borough of Sutton,07/01/2020,40376273,"1,107.01 ",Carlene House,10763,Peoples Services Directorate,Day Care,G337
http://opendatacommunities.org/id/london-borough-council/sutton,London Borough of Sutton,06/01/2020,40376274,992.00 ,Carlene House,10763,Peoples Services Directorate,Supported Living - Ext Provider,G306
http://opendatacommunities.org/id/london-borough-council/sutton,London Borough of Sutton,06/01/2020,40376329,420.00 ,Carlene House,10763,Peoples Services Directorate,Supported Living - Ext Provider,G306
http://opendatacommunities.org/id/london-borough-council/sutton,London Borough of Sutton,07/01/2020,40376344,"1,107.01 ",Carlene House,10763,Peoples Services Directorate,Day Care,G337
http://opendatacommunities.org/id/london-borough-council/sutton,London Borough of Sutton,24/01/2020,40380739,"2,682.68 ",Carlene House,10763,Peoples Services Directorate,Residential Care - Ext Provider,G310
http://opendatacommunities.org/id/london-borough-council/sutton,London Borough of Sutton,24/01/2020,40380793,"2,625.28 ",Carlene House,10763,Peoples Services Directorate,Residential Care - Ext Provider,G310
http://opendatacommunities.org/id/london-borough-council/sutton,London Borough of Sutton,24/01/2020,40380878,"4,440.00 ",Carlene House,10763,Peoples Services Directorate,Residential Care - Ext Provider,G310
http://opendatacommunities.org/id/london-borough-council/sutton,London Borough of Sutton,24/01/2020,40380882,"2,630.60 ",Carlene House,10763,Peoples Services Directorate,Residential Care - Ext Provider,G310
http://opendatacommunities.org/id/london-borough-council/sutton,London Borough of Sutton,24/01/2020,40380886,"2,654.68 ",Carlene House,10763,Peoples Services Directorate,Residential Care - Ext Provider,G310
http://opendatacommunities.org/id/london-borough-council/sutton,London Borough of Sutton,24/01/2020,40380888,"2,740.64 ",Carlene House,10763,Peoples Services Directorate,Residential Care - Ext Provider,G310
http://opendatacommunities.org/id/london-borough-council/sutton,London Borough of Sutton,24/01/2020,40380979,"2,625.28 ",Carlene House,10763,Peoples Services Directorate,Residential Care - Ext Provider,G310
http://opendatacommunities.org/id/london-borough-council/sutton,London Borough of Sutton,06/01/2020,6964416,563.00 ,Caroline Barkus,34619,Peoples Services Directorate,Fees - Consultants (Ad Hoc),F283
http://opendatacommunities.org/id/london-borough-council/sutton,London Borough of Sutton,08/09/2019,1285806,"8,612.50 ",Carshalton Boys Sports College (Academy),23984,Peoples Services Directorate,Top-up Funding,G064
http://opendatacommunities.org/id/london-borough-council/sutton,London Borough of Sutton,01/01/2020,1286025,"8,612.50 ",Carshalton Boys Sports College (Academy),23984,Peoples Services Directorate,Top-up Funding,G064
http://opendatacommunities.org/id/london-borough-council/sutton,London Borough of Sutton,27/01/2020,40381283,770.55 ,Carshalton News,10752,Chief Executive's Directorate,Books,F006
http://opendatacommunities.org/id/london-borough-council/sutton,London Borough of Sutton,16/12/2019,6965039,"1,214.20 ",Carter Jonas LLP,30103,"Environment, Housing & Regeneration Directorate",Surveyors Fees,Y030
http://opendatacommunities.org/id/london-borough-council/sutton,London Borough of Sutton,30/01/2020,6965453,"1,731.75 ",Carter Jonas LLP,30103,"Environment, Housing & Regeneration Directorate",Surveyors Fees,Y030
http://opendatacommunities.org/id/london-borough-council/sutton,London Borough of Sutton,12/01/2020,6964380,883.50 ,Caysh Enterprise Cic,28016,Peoples Services Directorate,Approved Lodgings,H323
http://opendatacommunities.org/id/london-borough-council/sutton,London Borough of Sutton,03/12/2019,6963168,"4,107.13 ",Caysh Housing Project,23133,Peoples Services Directorate,Approved Lodgings,H323
http://opendatacommunities.org/id/london-borough-council/sutton,London Borough of Sutton,03/12/2019,6963169,"6,194.36 ",Caysh Housing Project,23133,Peoples Services Directorate,Approved Lodgings,H323
http://opendatacommunities.org/id/london-borough-council/sutton,London Borough of Sutton,06/01/2020,6963997,"30,380.88 ",Caysh Housing Project,23133,Peoples Services Directorate,Approved Lodgings,H323
http://opendatacommunities.org/id/london-borough-council/sutton,London Borough of Sutton,06/01/2020,6964025,"2,087.23 ",Caysh Housing Project,23133,Peoples Services Directorate,Approved Lodgings,H323
http://opendatacommunities.org/id/london-borough-council/sutton,London Borough of Sutton,06/01/2020,6964026,"1,242.79 ",Caysh Housing Project,23133,Peoples Services Directorate,Approved Lodgings,H323
http://opendatacommunities.org/id/london-borough-council/sutton,London Borough of Sutton,06/01/2020,6964027,"2,488.64 ",Caysh Housing Project,23133,Peoples Services Directorate,Approved Lodgings,H323
http://opendatacommunities.org/id/london-borough-council/sutton,London Borough of Sutton,06/01/2020,6964028,"1,229.77 ",Caysh Housing Project,23133,Peoples Services Directorate,Approved Lodgings,H323
http://opendatacommunities.org/id/london-borough-council/sutton,London Borough of Sutton,06/01/2020,6964029,"1,229.77 ",Caysh Housing Project,23133,Peoples Services Directorate,Approved Lodgings,H323
http://opendatacommunities.org/id/london-borough-council/sutton,London Borough of Sutton,06/01/2020,6964031,"1,444.29 ",Caysh Housing Project,23133,Peoples Services Directorate,Approved Lodgings,H323
http://opendatacommunities.org/id/london-borough-council/sutton,London Borough of Sutton,06/01/2020,6964032,"1,259.84 ",Caysh Housing Project,23133,Peoples Services Directorate,Approved Lodgings,H323
http://opendatacommunities.org/id/london-borough-council/sutton,London Borough of Sutton,06/01/2020,6964033,"1,405.85 ",Caysh Housing Project,23133,Peoples Services Directorate,Approved Lodgings,H323
http://opendatacommunities.org/id/london-borough-council/sutton,London Borough of Sutton,06/01/2020,6964516,431.79 ,Caysh Housing Project,23133,Peoples Services Directorate,Approved Lodgings,H323
http://opendatacommunities.org/id/london-borough-council/sutton,London Borough of Sutton,06/01/2020,40375603,"1,825.55 ",Caysh Housing Project,23133,Peoples Services Directorate,Approved Lodgings,H323
http://opendatacommunities.org/id/london-borough-council/sutton,London Borough of Sutton,30/09/2019,6963947,"1,463.27 ",Central & North West London Nhs Foundation Trust,28976,Chief Executive's Directorate,Provider Contract Payments,F470
http://opendatacommunities.org/id/london-borough-council/sutton,London Borough of Sutton,30/09/2019,6963948,"1,133.36 ",Central & North West London Nhs Foundation Trust,28976,Chief Executive's Directorate,Provider Contract Payments,F470
http://opendatacommunities.org/id/london-borough-council/sutton,London Borough of Sutton,01/12/2019,40375643,"5,679.51 ",Channels & Choices Theraputic Fostering Ltd,25665,Peoples Services Directorate,Foster Parents,G326
http://opendatacommunities.org/id/london-borough-council/sutton,London Borough of Sutton,01/12/2019,40375654,"5,679.51 ",Channels & Choices Theraputic Fostering Ltd,25665,Peoples Services Directorate,Foster Parents,G326
http://opendatacommunities.org/id/london-borough-council/sutton,London Borough of Sutton,24/01/2020,40381074,"1,375.88 ",Charlton Park Care Home T/A Four Seasons (No 7) Ltd.,30290,Peoples Services Directorate,Nursing Care - Ext Provider,G311
http://opendatacommunities.org/id/london-borough-council/sutton,London Borough of Sutton,22/01/2020,1286366,"1,200.00 ",Cheam Baptist Church Pre-School,10924,Peoples Services Directorate,Non-Maintained Childrens' Nurseries - 2 Year Olds,G404
http://opendatacommunities.org/id/london-borough-council/sutton,London Borough of Sutton,22/01/2020,1286404,"2,160.00 ",Cheam Baptist Church Pre-School,10924,Peoples Services Directorate,Non-Maintained Childrens' Nurseries - 3 & 4 yr olds,G405
http://opendatacommunities.org/id/london-borough-council/sutton,London Borough of Sutton,08/09/2019,1285808,"3,212.50 ",Cheam Common Junior Academy,28932,Peoples Services Directorate,Top-up Funding,G064
http://opendatacommunities.org/id/london-borough-council/sutton,London Borough of Sutton,01/01/2020,1286027,"3,212.50 ",Cheam Common Junior Academy,28932,Peoples Services Directorate,Top-up Funding,G064
http://opendatacommunities.org/id/london-borough-council/sutton,London Borough of Sutton,13/01/2020,6964435,"1,300.00 ",Cheam Family Practice,10918,Chief Executive's Directorate,Provider Contract Payments,F470
http://opendatacommunities.org/id/london-borough-council/sutton,London Borough of Sutton,13/01/2020,6964436,720.00 ,Cheam Family Practice,10918,Chief Executive's Directorate,Provider Contract Payments,F470
http://opendatacommunities.org/id/london-borough-council/sutton,London Borough of Sutton,08/09/2019,1285810,"36,881.25 ",Cheam High School (Academy),23996,Peoples Services Directorate,Top-up Funding,G064
http://opendatacommunities.org/id/london-borough-council/sutton,London Borough of Sutton,08/09/2019,1285810,"19,572.50 ",Cheam High School (Academy),23996,Peoples Services Directorate,Place Funding,G063
http://opendatacommunities.org/id/london-borough-council/sutton,London Borough of Sutton,08/09/2019,1285826,"16,618.75 ",Cheam High School (Academy),23996,Peoples Services Directorate,Top-up Funding,G064
http://opendatacommunities.org/id/london-borough-council/sutton,London Borough of Sutton,08/09/2019,1285826,"183,405.00 ",Cheam High School (Academy),23996,Peoples Services Directorate,Place Funding,G063
http://opendatacommunities.org/id/london-borough-council/sutton,London Borough of Sutton,08/09/2019,1285826,"7,612.50 ",Cheam High School (Academy),23996,Peoples Services Directorate,Top-up Funding,G064
http://opendatacommunities.org/id/london-borough-council/sutton,London Borough of Sutton,01/01/2020,1286029,"36,881.25 ",Cheam High School (Academy),23996,Peoples Services Directorate,Top-up Funding,G064
http://opendatacommunities.org/id/london-borough-council/sutton,London Borough of Sutton,01/01/2020,1286029,"19,572.50 ",Cheam High School (Academy),23996,Peoples Services Directorate,Place Funding,G063
http://opendatacommunities.org/id/london-borough-council/sutton,London Borough of Sutton,01/01/2020,1286045,"16,618.75 ",Cheam High School (Academy),23996,Peoples Services Directorate,Top-up Funding,G064
http://opendatacommunities.org/id/london-borough-council/sutton,London Borough of Sutton,01/01/2020,1286045,"183,405.00 ",Cheam High School (Academy),23996,Peoples Services Directorate,Place Funding,G063
http://opendatacommunities.org/id/london-borough-council/sutton,London Borough of Sutton,01/01/2020,1286045,"7,612.50 ",Cheam High School (Academy),23996,Peoples Services Directorate,Top-up Funding,G064
http://opendatacommunities.org/id/london-borough-council/sutton,London Borough of Sutton,20/01/2020,6964854,"29,246.30 ",Cheam High School (Academy),23996,Peoples Services Directorate,Other Services,F340
http://opendatacommunities.org/id/london-borough-council/sutton,London Borough of Sutton,08/09/2019,1285811,"10,090.00 ",Cheam Park Farm Primary School (LEO Academy Trust),23882,Peoples Services Directorate,Top-up Funding,G064
http://opendatacommunities.org/id/london-borough-council/sutton,London Borough of Sutton,01/01/2020,1286030,"10,090.00 ",Cheam Park Farm Primary School (LEO Academy Trust),23882,Peoples Services Directorate,Top-up Funding,G064
http://opendatacommunities.org/id/london-borough-council/sutton,London Borough of Sutton,24/01/2020,40380717,"3,472.00 ",Chegworth Nursing Home Bayswift Ltd,10908,Peoples Services Directorate,Nursing Care - Ext Provider,G311
http://opendatacommunities.org/id/london-borough-council/sutton,London Borough of Sutton,24/01/2020,40380725,"3,988.12 ",Chegworth Nursing Home Bayswift Ltd,10908,Peoples Services Directorate,Nursing Care - Ext Provider,G311
http://opendatacommunities.org/id/london-borough-council/sutton,London Borough of Sutton,24/01/2020,40380766,"3,472.00 ",Chegworth Nursing Home Bayswift Ltd,10908,Peoples Services Directorate,Nursing Care - Ext Provider,G311
http://opendatacommunities.org/id/london-borough-council/sutton,London Borough of Sutton,24/01/2020,40380771,"3,462.24 ",Chegworth Nursing Home Bayswift Ltd,10908,Peoples Services Directorate,Nursing Care - Ext Provider,G311
http://opendatacommunities.org/id/london-borough-council/sutton,London Borough of Sutton,24/01/2020,40380948,"3,800.00 ",Chegworth Nursing Home Bayswift Ltd,10908,Peoples Services Directorate,Nursing Care - Ext Provider,G311
http://opendatacommunities.org/id/london-borough-council/sutton,London Borough of Sutton,24/01/2020,40380949,"3,392.00 ",Chegworth Nursing Home Bayswift Ltd,10908,Peoples Services Directorate,Nursing Care - Ext Provider,G311
http://opendatacommunities.org/id/london-borough-council/sutton,London Borough of Sutton,24/01/2020,40380992,"3,472.00 ",Chegworth Nursing Home Bayswift Ltd,10908,Peoples Services Directorate,Nursing Care - Ext Provider,G311
http://opendatacommunities.org/id/london-borough-council/sutton,London Borough of Sutton,24/01/2020,40381004,"2,800.00 ",Chegworth Nursing Home Bayswift Ltd,10908,Peoples Services Directorate,Nursing Care - Short Term Placements,G328
http://opendatacommunities.org/id/london-borough-council/sutton,London Borough of Sutton,24/01/2020,40381005,"3,746.52 ",Chegworth Nursing Home Bayswift Ltd,10908,Peoples Services Directorate,Nursing Care - Ext Provider,G311
http://opendatacommunities.org/id/london-borough-council/sutton,London Borough of Sutton,24/01/2020,40381021,"1,375.88 ",Chegworth Nursing Home Bayswift Ltd,10908,Peoples Services Directorate,Nursing Care - Short Term Placements,G328
http://opendatacommunities.org/id/london-borough-council/sutton,London Borough of Sutton,24/01/2020,40381063,"3,472.00 ",Chegworth Nursing Home Bayswift Ltd,10908,Peoples Services Directorate,Nursing Care - Ext Provider,G311
http://opendatacommunities.org/id/london-borough-council/sutton,London Borough of Sutton,24/01/2020,40381079,"4,340.00 ",Chegworth Nursing Home Bayswift Ltd,10908,Peoples Services Directorate,Nursing Care - Short Term Placements,G328
http://opendatacommunities.org/id/london-borough-council/sutton,London Borough of Sutton,25/11/2019,6963853,"(5,142.51)",Chelsea and Westminster NHS ft,28891,Chief Executive's Directorate,Provider Contract Payments,F470
http://opendatacommunities.org/id/london-borough-council/sutton,London Borough of Sutton,30/10/2019,6963962,"6,046.79 ",Chelsea and Westminster NHS ft,28891,Chief Executive's Directorate,Provider Contract Payments,F470
http://opendatacommunities.org/id/london-borough-council/sutton,London Borough of Sutton,31/12/2019,6963996,"6,046.79 ",Chelsea and Westminster NHS ft,28891,Chief Executive's Directorate,Provider Contract Payments,F470
http://opendatacommunities.org/id/london-borough-council/sutton,London Borough of Sutton,29/02/2020,6964915,"6,046.79 ",Chelsea and Westminster NHS ft,28891,Chief Executive's Directorate,Provider Contract Payments,F470
http://opendatacommunities.org/id/london-borough-council/sutton,London Borough of Sutton,31/01/2020,6964931,"6,046.79 ",Chelsea and Westminster NHS ft,28891,Chief Executive's Directorate,Provider Contract Payments,F470
http://opendatacommunities.org/id/london-borough-council/sutton,London Borough of Sutton,14/01/2020,6964698,"13,725.00 ",Chelsea Studios Ltd,32128,"Environment, Housing & Regeneration Directorate",Temporary Protection - Homeless Persons,H300
http://opendatacommunities.org/id/london-borough-council/sutton,London Borough of Sutton,08/12/2019,40374309,441.00 ,Chenash Homecare Specialists And Care Agency,25667,Peoples Services Directorate,Home Care,G334
http://opendatacommunities.org/id/london-borough-council/sutton,London Borough of Sutton,22/12/2019,40374310,441.00 ,Chenash Homecare Specialists And Care Agency,25667,Peoples Services Directorate,Home Care,G334
http://opendatacommunities.org/id/london-borough-council/sutton,London Borough of Sutton,29/12/2019,40374311,441.00 ,Chenash Homecare Specialists And Care Agency,25667,Peoples Services Directorate,Home Care,G334
http://opendatacommunities.org/id/london-borough-council/sutton,London Borough of Sutton,15/12/2019,40374312,441.00 ,Chenash Homecare Specialists And Care Agency,25667,Peoples Services Directorate,Home Care,G334
http://opendatacommunities.org/id/london-borough-council/sutton,London Borough of Sutton,05/01/2020,40380335,441.00 ,Chenash Homecare Specialists And Care Agency,25667,Peoples Services Directorate,Home Care,G334
http://opendatacommunities.org/id/london-borough-council/sutton,London Borough of Sutton,12/01/2020,40380336,441.00 ,Chenash Homecare Specialists And Care Agency,25667,Peoples Services Directorate,Home Care,G334
http://opendatacommunities.org/id/london-borough-council/sutton,London Borough of Sutton,24/01/2020,40380746,"2,725.00 ",Cherry Lodge,10934,Peoples Services Directorate,Residential Care - Ext Provider,G310
http://opendatacommunities.org/id/london-borough-council/sutton,London Borough of Sutton,24/01/2020,40380788,"3,360.00 ",Cherry Lodge,10934,Peoples Services Directorate,Residential Care - Ext Provider,G310
http://opendatacommunities.org/id/london-borough-council/sutton,London Borough of Sutton,24/01/2020,40380859,"3,800.00 ",CHHG Ltd T/A Belmont House,29991,Peoples Services Directorate,Nursing Care - Ext Provider,G311
http://opendatacommunities.org/id/london-borough-council/sutton,London Borough of Sutton,24/01/2020,40381020,"3,502.24 ",CHHG Ltd T/A Belmont House,29991,Peoples Services Directorate,Nursing Care - Ext Provider,G311
http://opendatacommunities.org/id/london-borough-council/sutton,London Borough of Sutton,24/01/2020,40381065,"4,800.00 ",CHHG Ltd T/A Belmont House,29991,Peoples Services Directorate,Nursing Care - Ext Provider,G311
http://opendatacommunities.org/id/london-borough-council/sutton,London Borough of Sutton,24/01/2020,40381072,"2,936.00 ",CHHG Ltd T/A Belmont House,29991,Peoples Services Directorate,Residential Care - Ext Provider,G310
http://opendatacommunities.org/id/london-borough-council/sutton,London Borough of Sutton,29/11/2019,5018270,"(7,945.00)",CHHG Ltd t/a Cranmer Court,22562,Peoples Services Directorate,Nursing Care - Ext Provider,G311
http://opendatacommunities.org/id/london-borough-council/sutton,London Borough of Sutton,29/11/2019,5018270,827.80 ,CHHG Ltd t/a Cranmer Court,22562,Peoples Services Directorate,Nursing Care - 3rd party top up payment,G360
http://opendatacommunities.org/id/london-borough-council/sutton,London Borough of Sutton,27/12/2019,5018271,"(6,356.00)",CHHG Ltd t/a Cranmer Court,22562,Peoples Services Directorate,Nursing Care - Ext Provider,G311
http://opendatacommunities.org/id/london-borough-council/sutton,London Borough of Sutton,27/12/2019,5018271,662.24 ,CHHG Ltd t/a Cranmer Court,22562,Peoples Services Directorate,Nursing Care - 3rd party top up payment,G360
http://opendatacommunities.org/id/london-borough-council/sutton,London Borough of Sutton,24/01/2020,5018272,662.24 ,CHHG Ltd t/a Cranmer Court,22562,Peoples Services Directorate,Nursing Care - 3rd party top up payment,G360
http://opendatacommunities.org/id/london-borough-council/sutton,London Borough of Sutton,08/01/2020,40375605,"1,101.52 ",Children of All Nations,19625,Peoples Services Directorate,Foster Parents,G326
http://opendatacommunities.org/id/london-borough-council/sutton,London Borough of Sutton,27/11/2019,40375673,"4,565.06 ",Children of All Nations,19625,Peoples Services Directorate,Foster Parents,G326
http://opendatacommunities.org/id/london-borough-council/sutton,London Borough of Sutton,05/11/2019,40375569,"3,360.00 ",Children of Colour,16870,Peoples Services Directorate,Foster Parents,G326
http://opendatacommunities.org/id/london-borough-council/sutton,London Borough of Sutton,05/11/2019,40375618,"3,276.00 ",Children of Colour,16870,Peoples Services Directorate,Foster Parents,G326
http://opendatacommunities.org/id/london-borough-council/sutton,London Borough of Sutton,03/12/2019,40375627,"3,385.20 ",Children of Colour,16870,Peoples Services Directorate,Foster Parents,G326
http://opendatacommunities.org/id/london-borough-council/sutton,London Borough of Sutton,03/12/2019,40375640,"3,472.00 ",Children of Colour,16870,Peoples Services Directorate,Foster Parents,G326
http://opendatacommunities.org/id/london-borough-council/sutton,London Borough of Sutton,31/12/2019,6964090,"1,200.00 ",Chivers Coaches Ltd,10890,Resources Directorate,Materials - General,F100
http://opendatacommunities.org/id/london-borough-council/sutton,London Borough of Sutton,24/01/2020,40380713,"7,240.00 ",Choice Care Group (Surrey) Ltd,22029,Peoples Services Directorate,Residential Care - Ext Provider,G310
http://opendatacommunities.org/id/london-borough-council/sutton,London Borough of Sutton,24/01/2020,40380774,"7,878.28 ",Choice Care Group (Surrey) Ltd,22029,Peoples Services Directorate,Residential Care - Ext Provider,G310
http://opendatacommunities.org/id/london-borough-council/sutton,London Borough of Sutton,24/01/2020,40380975,"7,511.00 ",Choice Care Group (Surrey) Ltd,22029,Peoples Services Directorate,Residential Care - Ext Provider,G310
http://opendatacommunities.org/id/london-borough-council/sutton,London Borough of Sutton,24/01/2020,40381022,"7,526.32 ",Choice Care Group (Surrey) Ltd,22029,Peoples Services Directorate,Residential Care - Ext Provider,G310
http://opendatacommunities.org/id/london-borough-council/sutton,London Borough of Sutton,27/01/2020,6965394,"32,148.09 ",Choice Support,12929,Peoples Services Directorate,Imagine Sutton Mainstream,G305
http://opendatacommunities.org/id/london-borough-council/sutton,London Borough of Sutton,30/12/2019,40377744,"2,250.11 ",Choice Support,12929,Peoples Services Directorate,Supported Living - Ext Provider,G306
http://opendatacommunities.org/id/london-borough-council/sutton,London Borough of Sutton,30/12/2019,40377744,633.82 ,Choice Support,12929,Peoples Services Directorate,Supported Living - Ext Provider,G306
http://opendatacommunities.org/id/london-borough-council/sutton,London Borough of Sutton,30/12/2019,40377744,"1,320.25 ",Choice Support,12929,Peoples Services Directorate,Supported Living - Ext Provider,G306
http://opendatacommunities.org/id/london-borough-council/sutton,London Borough of Sutton,30/12/2019,40377745,"2,710.29 ",Choice Support,12929,Peoples Services Directorate,Supported Living - Ext Provider,G306
http://opendatacommunities.org/id/london-borough-council/sutton,London Borough of Sutton,30/12/2019,40377745,633.82 ,Choice Support,12929,Peoples Services Directorate,Supported Living - Ext Provider,G306
http://opendatacommunities.org/id/london-borough-council/sutton,London Borough of Sutton,30/12/2019,40377745,"1,313.60 ",Choice Support,12929,Peoples Services Directorate,Supported Living - Ext Provider,G306
http://opendatacommunities.org/id/london-borough-council/sutton,London Borough of Sutton,31/12/2019,40377747,887.35 ,Choice Support,12929,Peoples Services Directorate,Supported Living - Ext Provider,G306
http://opendatacommunities.org/id/london-borough-council/sutton,London Borough of Sutton,31/12/2019,40377747,"6,463.37 ",Choice Support,12929,Peoples Services Directorate,Supported Living - Ext Provider,G306
http://opendatacommunities.org/id/london-borough-council/sutton,London Borough of Sutton,31/12/2019,40377748,845.37 ,Choice Support,12929,Peoples Services Directorate,Supported Living - Ext Provider,G306
http://opendatacommunities.org/id/london-borough-council/sutton,London Borough of Sutton,31/12/2019,40377748,"4,693.71 ",Choice Support,12929,Peoples Services Directorate,Supported Living - Ext Provider,G306
http://opendatacommunities.org/id/london-borough-council/sutton,London Borough of Sutton,30/12/2019,40377749,"1,633.17 ",Choice Support,12929,Peoples Services Directorate,Supported Living - Ext Provider,G306
http://opendatacommunities.org/id/london-borough-council/sutton,London Borough of Sutton,30/12/2019,40377749,633.82 ,Choice Support,12929,Peoples Services Directorate,Supported Living - Ext Provider,G306
http://opendatacommunities.org/id/london-borough-council/sutton,London Borough of Sutton,30/12/2019,40377749,"1,579.14 ",Choice Support,12929,Peoples Services Directorate,Supported Living - Ext Provider,G306
http://opendatacommunities.org/id/london-borough-council/sutton,London Borough of Sutton,30/12/2019,40377750,633.82 ,Choice Support,12929,Peoples Services Directorate,Supported Living - Ext Provider,G306
http://opendatacommunities.org/id/london-borough-council/sutton,London Borough of Sutton,30/12/2019,40377750,"5,933.49 ",Choice Support,12929,Peoples Services Directorate,Supported Living - Ext Provider,G306
http://opendatacommunities.org/id/london-borough-council/sutton,London Borough of Sutton,30/12/2019,40377751,"1,589.59 ",Choice Support,12929,Peoples Services Directorate,Supported Living - Ext Provider,G306
http://opendatacommunities.org/id/london-borough-council/sutton,London Borough of Sutton,30/12/2019,40377751,633.82 ,Choice Support,12929,Peoples Services Directorate,Supported Living - Ext Provider,G306
http://opendatacommunities.org/id/london-borough-council/sutton,London Borough of Sutton,30/12/2019,40377751,"1,794.46 ",Choice Support,12929,Peoples Services Directorate,Supported Living - Ext Provider,G306
http://opendatacommunities.org/id/london-borough-council/sutton,London Borough of Sutton,30/12/2019,40377752,"1,321.04 ",Choice Support,12929,Peoples Services Directorate,Supported Living - Ext Provider,G306
http://opendatacommunities.org/id/london-borough-council/sutton,London Borough of Sutton,30/12/2019,40377752,633.82 ,Choice Support,12929,Peoples Services Directorate,Supported Living - Ext Provider,G306
http://opendatacommunities.org/id/london-borough-council/sutton,London Borough of Sutton,30/12/2019,40377752,"1,662.18 ",Choice Support,12929,Peoples Services Directorate,Supported Living - Ext Provider,G306
http://opendatacommunities.org/id/london-borough-council/sutton,London Borough of Sutton,31/12/2019,40377753,887.35 ,Choice Support,12929,Peoples Services Directorate,Supported Living - Ext Provider,G306
http://opendatacommunities.org/id/london-borough-council/sutton,London Borough of Sutton,31/12/2019,40377753,"5,439.44 ",Choice Support,12929,Peoples Services Directorate,Supported Living - Ext Provider,G306
http://opendatacommunities.org/id/london-borough-council/sutton,London Borough of Sutton,31/12/2019,40377754,887.35 ,Choice Support,12929,Peoples Services Directorate,Supported Living - Ext Provider,G306
http://opendatacommunities.org/id/london-borough-council/sutton,London Borough of Sutton,31/12/2019,40377754,"5,460.83 ",Choice Support,12929,Peoples Services Directorate,Supported Living - Ext Provider,G306
http://opendatacommunities.org/id/london-borough-council/sutton,London Borough of Sutton,31/12/2019,40377755,887.35 ,Choice Support,12929,Peoples Services Directorate,Supported Living - Ext Provider,G306
http://opendatacommunities.org/id/london-borough-council/sutton,London Borough of Sutton,31/12/2019,40377755,"5,081.39 ",Choice Support,12929,Peoples Services Directorate,Supported Living - Ext Provider,G306
http://opendatacommunities.org/id/london-borough-council/sutton,London Borough of Sutton,31/12/2019,40377756,887.35 ,Choice Support,12929,Peoples Services Directorate,Supported Living - Ext Provider,G306
http://opendatacommunities.org/id/london-borough-council/sutton,London Borough of Sutton,31/12/2019,40377756,"5,088.52 ",Choice Support,12929,Peoples Services Directorate,Supported Living - Ext Provider,G306
http://opendatacommunities.org/id/london-borough-council/sutton,London Borough of Sutton,31/12/2019,40377757,887.35 ,Choice Support,12929,Peoples Services Directorate,Supported Living - Ext Provider,G306
http://opendatacommunities.org/id/london-borough-council/sutton,London Borough of Sutton,31/12/2019,40377757,"5,203.22 ",Choice Support,12929,Peoples Services Directorate,Supported Living - Ext Provider,G306
http://opendatacommunities.org/id/london-borough-council/sutton,London Borough of Sutton,30/12/2019,40377766,"3,448.48 ",Choice Support,12929,Peoples Services Directorate,Supported Living - Ext Provider,G306
http://opendatacommunities.org/id/london-borough-council/sutton,London Borough of Sutton,30/12/2019,40377766,633.82 ,Choice Support,12929,Peoples Services Directorate,Supported Living - Ext Provider,G306
http://opendatacommunities.org/id/london-borough-council/sutton,London Borough of Sutton,30/12/2019,40377766,"2,850.50 ",Choice Support,12929,Peoples Services Directorate,Supported Living - Ext Provider,G306
http://opendatacommunities.org/id/london-borough-council/sutton,London Borough of Sutton,31/10/2019,40377774,845.37 ,Choice Support,12929,Peoples Services Directorate,Supported Living - Ext Provider,G306
http://opendatacommunities.org/id/london-borough-council/sutton,London Borough of Sutton,31/10/2019,40377774,"4,693.71 ",Choice Support,12929,Peoples Services Directorate,Supported Living - Ext Provider,G306
http://opendatacommunities.org/id/london-borough-council/sutton,London Borough of Sutton,13/08/2019,40377775,845.37 ,Choice Support,12929,Peoples Services Directorate,Supported Living - Ext Provider,G306
http://opendatacommunities.org/id/london-borough-council/sutton,London Borough of Sutton,13/08/2019,40377775,"4,693.71 ",Choice Support,12929,Peoples Services Directorate,Supported Living - Ext Provider,G306
http://opendatacommunities.org/id/london-borough-council/sutton,London Borough of Sutton,30/11/2019,40377776,818.10 ,Choice Support,12929,Peoples Services Directorate,Supported Living - Ext Provider,G306
http://opendatacommunities.org/id/london-borough-council/sutton,London Borough of Sutton,30/11/2019,40377776,"4,542.30 ",Choice Support,12929,Peoples Services Directorate,Supported Living - Ext Provider,G306
http://opendatacommunities.org/id/london-borough-council/sutton,London Borough of Sutton,01/10/2019,40377777,818.10 ,Choice Support,12929,Peoples Services Directorate,Supported Living - Ext Provider,G306
http://opendatacommunities.org/id/london-borough-council/sutton,London Borough of Sutton,01/10/2019,40377777,"4,542.30 ",Choice Support,12929,Peoples Services Directorate,Supported Living - Ext Provider,G306
http://opendatacommunities.org/id/london-borough-council/sutton,London Borough of Sutton,23/01/2020,40380289,"2,420.12 ",Choice Support,12929,Peoples Services Directorate,Supported Living - Ext Provider,G306
http://opendatacommunities.org/id/london-borough-council/sutton,London Borough of Sutton,23/01/2020,40380289,"1,688.52 ",Choice Support,12929,Peoples Services Directorate,Supported Living - Ext Provider,G306
http://opendatacommunities.org/id/london-borough-council/sutton,London Borough of Sutton,23/01/2020,40380291,"2,946.24 ",Choice Support,12929,Peoples Services Directorate,Supported Living - Ext Provider,G306
http://opendatacommunities.org/id/london-borough-council/sutton,London Borough of Sutton,23/01/2020,40380291,"1,192.52 ",Choice Support,12929,Peoples Services Directorate,Supported Living - Ext Provider,G306
http://opendatacommunities.org/id/london-borough-council/sutton,London Borough of Sutton,23/01/2020,40380292,"2,665.64 ",Choice Support,12929,Peoples Services Directorate,Supported Living - Ext Provider,G306
http://opendatacommunities.org/id/london-borough-council/sutton,London Borough of Sutton,23/01/2020,40380292,"1,697.82 ",Choice Support,12929,Peoples Services Directorate,Supported Living - Ext Provider,G306
http://opendatacommunities.org/id/london-borough-council/sutton,London Borough of Sutton,23/01/2020,40380293,"2,490.28 ",Choice Support,12929,Peoples Services Directorate,Supported Living - Ext Provider,G306
http://opendatacommunities.org/id/london-borough-council/sutton,London Borough of Sutton,23/01/2020,40380293,"1,697.82 ",Choice Support,12929,Peoples Services Directorate,Supported Living - Ext Provider,G306
http://opendatacommunities.org/id/london-borough-council/sutton,London Borough of Sutton,23/01/2020,40380294,"3,261.90 ",Choice Support,12929,Peoples Services Directorate,Supported Living - Ext Provider,G306
http://opendatacommunities.org/id/london-borough-council/sutton,London Borough of Sutton,23/01/2020,40380294,"1,697.82 ",Choice Support,12929,Peoples Services Directorate,Supported Living - Ext Provider,G306
http://opendatacommunities.org/id/london-borough-council/sutton,London Borough of Sutton,23/01/2020,40380297,"3,675.10 ",Choice Support,12929,Peoples Services Directorate,Supported Living - Ext Provider,G306
http://opendatacommunities.org/id/london-borough-council/sutton,London Borough of Sutton,23/01/2020,40380297,574.87 ,Choice Support,12929,Peoples Services Directorate,Supported Living - Ext Provider,G306
http://opendatacommunities.org/id/london-borough-council/sutton,London Borough of Sutton,23/01/2020,40380300,"2,490.28 ",Choice Support,12929,Peoples Services Directorate,Supported Living - Ext Provider,G306
http://opendatacommunities.org/id/london-borough-council/sutton,London Borough of Sutton,23/01/2020,40380300,"1,697.82 ",Choice Support,12929,Peoples Services Directorate,Supported Living - Ext Provider,G306
http://opendatacommunities.org/id/london-borough-council/sutton,London Borough of Sutton,23/01/2020,40380301,"2,735.80 ",Choice Support,12929,Peoples Services Directorate,Supported Living - Ext Provider,G306
http://opendatacommunities.org/id/london-borough-council/sutton,London Borough of Sutton,23/01/2020,40380301,"1,697.82 ",Choice Support,12929,Peoples Services Directorate,Supported Living - Ext Provider,G306
http://opendatacommunities.org/id/london-borough-council/sutton,London Borough of Sutton,23/01/2020,40380302,"2,349.98 ",Choice Support,12929,Peoples Services Directorate,Supported Living - Ext Provider,G306
http://opendatacommunities.org/id/london-borough-council/sutton,London Borough of Sutton,23/01/2020,40380302,477.63 ,Choice Support,12929,Peoples Services Directorate,Supported Living - Ext Provider,G306
http://opendatacommunities.org/id/london-borough-council/sutton,London Borough of Sutton,23/01/2020,40380302,"1,651.99 ",Choice Support,12929,Peoples Services Directorate,Supported Living - Ext Provider,G306
http://opendatacommunities.org/id/london-borough-council/sutton,London Borough of Sutton,23/01/2020,40380303,"2,285.45 ",Choice Support,12929,Peoples Services Directorate,Supported Living - Ext Provider,G306
http://opendatacommunities.org/id/london-borough-council/sutton,London Borough of Sutton,23/01/2020,40380303,477.63 ,Choice Support,12929,Peoples Services Directorate,Supported Living - Ext Provider,G306
http://opendatacommunities.org/id/london-borough-council/sutton,London Borough of Sutton,23/01/2020,40380303,"1,616.91 ",Choice Support,12929,Peoples Services Directorate,Supported Living - Ext Provider,G306
http://opendatacommunities.org/id/london-borough-council/sutton,London Borough of Sutton,23/01/2020,40380304,"5,165.04 ",Choice Support,12929,Peoples Services Directorate,Supported Living - Ext Provider,G306
http://opendatacommunities.org/id/london-borough-council/sutton,London Borough of Sutton,23/01/2020,40380304,446.14 ,Choice Support,12929,Peoples Services Directorate,Supported Living - Ext Provider,G306
http://opendatacommunities.org/id/london-borough-council/sutton,London Borough of Sutton,23/01/2020,40380305,"6,281.76 ",Choice Support,12929,Peoples Services Directorate,Supported Living - Ext Provider,G306
http://opendatacommunities.org/id/london-borough-council/sutton,London Borough of Sutton,23/01/2020,40380305,949.92 ,Choice Support,12929,Peoples Services Directorate,Supported Living - Ext Provider,G306
http://opendatacommunities.org/id/london-borough-council/sutton,London Borough of Sutton,23/01/2020,40380308,"1,999.24 ",Choice Support,12929,Peoples Services Directorate,Supported Living - Ext Provider,G306
http://opendatacommunities.org/id/london-borough-council/sutton,London Borough of Sutton,23/01/2020,40380308,"1,052.22 ",Choice Support,12929,Peoples Services Directorate,Supported Living - Ext Provider,G306
http://opendatacommunities.org/id/london-borough-council/sutton,London Borough of Sutton,23/01/2020,40380309,"4,068.62 ",Choice Support,12929,Peoples Services Directorate,Supported Living - Ext Provider,G306
http://opendatacommunities.org/id/london-borough-council/sutton,London Borough of Sutton,23/01/2020,40380309,"1,688.52 ",Choice Support,12929,Peoples Services Directorate,Supported Living - Ext Provider,G306
http://opendatacommunities.org/id/london-borough-council/sutton,London Borough of Sutton,23/01/2020,40380310,"4,068.62 ",Choice Support,12929,Peoples Services Directorate,Supported Living - Ext Provider,G306
http://opendatacommunities.org/id/london-borough-council/sutton,London Borough of Sutton,23/01/2020,40380310,860.07 ,Choice Support,12929,Peoples Services Directorate,Supported Living - Ext Provider,G306
http://opendatacommunities.org/id/london-borough-council/sutton,London Borough of Sutton,23/01/2020,40380315,"3,928.32 ",Choice Support,12929,Peoples Services Directorate,Supported Living - Ext Provider,G306
http://opendatacommunities.org/id/london-borough-council/sutton,London Borough of Sutton,23/01/2020,40380315,"1,688.52 ",Choice Support,12929,Peoples Services Directorate,Supported Living - Ext Provider,G306
http://opendatacommunities.org/id/london-borough-council/sutton,London Borough of Sutton,23/01/2020,40380316,"3,156.68 ",Choice Support,12929,Peoples Services Directorate,Supported Living - Ext Provider,G306
http://opendatacommunities.org/id/london-borough-council/sutton,London Borough of Sutton,23/01/2020,40380316,"1,697.82 ",Choice Support,12929,Peoples Services Directorate,Supported Living - Ext Provider,G306
http://opendatacommunities.org/id/london-borough-council/sutton,London Borough of Sutton,23/01/2020,40380317,"3,402.20 ",Choice Support,12929,Peoples Services Directorate,Supported Living - Ext Provider,G306
http://opendatacommunities.org/id/london-borough-council/sutton,London Borough of Sutton,23/01/2020,40380317,"1,688.52 ",Choice Support,12929,Peoples Services Directorate,Supported Living - Ext Provider,G306
http://opendatacommunities.org/id/london-borough-council/sutton,London Borough of Sutton,23/01/2020,40380319,"1,402.98 ",Choice Support,12929,Peoples Services Directorate,Supported Living - Ext Provider,G306
http://opendatacommunities.org/id/london-borough-council/sutton,London Borough of Sutton,23/01/2020,40380319,"2,400.46 ",Choice Support,12929,Peoples Services Directorate,Supported Living - Ext Provider,G306
http://opendatacommunities.org/id/london-borough-council/sutton,London Borough of Sutton,23/01/2020,40380319,477.63 ,Choice Support,12929,Peoples Services Directorate,Supported Living - Ext Provider,G306
http://opendatacommunities.org/id/london-borough-council/sutton,London Borough of Sutton,23/01/2020,40380320,"2,951.43 ",Choice Support,12929,Peoples Services Directorate,Supported Living - Ext Provider,G306
http://opendatacommunities.org/id/london-borough-council/sutton,London Borough of Sutton,23/01/2020,40380320,"1,688.52 ",Choice Support,12929,Peoples Services Directorate,Supported Living - Ext Provider,G306
http://opendatacommunities.org/id/london-borough-council/sutton,London Borough of Sutton,23/01/2020,40380321,"2,791.91 ",Choice Support,12929,Peoples Services Directorate,Supported Living - Ext Provider,G306
http://opendatacommunities.org/id/london-borough-council/sutton,London Borough of Sutton,23/01/2020,40380321,"1,431.04 ",Choice Support,12929,Peoples Services Directorate,Supported Living - Ext Provider,G306
http://opendatacommunities.org/id/london-borough-council/sutton,London Borough of Sutton,23/01/2020,40380321,860.07 ,Choice Support,12929,Peoples Services Directorate,Supported Living - Ext Provider,G306
http://opendatacommunities.org/id/london-borough-council/sutton,London Borough of Sutton,23/01/2020,40380322,"2,112.42 ",Choice Support,12929,Peoples Services Directorate,Supported Living - Ext Provider,G306
http://opendatacommunities.org/id/london-borough-council/sutton,London Borough of Sutton,23/01/2020,40380322,477.63 ,Choice Support,12929,Peoples Services Directorate,Supported Living - Ext Provider,G306
http://opendatacommunities.org/id/london-borough-council/sutton,London Borough of Sutton,23/01/2020,40380322,"1,881.44 ",Choice Support,12929,Peoples Services Directorate,Supported Living - Ext Provider,G306
http://opendatacommunities.org/id/london-borough-council/sutton,London Borough of Sutton,23/01/2020,40380323,"2,665.64 ",Choice Support,12929,Peoples Services Directorate,Supported Living - Ext Provider,G306
http://opendatacommunities.org/id/london-borough-council/sutton,London Borough of Sutton,23/01/2020,40380323,"1,697.82 ",Choice Support,12929,Peoples Services Directorate,Supported Living - Ext Provider,G306
http://opendatacommunities.org/id/london-borough-council/sutton,London Borough of Sutton,23/01/2020,40380329,"2,314.90 ",Choice Support,12929,Peoples Services Directorate,Supported Living - Ext Provider,G306
http://opendatacommunities.org/id/london-borough-council/sutton,London Borough of Sutton,23/01/2020,40380329,477.63 ,Choice Support,12929,Peoples Services Directorate,Supported Living - Ext Provider,G306
http://opendatacommunities.org/id/london-borough-council/sutton,London Borough of Sutton,23/01/2020,40380329,"1,626.03 ",Choice Support,12929,Peoples Services Directorate,Supported Living - Ext Provider,G306
http://opendatacommunities.org/id/london-borough-council/sutton,London Borough of Sutton,23/01/2020,40380330,"3,156.68 ",Choice Support,12929,Peoples Services Directorate,Supported Living - Ext Provider,G306
http://opendatacommunities.org/id/london-borough-council/sutton,London Borough of Sutton,23/01/2020,40380330,"1,697.82 ",Choice Support,12929,Peoples Services Directorate,Supported Living - Ext Provider,G306
http://opendatacommunities.org/id/london-borough-council/sutton,London Borough of Sutton,23/01/2020,40380331,"2,069.38 ",Choice Support,12929,Peoples Services Directorate,Supported Living - Ext Provider,G306
http://opendatacommunities.org/id/london-borough-council/sutton,London Borough of Sutton,23/01/2020,40380331,"1,599.37 ",Choice Support,12929,Peoples Services Directorate,Supported Living - Ext Provider,G306
http://opendatacommunities.org/id/london-borough-council/sutton,London Borough of Sutton,23/01/2020,40380331,477.63 ,Choice Support,12929,Peoples Services Directorate,Supported Living - Ext Provider,G306
http://opendatacommunities.org/id/london-borough-council/sutton,London Borough of Sutton,24/01/2020,40380982,"5,509.00 ",Choice Support,12929,Peoples Services Directorate,Residential Care - Ext Provider,G310
http://opendatacommunities.org/id/london-borough-council/sutton,London Borough of Sutton,22/01/2020,1286406,600.00 ,Christchurch Fledgelings Pre-School,10896,Peoples Services Directorate,Non-Maintained Childrens' Nurseries - 3 & 4 yr olds,G405
http://opendatacommunities.org/id/london-borough-council/sutton,London Borough of Sutton,30/12/2019,6963868,768.00 ,Christine Ryan,32360,"Environment, Housing & Regeneration Directorate",Temporary Protection - Homeless Persons,H300
http://opendatacommunities.org/id/london-borough-council/sutton,London Borough of Sutton,08/01/2020,6964084,997.10 ,Christopher Millar,34823,"Environment, Housing & Regeneration Directorate",Temporary Protection - Homeless Persons,H300
http://opendatacommunities.org/id/london-borough-council/sutton,London Borough of Sutton,08/12/2019,6964085,997.10 ,Christopher Millar,34823,"Environment, Housing & Regeneration Directorate",Temporary Protection - Homeless Persons,H300
http://opendatacommunities.org/id/london-borough-council/sutton,London Borough of Sutton,16/01/2020,6964710,828.06 ,Chroma Vision Limited,20351,"Environment, Housing & Regeneration Directorate",CCTV Rapid Deployment Cameras,F341
http://opendatacommunities.org/id/london-borough-council/sutton,London Borough of Sutton,27/01/2020,6965236,660.00 ,Chroma Vision Limited,20351,"Environment, Housing & Regeneration Directorate",CCTV Rapid Deployment Cameras,F341
http://opendatacommunities.org/id/london-borough-council/sutton,London Borough of Sutton,30/01/2020,1287041,490.00 ,Churchfields Primary School,35179,Peoples Services Directorate,Payments to Schools,G065
http://opendatacommunities.org/id/london-borough-council/sutton,London Borough of Sutton,30/01/2020,1287042,"2,300.00 ",Churchfields Primary School,35179,Peoples Services Directorate,Payments to Schools,G065
http://opendatacommunities.org/id/london-borough-council/sutton,London Borough of Sutton,20/01/2020,6964879,487.00 ,CICM Services LTD,35187,Peoples Services Directorate,Fees - Consultants (Ad Hoc),F283
http://opendatacommunities.org/id/london-borough-council/sutton,London Borough of Sutton,08/09/2019,1285803,"27,675.00 ",Cirrus Primary Academy Trust t/a Barrow Hedges Primary School Academy,30237,Peoples Services Directorate,Top-up Funding,G064
http://opendatacommunities.org/id/london-borough-council/sutton,London Borough of Sutton,01/01/2020,1286022,"27,675.00 ",Cirrus Primary Academy Trust t/a Barrow Hedges Primary School Academy,30237,Peoples Services Directorate,Top-up Funding,G064
http://opendatacommunities.org/id/london-borough-council/sutton,London Borough of Sutton,14/11/2019,6964366,980.10 ,City & Guilds,10967,Peoples Services Directorate,Fees - Exams,F285
http://opendatacommunities.org/id/london-borough-council/sutton,London Borough of Sutton,09/01/2020,6965098,491.40 ,City & Guilds,10967,Peoples Services Directorate,Fees - Exams,F285
http://opendatacommunities.org/id/london-borough-council/sutton,London Borough of Sutton,10/12/2019,6963554,"7,089.27 ",City of London Corporation,22388,"Environment, Housing & Regeneration Directorate",Asbestos CA Disposal,G173
http://opendatacommunities.org/id/london-borough-council/sutton,London Borough of Sutton,31/12/2019,6964107,"3,160.65 ",City Sprint UK (Excel) Ltd,26267,Chief Executive's Directorate,Hired Vehicles,E070
http://opendatacommunities.org/id/london-borough-council/sutton,London Borough of Sutton,08/11/2019,6960931,720.76 ,City Suburban Tree Surgeons,24817,"Environment, Housing & Regeneration Directorate",Trees,G401
http://opendatacommunities.org/id/london-borough-council/sutton,London Borough of Sutton,23/12/2019,6963632,"5,945.36 ",City Suburban Tree Surgeons,24817,"Environment, Housing & Regeneration Directorate",Highway Trees - Maintenance,D560
http://opendatacommunities.org/id/london-borough-council/sutton,London Borough of Sutton,15/01/2020,6964549,"6,160.00 ",City Suburban Tree Surgeons,24817,"Environment, Housing & Regeneration Directorate",Highway Trees - Maintenance,D560
http://opendatacommunities.org/id/london-borough-council/sutton,London Borough of Sutton,15/01/2020,6964553,436.44 ,City Suburban Tree Surgeons,24817,"Environment, Housing & Regeneration Directorate",Trees,G401
http://opendatacommunities.org/id/london-borough-council/sutton,London Borough of Sutton,15/01/2020,6964557,"3,777.98 ",City Suburban Tree Surgeons,24817,"Environment, Housing & Regeneration Directorate",Highway Trees - Maintenance,D560
http://opendatacommunities.org/id/london-borough-council/sutton,London Borough of Sutton,15/01/2020,6964558,"6,729.76 ",City Suburban Tree Surgeons,24817,"Environment, Housing & Regeneration Directorate",Emergency Repairs,D540
http://opendatacommunities.org/id/london-borough-council/sutton,London Borough of Sutton,31/12/2019,6963816,"8,292.39 ",Civica UK Ltd,10978,Resources Directorate,IT Licences,F385
http://opendatacommunities.org/id/london-borough-council/sutton,London Borough of Sutton,30/12/2019,6964669,"13,851.00 ",Civica UK Ltd,10978,Resources Directorate,IT Licences,F385
http://opendatacommunities.org/id/london-borough-council/sutton,London Borough of Sutton,30/12/2019,6964670,927.00 ,Civica UK Ltd,10978,Resources Directorate,IT Licences,F385
http://opendatacommunities.org/id/london-borough-council/sutton,London Borough of Sutton,30/12/2019,6964671,"9,084.84 ",Civica UK Ltd,10978,Resources Directorate,IT Licences,F385
http://opendatacommunities.org/id/london-borough-council/sutton,London Borough of Sutton,30/12/2019,6964672,528.57 ,Civica UK Ltd,10978,Resources Directorate,IT Licences,F385
http://opendatacommunities.org/id/london-borough-council/sutton,London Borough of Sutton,30/12/2019,6964673,"9,084.84 ",Civica UK Ltd,10978,Resources Directorate,IT Licences,F385
http://opendatacommunities.org/id/london-borough-council/sutton,London Borough of Sutton,30/12/2019,6964674,"1,547.60 ",Civica UK Ltd,10978,Resources Directorate,IT Licences,F385
http://opendatacommunities.org/id/london-borough-council/sutton,London Borough of Sutton,30/12/2019,6964675,927.00 ,Civica UK Ltd,10978,Resources Directorate,IT Licences,F385
http://opendatacommunities.org/id/london-borough-council/sutton,London Borough of Sutton,30/12/2019,6964676,"1,547.60 ",Civica UK Ltd,10978,Resources Directorate,IT Licences,F385
http://opendatacommunities.org/id/london-borough-council/sutton,London Borough of Sutton,30/12/2019,6964677,528.57 ,Civica UK Ltd,10978,Resources Directorate,IT Licences,F385
http://opendatacommunities.org/id/london-borough-council/sutton,London Borough of Sutton,27/01/2020,6965229,"7,133.80 ",Civica UK Ltd,10978,Resources Directorate,IT Licences,F385
http://opendatacommunities.org/id/london-borough-council/sutton,London Borough of Sutton,24/01/2020,40380763,"3,432.64 ",Claremont Care Svs Ltd,18724,Peoples Services Directorate,Nursing Care - Ext Provider,G311
http://opendatacommunities.org/id/london-borough-council/sutton,London Borough of Sutton,24/01/2020,40380928,"4,200.00 ",Claremont Care Svs Ltd,18724,Peoples Services Directorate,Nursing Care - Ext Provider,G311
http://opendatacommunities.org/id/london-borough-council/sutton,London Borough of Sutton,24/01/2020,40380946,"4,374.00 ",Claremont Care Svs Ltd,18724,Peoples Services Directorate,Nursing Care - Ext Provider,G311
http://opendatacommunities.org/id/london-borough-council/sutton,London Borough of Sutton,24/01/2020,40380953,"4,032.64 ",Claremont Care Svs Ltd,18724,Peoples Services Directorate,Nursing Care - Ext Provider,G311
http://opendatacommunities.org/id/london-borough-council/sutton,London Borough of Sutton,30/01/2020,1287138,678.23 ,Clarion Housing Association Ltd,32192,Peoples Services Directorate,Approved Lodgings,H323
http://opendatacommunities.org/id/london-borough-council/sutton,London Borough of Sutton,10/01/2020,6964308,"15,300.00 ",Cleaner Greener Safer Happier Ltd,29981,"Environment, Housing & Regeneration Directorate",Fees - Consultants (Ad Hoc),F283
http://opendatacommunities.org/id/london-borough-council/sutton,London Borough of Sutton,10/01/2020,6964311,"10,335.00 ",Cleaner Greener Safer Happier Ltd,29981,"Environment, Housing & Regeneration Directorate",Fees - Consultants (Ad Hoc),F283
http://opendatacommunities.org/id/london-borough-council/sutton,London Borough of Sutton,10/01/2020,6964312,"1,900.00 ",Cleaner Greener Safer Happier Ltd,29981,"Environment, Housing & Regeneration Directorate",Fees - Consultants (Ad Hoc),F283
http://opendatacommunities.org/id/london-borough-council/sutton,London Borough of Sutton,30/12/2019,6964004,"1,500.26 ",Clear Channel Uk,20254,Chief Executive's Directorate,Advertising/Publicity (non Staff),F240
http://opendatacommunities.org/id/london-borough-council/sutton,London Borough of Sutton,10/12/2019,6964946,"4,235.00 ",Closomat Ltd,99815,"Environment, Housing & Regeneration Directorate",Grants -Made,Y610
http://opendatacommunities.org/id/london-borough-council/sutton,London Borough of Sutton,10/12/2019,40374279,445.25 ,Clovecare Ltd,33431,Peoples Services Directorate,Home Care,G334
http://opendatacommunities.org/id/london-borough-council/sutton,London Borough of Sutton,10/12/2019,40374281,469.00 ,Clovecare Ltd,33431,Peoples Services Directorate,Home Care,G334
http://opendatacommunities.org/id/london-borough-council/sutton,London Borough of Sutton,10/12/2019,40374292,803.00 ,Clovecare Ltd,33431,Peoples Services Directorate,Home Care,G334
http://opendatacommunities.org/id/london-borough-council/sutton,London Borough of Sutton,14/05/2019,40375039,438.50 ,Clovecare Ltd,33431,Peoples Services Directorate,Home Care,G334
http://opendatacommunities.org/id/london-borough-council/sutton,London Borough of Sutton,16/12/2019,40376219,469.00 ,Clovecare Ltd,33431,Peoples Services Directorate,Home Care,G334
http://opendatacommunities.org/id/london-borough-council/sutton,London Borough of Sutton,16/12/2019,40376223,445.25 ,Clovecare Ltd,33431,Peoples Services Directorate,Home Care,G334
http://opendatacommunities.org/id/london-borough-council/sutton,London Borough of Sutton,16/12/2019,40376227,803.00 ,Clovecare Ltd,33431,Peoples Services Directorate,Home Care,G334
http://opendatacommunities.org/id/london-borough-council/sutton,London Borough of Sutton,23/12/2019,40377206,803.00 ,Clovecare Ltd,33431,Peoples Services Directorate,Home Care,G334
http://opendatacommunities.org/id/london-borough-council/sutton,London Borough of Sutton,23/12/2019,40377223,445.25 ,Clovecare Ltd,33431,Peoples Services Directorate,Home Care,G334
http://opendatacommunities.org/id/london-borough-council/sutton,London Borough of Sutton,23/12/2019,40378549,469.00 ,Clovecare Ltd,33431,Peoples Services Directorate,Home Care,G334
http://opendatacommunities.org/id/london-borough-council/sutton,London Borough of Sutton,30/12/2019,40378596,456.00 ,Clovecare Ltd,33431,Peoples Services Directorate,Home Care,G334
http://opendatacommunities.org/id/london-borough-council/sutton,London Borough of Sutton,30/12/2019,40378597,834.00 ,Clovecare Ltd,33431,Peoples Services Directorate,Home Care,G334
http://opendatacommunities.org/id/london-borough-council/sutton,London Borough of Sutton,30/12/2019,40378606,533.00 ,Clovecare Ltd,33431,Peoples Services Directorate,Home Care,G334
http://opendatacommunities.org/id/london-borough-council/sutton,London Borough of Sutton,30/12/2019,40378619,499.75 ,Clovecare Ltd,33431,Peoples Services Directorate,Home Care,G334
http://opendatacommunities.org/id/london-borough-council/sutton,London Borough of Sutton,24/01/2020,40380813,"2,600.00 ",Cloyda Limited,20402,Peoples Services Directorate,Residential Care - Ext Provider,G310
http://opendatacommunities.org/id/london-borough-council/sutton,London Borough of Sutton,23/01/2020,40380298,"3,162.00 ",Cmg Homes Ltd,11026,Peoples Services Directorate,Supported Living - Ext Provider,G306
http://opendatacommunities.org/id/london-borough-council/sutton,London Borough of Sutton,23/01/2020,40380306,"3,662.42 ",Cmg Homes Ltd,11026,Peoples Services Directorate,Supported Living - Ext Provider,G306
http://opendatacommunities.org/id/london-borough-council/sutton,London Borough of Sutton,23/01/2020,40380307,"3,675.72 ",Cmg Homes Ltd,11026,Peoples Services Directorate,Supported Living - Ext Provider,G306
http://opendatacommunities.org/id/london-borough-council/sutton,London Borough of Sutton,23/01/2020,40380318,"4,592.42 ",Cmg Homes Ltd,11026,Peoples Services Directorate,Supported Living - Ext Provider,G306
http://opendatacommunities.org/id/london-borough-council/sutton,London Borough of Sutton,24/01/2020,40380738,"5,416.92 ",Cmg Homes Ltd,11026,Peoples Services Directorate,Residential Care - Ext Provider,G310
http://opendatacommunities.org/id/london-borough-council/sutton,London Borough of Sutton,24/01/2020,40380976,"7,036.00 ",Cmg Homes Ltd,11026,Peoples Services Directorate,Residential Care - Ext Provider,G310
http://opendatacommunities.org/id/london-borough-council/sutton,London Borough of Sutton,31/12/2019,6963989,"4,623.78 ",Cobalt Telephone Technologies,15645,"Environment, Housing & Regeneration Directorate",Credit Card Commission,F460
http://opendatacommunities.org/id/london-borough-council/sutton,London Borough of Sutton,01/12/2019,40373294,"1,806.99 ",Cognithan Ltd,29938,Peoples Services Directorate,Supported Living - Ext Provider,G306
http://opendatacommunities.org/id/london-borough-council/sutton,London Borough of Sutton,29/10/2019,6960703,"1,300.00 ",Cognus Ltd,26829,"Environment, Housing & Regeneration Directorate",Community Initiatives,F322
http://opendatacommunities.org/id/london-borough-council/sutton,London Borough of Sutton,09/01/2020,6964176,"196,900.00 ",Cognus Ltd,26829,Peoples Services Directorate,Contractual Consultant Fees,G430
http://opendatacommunities.org/id/london-borough-council/sutton,London Borough of Sutton,09/01/2020,6964176,"166,450.00 ",Cognus Ltd,26829,Peoples Services Directorate,Contractual Consultant Fees,G430
http://opendatacommunities.org/id/london-borough-council/sutton,London Borough of Sutton,17/01/2020,6964740,"659,620.00 ",Cognus Ltd,26829,Peoples Services Directorate,Special Educational Needs,G331
http://opendatacommunities.org/id/london-borough-council/sutton,London Borough of Sutton,24/01/2020,40380918,"4,101.10 ",Coleg Elidyr Camphill Communities,28764,Peoples Services Directorate,Interim Placements - Ext Provider,G317
http://opendatacommunities.org/id/london-borough-council/sutton,London Borough of Sutton,16/12/2019,40374347,504.00 ,Community Home Care Provider,11097,Peoples Services Directorate,Home Care,G334
http://opendatacommunities.org/id/london-borough-council/sutton,London Borough of Sutton,30/12/2019,40374348,472.00 ,Community Home Care Provider,11097,Peoples Services Directorate,Home Care,G334
http://opendatacommunities.org/id/london-borough-council/sutton,London Borough of Sutton,30/12/2019,40374349,512.00 ,Community Home Care Provider,11097,Peoples Services Directorate,Home Care,G334
http://opendatacommunities.org/id/london-borough-council/sutton,London Borough of Sutton,09/12/2019,40374383,472.00 ,Community Home Care Provider,11097,Peoples Services Directorate,Home Care,G334
http://opendatacommunities.org/id/london-borough-council/sutton,London Borough of Sutton,16/12/2019,40374395,560.00 ,Community Home Care Provider,11097,Peoples Services Directorate,Home Care,G334
http://opendatacommunities.org/id/london-borough-council/sutton,London Borough of Sutton,16/12/2019,40374398,560.00 ,Community Home Care Provider,11097,Peoples Services Directorate,Home Care,G334
http://opendatacommunities.org/id/london-borough-council/sutton,London Borough of Sutton,16/12/2019,40374458,472.00 ,Community Home Care Provider,11097,Peoples Services Directorate,Home Care,G334
http://opendatacommunities.org/id/london-borough-council/sutton,London Borough of Sutton,23/12/2019,40374483,472.00 ,Community Home Care Provider,11097,Peoples Services Directorate,Home Care,G334
http://opendatacommunities.org/id/london-borough-council/sutton,London Borough of Sutton,23/12/2019,40374484,560.00 ,Community Home Care Provider,11097,Peoples Services Directorate,Home Care,G334
http://opendatacommunities.org/id/london-borough-council/sutton,London Borough of Sutton,30/12/2019,40374506,544.00 ,Community Home Care Provider,11097,Peoples Services Directorate,Home Care,G334
http://opendatacommunities.org/id/london-borough-council/sutton,London Borough of Sutton,09/12/2019,40374508,560.00 ,Community Home Care Provider,11097,Peoples Services Directorate,Home Care,G334
http://opendatacommunities.org/id/london-borough-council/sutton,London Borough of Sutton,23/12/2019,40374510,504.00 ,Community Home Care Provider,11097,Peoples Services Directorate,Home Care,G334
http://opendatacommunities.org/id/london-borough-council/sutton,London Borough of Sutton,16/12/2019,40374515,816.00 ,Community Home Care Provider,11097,Peoples Services Directorate,Home Care,G334
http://opendatacommunities.org/id/london-borough-council/sutton,London Borough of Sutton,30/12/2019,40374516,504.00 ,Community Home Care Provider,11097,Peoples Services Directorate,Home Care,G334
http://opendatacommunities.org/id/london-borough-council/sutton,London Borough of Sutton,09/12/2019,40374539,560.00 ,Community Home Care Provider,11097,Peoples Services Directorate,Home Care,G334
http://opendatacommunities.org/id/london-borough-council/sutton,London Borough of Sutton,09/12/2019,40374540,504.00 ,Community Home Care Provider,11097,Peoples Services Directorate,Home Care,G334
http://opendatacommunities.org/id/london-borough-council/sutton,London Borough of Sutton,23/12/2019,40374542,560.00 ,Community Home Care Provider,11097,Peoples Services Directorate,Home Care,G334
http://opendatacommunities.org/id/london-borough-council/sutton,London Borough of Sutton,30/12/2019,40374544,744.00 ,Community Home Care Provider,11097,Peoples Services Directorate,Home Care,G334
http://opendatacommunities.org/id/london-borough-council/sutton,London Borough of Sutton,31/12/2019,1285794,"3,542.99 ",Compass Children's Homes Ltd,26810,Peoples Services Directorate,Independent Schools,G325
http://opendatacommunities.org/id/london-borough-council/sutton,London Borough of Sutton,01/12/2019,40375631,"3,250.35 ",Compass Fostering Eastern Ltd,32193,Peoples Services Directorate,Foster Parents,G326
http://opendatacommunities.org/id/london-borough-council/sutton,London Borough of Sutton,01/12/2019,40375658,"3,480.11 ",Compass Fostering Eastern Ltd,32193,Peoples Services Directorate,Foster Parents,G326
http://opendatacommunities.org/id/london-borough-council/sutton,London Borough of Sutton,01/12/2019,40375672,"4,495.00 ",Compass Fostering Eastern Ltd,32193,Peoples Services Directorate,Foster Parents,G326
http://opendatacommunities.org/id/london-borough-council/sutton,London Borough of Sutton,01/12/2019,40375628,"3,542.68 ",Compass Fostering London Ltd,25848,Peoples Services Directorate,Foster Parents,G326
http://opendatacommunities.org/id/london-borough-council/sutton,London Borough of Sutton,01/12/2019,40375649,"3,454.02 ",Compass Fostering London Ltd,25848,Peoples Services Directorate,Foster Parents,G326
http://opendatacommunities.org/id/london-borough-council/sutton,London Borough of Sutton,01/12/2019,40375650,"3,172.23 ",Compass Fostering London Ltd,25848,Peoples Services Directorate,Foster Parents,G326
http://opendatacommunities.org/id/london-borough-council/sutton,London Borough of Sutton,01/12/2019,40375651,"3,454.02 ",Compass Fostering London Ltd,25848,Peoples Services Directorate,Foster Parents,G326
http://opendatacommunities.org/id/london-borough-council/sutton,London Borough of Sutton,01/12/2019,40375652,"4,054.49 ",Compass Fostering South Ltd,27957,Peoples Services Directorate,Foster Parents,G326
http://opendatacommunities.org/id/london-borough-council/sutton,London Borough of Sutton,01/12/2019,40375678,"3,454.02 ",Compass Fostering West Ltd,34686,Peoples Services Directorate,Foster Parents,G326
http://opendatacommunities.org/id/london-borough-council/sutton,London Borough of Sutton,06/01/2020,6964741,831.76 ,Contract Security Services,23827,Resources Directorate,Security - Cash In Transit,G410
http://opendatacommunities.org/id/london-borough-council/sutton,London Borough of Sutton,22/01/2020,1286414,600.00 ,Co-operative Childcare,24665,Peoples Services Directorate,Non-Maintained Childrens' Nurseries - 3 & 4 yr olds,G405
http://opendatacommunities.org/id/london-borough-council/sutton,London Borough of Sutton,18/10/2019,6963739,610.79 ,Coram Voice,21584,Peoples Services Directorate,Secure Accommodation,G332
http://opendatacommunities.org/id/london-borough-council/sutton,London Borough of Sutton,11/12/2019,6964425,504.31 ,Coram Voice,21584,Peoples Services Directorate,Fees - Other,F299
http://opendatacommunities.org/id/london-borough-council/sutton,London Borough of Sutton,28/12/2019,6964093,930.00 ,Core Assets Children's Services Ltd,27511,Peoples Services Directorate,Provider Contract Payments,F470
http://opendatacommunities.org/id/london-borough-council/sutton,London Borough of Sutton,28/10/2019,6964575,870.00 ,Core Assets Children's Services Ltd,27511,Peoples Services Directorate,Provider Contract Payments,F470
http://opendatacommunities.org/id/london-borough-council/sutton,London Borough of Sutton,13/01/2020,6964711,"4,111.93 ",Corona Energy,11163,Resources Directorate,Gas - General,D610
http://opendatacommunities.org/id/london-borough-council/sutton,London Borough of Sutton,21/10/2019,40374557,520.80 ,COUNTY CARE INDEPENDENT LIVING LTD,34435,Peoples Services Directorate,Supported Living - Ext Provider,G306
http://opendatacommunities.org/id/london-borough-council/sutton,London Borough of Sutton,18/11/2019,40374558,445.20 ,COUNTY CARE INDEPENDENT LIVING LTD,34435,Peoples Services Directorate,Supported Living - Ext Provider,G306
http://opendatacommunities.org/id/london-borough-council/sutton,London Borough of Sutton,01/01/2020,6964367,"159,231.67 ",Cranstoun,11184,Chief Executive's Directorate,Provider Contract Payments,F470
http://opendatacommunities.org/id/london-borough-council/sutton,London Borough of Sutton,15/12/2019,6964035,"1,395.00 ",Crest Manor Ltd,25469,"Environment, Housing & Regeneration Directorate",Bed and Breakfast Accommodation,G400
http://opendatacommunities.org/id/london-borough-council/sutton,London Borough of Sutton,24/01/2020,40380762,"3,600.00 ",CRNH Ltd T/A St Judes Nursing Home,14297,Peoples Services Directorate,Nursing Care - Ext Provider,G311
http://opendatacommunities.org/id/london-borough-council/sutton,London Borough of Sutton,24/01/2020,40380777,"3,502.24 ",CRNH Ltd T/A St Judes Nursing Home,14297,Peoples Services Directorate,Nursing Care - Ext Provider,G311
http://opendatacommunities.org/id/london-borough-council/sutton,London Borough of Sutton,24/01/2020,40380889,"3,700.00 ",CRNH Ltd T/A St Judes Nursing Home,14297,Peoples Services Directorate,Nursing Care - Ext Provider,G311
http://opendatacommunities.org/id/london-borough-council/sutton,London Borough of Sutton,24/01/2020,40380958,"3,472.64 ",CRNH Ltd T/A St Judes Nursing Home,14297,Peoples Services Directorate,Nursing Care - Ext Provider,G311
http://opendatacommunities.org/id/london-borough-council/sutton,London Borough of Sutton,24/01/2020,40380998,"3,420.00 ",CRNH Ltd T/A St Judes Nursing Home,14297,Peoples Services Directorate,Nursing Care - Ext Provider,G311
http://opendatacommunities.org/id/london-borough-council/sutton,London Borough of Sutton,24/01/2020,40381011,"3,472.00 ",CRNH Ltd T/A St Judes Nursing Home,14297,Peoples Services Directorate,Nursing Care - Ext Provider,G311
http://opendatacommunities.org/id/london-borough-council/sutton,London Borough of Sutton,24/01/2020,40381071,"2,840.00 ",CRNH Ltd T/A St Judes Nursing Home,14297,Peoples Services Directorate,Nursing Care - Ext Provider,G311
http://opendatacommunities.org/id/london-borough-council/sutton,London Borough of Sutton,24/01/2020,40380722,"3,462.24 ",Cross Care Services Ltd,12165,Peoples Services Directorate,Nursing Care - Ext Provider,G311
http://opendatacommunities.org/id/london-borough-council/sutton,London Borough of Sutton,24/01/2020,40380758,"3,420.00 ",Cross Care Services Ltd,12165,Peoples Services Directorate,Nursing Care - Ext Provider,G311
http://opendatacommunities.org/id/london-borough-council/sutton,London Borough of Sutton,24/01/2020,40380858,"3,462.24 ",Cross Care Services Ltd,12165,Peoples Services Directorate,Nursing Care - Ext Provider,G311
http://opendatacommunities.org/id/london-borough-council/sutton,London Borough of Sutton,24/01/2020,40380901,"3,400.00 ",Cross Care Services Ltd,12165,Peoples Services Directorate,Nursing Care - Ext Provider,G311
http://opendatacommunities.org/id/london-borough-council/sutton,London Borough of Sutton,24/01/2020,40381027,"2,509.20 ",Cross Care Services Ltd,12165,Peoples Services Directorate,Nursing Care - Ext Provider,G311
http://opendatacommunities.org/id/london-borough-council/sutton,London Borough of Sutton,24/01/2020,40381068,"3,704.76 ",Cross Care Services Ltd,12165,Peoples Services Directorate,Nursing Care - Ext Provider,G311
http://opendatacommunities.org/id/london-borough-council/sutton,London Borough of Sutton,24/01/2020,40381075,"3,502.24 ",Cross Care Services Ltd,12165,Peoples Services Directorate,Nursing Care - Ext Provider,G311
http://opendatacommunities.org/id/london-borough-council/sutton,London Borough of Sutton,24/01/2020,40380709,"2,498.04 ",Crossways Community,11187,Peoples Services Directorate,Residential Care - Ext Provider,G310
http://opendatacommunities.org/id/london-borough-council/sutton,London Borough of Sutton,24/01/2020,40380750,"4,168.24 ",Crossways Community,11187,Peoples Services Directorate,Residential Care - Ext Provider,G310
http://opendatacommunities.org/id/london-borough-council/sutton,London Borough of Sutton,06/11/2019,6960826,"429,442.03 ",Croydon Council,11227,"Environment, Housing & Regeneration Directorate",Idverde - Contract Payment,G250
http://opendatacommunities.org/id/london-borough-council/sutton,London Borough of Sutton,11/11/2019,6961105,"467,206.75 ",Croydon Council,11227,"Environment, Housing & Regeneration Directorate",Idverde - Contract Payment,G250
http://opendatacommunities.org/id/london-borough-council/sutton,London Borough of Sutton,14/11/2019,6961496,"271,955.30 ",Croydon Council,11227,"Environment, Housing & Regeneration Directorate",Civic Amenity,G172
http://opendatacommunities.org/id/london-borough-council/sutton,London Borough of Sutton,19/11/2019,6961847,"129,760.87 ",Croydon Council,11227,"Environment, Housing & Regeneration Directorate",Idverde - Contract Payment,G250
http://opendatacommunities.org/id/london-borough-council/sutton,London Borough of Sutton,29/11/2019,6962311,"582,130.02 ",Croydon Council,11227,"Environment, Housing & Regeneration Directorate",Veolia - Contract Payment,G255
http://opendatacommunities.org/id/london-borough-council/sutton,London Borough of Sutton,11/11/2019,6962651,"587,572.47 ",Croydon Council,11227,"Environment, Housing & Regeneration Directorate",Veolia - Contract Payment,G255
http://opendatacommunities.org/id/london-borough-council/sutton,London Borough of Sutton,05/12/2019,6962670,"41,240.80 ",Croydon Council,11227,"Environment, Housing & Regeneration Directorate",Civic Amenity,G172
http://opendatacommunities.org/id/london-borough-council/sutton,London Borough of Sutton,10/12/2019,6963123,"274,971.33 ",Croydon Council,11227,"Environment, Housing & Regeneration Directorate",Gate Fee Tonnage,G105
http://opendatacommunities.org/id/london-borough-council/sutton,London Borough of Sutton,10/12/2019,6963130,"257,180.71 ",Croydon Council,11227,"Environment, Housing & Regeneration Directorate",Gate Fee Tonnage,G105
http://opendatacommunities.org/id/london-borough-council/sutton,London Borough of Sutton,06/01/2020,6964043,"35,678.59 ",Croydon Council,11227,"Environment, Housing & Regeneration Directorate",Civic Amenity,G172
http://opendatacommunities.org/id/london-borough-council/sutton,London Borough of Sutton,06/01/2020,6964044,"4,789.53 ",Croydon Council,11227,"Environment, Housing & Regeneration Directorate",Idverde - Contract Payment,G250
http://opendatacommunities.org/id/london-borough-council/sutton,London Borough of Sutton,06/01/2020,6964045,"115,996.14 ",Croydon Council,11227,"Environment, Housing & Regeneration Directorate",Idverde - Contract Payment,G250
http://opendatacommunities.org/id/london-borough-council/sutton,London Borough of Sutton,10/01/2020,6964431,"116,651.50 ",Croydon Council,11227,"Environment, Housing & Regeneration Directorate",Idverde - Contract Payment,G250
http://opendatacommunities.org/id/london-borough-council/sutton,London Borough of Sutton,16/01/2020,6964775,"5,654.38 ",Croydon Council,11227,"Environment, Housing & Regeneration Directorate",Idverde - Contract Payment,G250
http://opendatacommunities.org/id/london-borough-council/sutton,London Borough of Sutton,07/11/2019,6965351,"17,068.98 ",Croydon Health Service NHST,26283,Chief Executive's Directorate,Provider Contract Payments,F470
http://opendatacommunities.org/id/london-borough-council/sutton,London Borough of Sutton,01/01/2020,6964214,677.50 ,CSL Dualcom Ltd,28014,Resources Directorate,FM - Planned Maintenance Contract - Mitie,G613
http://opendatacommunities.org/id/london-borough-council/sutton,London Borough of Sutton,24/01/2020,40380913,"7,200.00 ",CSS Ltd t/a Grove Care,19184,Peoples Services Directorate,Residential Care - Ext Provider,G310
http://opendatacommunities.org/id/london-borough-council/sutton,London Borough of Sutton,08/09/2019,1285812,"4,925.00 ",Culvers House Primary School,11252,Peoples Services Directorate,Top-up Funding,G064
http://opendatacommunities.org/id/london-borough-council/sutton,London Borough of Sutton,01/01/2020,1286031,"4,925.00 ",Culvers House Primary School,11252,Peoples Services Directorate,Top-up Funding,G064
http://opendatacommunities.org/id/london-borough-council/sutton,London Borough of Sutton,07/12/2019,6963470,"25,106.00 ",Culvers House Primary School,11252,Peoples Services Directorate,Building Works -Main Contractor,Y350
http://opendatacommunities.org/id/london-borough-council/sutton,London Borough of Sutton,03/01/2020,6964071,746.00 ,D Karapinar,26474,"Environment, Housing & Regeneration Directorate",Temporary Protection - Homeless Persons,H300
http://opendatacommunities.org/id/london-borough-council/sutton,London Borough of Sutton,03/01/2020,6964105,746.00 ,D Karapinar,26474,"Environment, Housing & Regeneration Directorate",Temporary Protection - Homeless Persons,H300
http://opendatacommunities.org/id/london-borough-council/sutton,London Borough of Sutton,02/10/2019,1285542,495.00 ,Dale and Collins Estate Agents Ltd,32169,Peoples Services Directorate,Approved Lodgings,H323
http://opendatacommunities.org/id/london-borough-council/sutton,London Borough of Sutton,30/01/2020,1287142,495.00 ,Dale and Collins Estate Agents Ltd,32169,Peoples Services Directorate,Approved Lodgings,H323
http://opendatacommunities.org/id/london-borough-council/sutton,London Borough of Sutton,06/01/2020,6964063,"3,100.00 ",Daley Bread Ltd T/A Daley Care,28917,Peoples Services Directorate,Approved Lodgings,H323
http://opendatacommunities.org/id/london-borough-council/sutton,London Borough of Sutton,09/12/2019,1285788,792.00 ,REDACTED - PERSONAL DATA,35068,Peoples Services Directorate,Special Educational Needs,G331
http://opendatacommunities.org/id/london-borough-council/sutton,London Borough of Sutton,23/12/2019,6964088,"1,121.26 ",Darbia Design Ltd,99815,"Environment, Housing & Regeneration Directorate",Grants -Made,Y610
http://opendatacommunities.org/id/london-borough-council/sutton,London Borough of Sutton,01/01/2020,6963762,"2,432.59 ",David Rea T/A Angel Lettings,18658,"Environment, Housing & Regeneration Directorate",Temporary Protection - Homeless Persons,H300
http://opendatacommunities.org/id/london-borough-council/sutton,London Borough of Sutton,16/01/2019,6964727,"1,209.00 ",David V.  Randall,29122,"Environment, Housing & Regeneration Directorate",Temporary Protection - Homeless Persons,H300
http://opendatacommunities.org/id/london-borough-council/sutton,London Borough of Sutton,17/11/2019,40374400,424.00 ,Day and Nite Services,26773,Peoples Services Directorate,Home Care,G334
http://opendatacommunities.org/id/london-borough-council/sutton,London Borough of Sutton,29/12/2019,40374401,536.00 ,Day and Nite Services,26773,Peoples Services Directorate,Home Care,G334
http://opendatacommunities.org/id/london-borough-council/sutton,London Borough of Sutton,17/11/2019,40374402,672.00 ,Day and Nite Services,26773,Peoples Services Directorate,Home Care,G334
http://opendatacommunities.org/id/london-borough-council/sutton,London Borough of Sutton,29/12/2019,40374423,504.00 ,Day and Nite Services,26773,Peoples Services Directorate,Home Care,G334
http://opendatacommunities.org/id/london-borough-council/sutton,London Borough of Sutton,17/11/2019,40374442,560.00 ,Day and Nite Services,26773,Peoples Services Directorate,Home Care,G334
http://opendatacommunities.org/id/london-borough-council/sutton,London Borough of Sutton,29/12/2019,40374443,720.00 ,Day and Nite Services,26773,Peoples Services Directorate,Home Care,G334
http://opendatacommunities.org/id/london-borough-council/sutton,London Borough of Sutton,29/12/2019,40374448,556.00 ,Day and Nite Services,26773,Peoples Services Directorate,Home Care,G334
http://opendatacommunities.org/id/london-borough-council/sutton,London Borough of Sutton,22/12/2019,40374877,424.00 ,Day and Nite Services,26773,Peoples Services Directorate,Home Care,G334
http://opendatacommunities.org/id/london-borough-council/sutton,London Borough of Sutton,22/12/2019,40374883,608.00 ,Day and Nite Services,26773,Peoples Services Directorate,Home Care,G334
http://opendatacommunities.org/id/london-borough-council/sutton,London Borough of Sutton,22/12/2019,40374953,560.00 ,Day and Nite Services,26773,Peoples Services Directorate,Home Care,G334
http://opendatacommunities.org/id/london-borough-council/sutton,London Borough of Sutton,23/01/2020,1286564,"1,258.71 ",DeMontfort University,34889,Peoples Services Directorate,Approved Lodgings,H323
http://opendatacommunities.org/id/london-borough-council/sutton,London Borough of Sutton,05/12/2019,6963436,"1,920.00 ",Denhan Property Services,28353,"Environment, Housing & Regeneration Directorate",Bed and Breakfast Accommodation,G400
http://opendatacommunities.org/id/london-borough-council/sutton,London Borough of Sutton,09/01/2020,6964601,"1,302.00 ",Denhan Property Services,28353,"Environment, Housing & Regeneration Directorate",Bed and Breakfast Accommodation,G400
http://opendatacommunities.org/id/london-borough-council/sutton,London Borough of Sutton,09/01/2020,6964602,627.00 ,Denhan Property Services,28353,"Environment, Housing & Regeneration Directorate",Bed and Breakfast Accommodation,G400
http://opendatacommunities.org/id/london-borough-council/sutton,London Borough of Sutton,09/01/2020,6964603,992.00 ,Denhan Property Services,28353,"Environment, Housing & Regeneration Directorate",Bed and Breakfast Accommodation,G400
http://opendatacommunities.org/id/london-borough-council/sutton,London Borough of Sutton,09/01/2020,6964604,"1,236.90 ",Denhan Property Services,28353,"Environment, Housing & Regeneration Directorate",Bed and Breakfast Accommodation,G400
http://opendatacommunities.org/id/london-borough-council/sutton,London Borough of Sutton,09/01/2020,6964605,"1,619.75 ",Denhan Property Services,28353,"Environment, Housing & Regeneration Directorate",Bed and Breakfast Accommodation,G400
http://opendatacommunities.org/id/london-borough-council/sutton,London Borough of Sutton,09/01/2020,6964606,"1,984.00 ",Denhan Property Services,28353,"Environment, Housing & Regeneration Directorate",Bed and Breakfast Accommodation,G400
http://opendatacommunities.org/id/london-borough-council/sutton,London Borough of Sutton,09/01/2020,6964607,"1,116.00 ",Denhan Property Services,28353,"Environment, Housing & Regeneration Directorate",Bed and Breakfast Accommodation,G400
http://opendatacommunities.org/id/london-borough-council/sutton,London Borough of Sutton,08/09/2019,1285813,"2,125.00 ",Devonshire Primary School,11321,Peoples Services Directorate,Top-up Funding,G064
http://opendatacommunities.org/id/london-borough-council/sutton,London Borough of Sutton,01/01/2020,1286032,"2,125.00 ",Devonshire Primary School,11321,Peoples Services Directorate,Top-up Funding,G064
http://opendatacommunities.org/id/london-borough-council/sutton,London Borough of Sutton,22/12/2019,6965146,"1,300.00 ",D'Gama Ltd,26438,"Environment, Housing & Regeneration Directorate",Temporary Protection - Homeless Persons,H300
http://opendatacommunities.org/id/london-borough-council/sutton,London Borough of Sutton,08/01/2020,40377746,"2,116.80 ",Direct Care And Support Services,23268,Peoples Services Directorate,Supported Living - Ext Provider,G306
http://opendatacommunities.org/id/london-borough-council/sutton,London Borough of Sutton,28/11/2019,40377759,"3,132.80 ",Direct Care And Support Services,23268,Peoples Services Directorate,Supported Living - Ext Provider,G306
http://opendatacommunities.org/id/london-borough-council/sutton,London Borough of Sutton,15/01/2020,40377760,"3,132.80 ",Direct Care And Support Services,23268,Peoples Services Directorate,Supported Living - Ext Provider,G306
http://opendatacommunities.org/id/london-borough-council/sutton,London Borough of Sutton,08/01/2020,40377761,"2,128.28 ",Direct Care And Support Services,23268,Peoples Services Directorate,Supported Living - Ext Provider,G306
http://opendatacommunities.org/id/london-borough-council/sutton,London Borough of Sutton,08/01/2020,40377767,"2,116.80 ",Direct Care And Support Services,23268,Peoples Services Directorate,Supported Living - Ext Provider,G306
http://opendatacommunities.org/id/london-borough-council/sutton,London Borough of Sutton,08/01/2020,40377768,"2,116.80 ",Direct Care And Support Services,23268,Peoples Services Directorate,Supported Living - Ext Provider,G306
http://opendatacommunities.org/id/london-borough-council/sutton,London Borough of Sutton,08/01/2020,40377800,"3,496.00 ",Direct Care And Support Services,23268,Peoples Services Directorate,Supported Living - Ext Provider,G306
http://opendatacommunities.org/id/london-borough-council/sutton,London Borough of Sutton,15/01/2020,40377812,"3,496.00 ",Direct Care And Support Services,23268,Peoples Services Directorate,Supported Living - Ext Provider,G306
http://opendatacommunities.org/id/london-borough-council/sutton,London Borough of Sutton,08/01/2020,40377813,"2,256.24 ",Direct Care And Support Services,23268,Peoples Services Directorate,Supported Living - Ext Provider,G306
http://opendatacommunities.org/id/london-borough-council/sutton,London Borough of Sutton,08/01/2020,40377814,"3,210.16 ",Direct Care And Support Services,23268,Peoples Services Directorate,Home Care,G334
http://opendatacommunities.org/id/london-borough-council/sutton,London Borough of Sutton,08/01/2020,40377815,"3,210.16 ",Direct Care And Support Services,23268,Peoples Services Directorate,Home Care,G334
http://opendatacommunities.org/id/london-borough-council/sutton,London Borough of Sutton,08/01/2020,40377816,"3,210.16 ",Direct Care And Support Services,23268,Peoples Services Directorate,Home Care,G334
http://opendatacommunities.org/id/london-borough-council/sutton,London Borough of Sutton,08/01/2020,40377839,"2,450.00 ",Direct Care And Support Services,23268,Peoples Services Directorate,Supported Living - Ext Provider,G306
http://opendatacommunities.org/id/london-borough-council/sutton,London Borough of Sutton,08/01/2020,40377848,"2,204.16 ",Direct Care And Support Services,23268,Peoples Services Directorate,Supported Living - Ext Provider,G306
http://opendatacommunities.org/id/london-borough-council/sutton,London Borough of Sutton,08/01/2020,40377851,"4,062.24 ",Direct Care And Support Services,23268,Peoples Services Directorate,Supported Living - Ext Provider,G306
http://opendatacommunities.org/id/london-borough-council/sutton,London Borough of Sutton,01/12/2019,40377873,"12,790.08 ",Direct Care And Support Services,23268,Peoples Services Directorate,Supported Living - Ext Provider,G306
http://opendatacommunities.org/id/london-borough-council/sutton,London Borough of Sutton,08/01/2020,40378661,"7,669.20 ",Direct Care And Support Services,23268,Peoples Services Directorate,Supported Living - Ext Provider,G306
http://opendatacommunities.org/id/london-borough-council/sutton,London Borough of Sutton,28/11/2019,40378716,"7,669.20 ",Direct Care And Support Services,23268,Peoples Services Directorate,Supported Living - Ext Provider,G306
http://opendatacommunities.org/id/london-borough-council/sutton,London Borough of Sutton,05/10/2019,40378726,"7,669.20 ",Direct Care And Support Services,23268,Peoples Services Directorate,Supported Living - Ext Provider,G306
http://opendatacommunities.org/id/london-borough-council/sutton,London Borough of Sutton,28/10/2019,40381415,"1,299.48 ",Direct Care And Support Services,23268,Peoples Services Directorate,Supported Living - Ext Provider,G306
http://opendatacommunities.org/id/london-borough-council/sutton,London Borough of Sutton,08/01/2020,40381416,"1,299.48 ",Direct Care And Support Services,23268,Peoples Services Directorate,Supported Living - Ext Provider,G306
http://opendatacommunities.org/id/london-borough-council/sutton,London Borough of Sutton,28/10/2019,40381538,"2,204.16 ",Direct Care And Support Services,23268,Peoples Services Directorate,Supported Living - Ext Provider,G306
http://opendatacommunities.org/id/london-borough-council/sutton,London Borough of Sutton,08/01/2020,40381562,"2,232.44 ",Direct Care And Support Services,23268,Peoples Services Directorate,Supported Living - Ext Provider,G306
http://opendatacommunities.org/id/london-borough-council/sutton,London Borough of Sutton,28/10/2019,40381593,"2,204.16 ",Direct Care And Support Services,23268,Peoples Services Directorate,Supported Living - Ext Provider,G306
http://opendatacommunities.org/id/london-borough-council/sutton,London Borough of Sutton,08/01/2020,40381787,"1,570.80 ",Direct Care And Support Services,23268,Peoples Services Directorate,Supported Living - Ext Provider,G306
http://opendatacommunities.org/id/london-borough-council/sutton,London Borough of Sutton,08/09/2019,1285814,"22,962.50 ",Dorchester Primary School,11376,Peoples Services Directorate,Top-up Funding,G064
http://opendatacommunities.org/id/london-borough-council/sutton,London Borough of Sutton,01/01/2020,1286033,"22,962.50 ",Dorchester Primary School,11376,Peoples Services Directorate,Top-up Funding,G064
http://opendatacommunities.org/id/london-borough-council/sutton,London Borough of Sutton,12/01/2020,6964402,"1,000.00 ",Dr Bilikisu A Alatishe,27008,"Environment, Housing & Regeneration Directorate",Temporary Protection - Homeless Persons,H300
http://opendatacommunities.org/id/london-borough-council/sutton,London Borough of Sutton,01/01/2020,6963899,"1,711.04 ",Dr Gbenga Sunday Asigo,26990,Peoples Services Directorate,Fees - Other,F299
http://opendatacommunities.org/id/london-borough-council/sutton,London Borough of Sutton,19/01/2020,6964834,"1,994.00 ",Dr M O Oladinni,26649,Peoples Services Directorate,Fees - Other,F299
http://opendatacommunities.org/id/london-borough-council/sutton,London Borough of Sutton,22/01/2020,6965054,601.50 ,Dr Sarah Kildea,27148,Peoples Services Directorate,Social Care Therapeutic Interventions,F107
http://opendatacommunities.org/id/london-borough-council/sutton,London Borough of Sutton,06/01/2020,6964096,530.45 ,DSI Billing Services Ltd,17962,Resources Directorate,Postages - General,F350
http://opendatacommunities.org/id/london-borough-council/sutton,London Borough of Sutton,06/01/2020,6964096,530.45 ,DSI Billing Services Ltd,17962,Resources Directorate,Postages - General,F350
http://opendatacommunities.org/id/london-borough-council/sutton,London Borough of Sutton,17/01/2020,6964812,635.84 ,DSI Billing Services Ltd,17962,Resources Directorate,Postages - General,F350
http://opendatacommunities.org/id/london-borough-council/sutton,London Borough of Sutton,17/01/2020,6964812,635.84 ,DSI Billing Services Ltd,17962,Resources Directorate,Postages - General,F350
http://opendatacommunities.org/id/london-borough-council/sutton,London Borough of Sutton,27/01/2020,6965173,660.57 ,DSI Billing Services Ltd,17962,Resources Directorate,Postages - General,F350
http://opendatacommunities.org/id/london-borough-council/sutton,London Borough of Sutton,27/01/2020,6965173,660.57 ,DSI Billing Services Ltd,17962,Resources Directorate,Postages - General,F350
http://opendatacommunities.org/id/london-borough-council/sutton,London Borough of Sutton,01/12/2019,6963766,"3,635.57 ",Dunfield & Mead Ltd,28055,Peoples Services Directorate,Approved Lodgings,H323
http://opendatacommunities.org/id/london-borough-council/sutton,London Borough of Sutton,01/12/2019,6963767,"1,289.66 ",Dunfield & Mead Ltd,28055,Peoples Services Directorate,Approved Lodgings,H323
http://opendatacommunities.org/id/london-borough-council/sutton,London Borough of Sutton,01/12/2019,6963768,"1,555.31 ",Dunfield & Mead Ltd,28055,Peoples Services Directorate,Approved Lodgings,H323
http://opendatacommunities.org/id/london-borough-council/sutton,London Borough of Sutton,01/12/2019,6963770,979.59 ,Dunfield & Mead Ltd,28055,Peoples Services Directorate,Approved Lodgings,H323
http://opendatacommunities.org/id/london-borough-council/sutton,London Borough of Sutton,01/12/2019,6963771,"1,402.42 ",Dunfield & Mead Ltd,28055,Peoples Services Directorate,Approved Lodgings,H323
http://opendatacommunities.org/id/london-borough-council/sutton,London Borough of Sutton,01/01/2020,6965511,"1,660.71 ",Dunfield & Mead Ltd,28055,Peoples Services Directorate,Approved Lodgings,H323
http://opendatacommunities.org/id/london-borough-council/sutton,London Borough of Sutton,31/12/2019,40375533,"4,594.64 ",Dunfield & Mead Ltd,28055,Peoples Services Directorate,Approved Lodgings,H323
http://opendatacommunities.org/id/london-borough-council/sutton,London Borough of Sutton,31/12/2019,40375534,"1,014.28 ",Dunfield & Mead Ltd,28055,Peoples Services Directorate,Approved Lodgings,H323
http://opendatacommunities.org/id/london-borough-council/sutton,London Borough of Sutton,31/12/2019,40375535,"2,283.92 ",Dunfield & Mead Ltd,28055,Peoples Services Directorate,Accommodation - Supported Living,H201
http://opendatacommunities.org/id/london-borough-council/sutton,London Borough of Sutton,31/12/2019,40375542,"3,930.35 ",Dunfield & Mead Ltd,28055,Peoples Services Directorate,Accommodation - Supported Living,H201
http://opendatacommunities.org/id/london-borough-council/sutton,London Borough of Sutton,31/12/2019,40375543,"2,546.42 ",Dunfield & Mead Ltd,28055,Peoples Services Directorate,Approved Lodgings,H323
http://opendatacommunities.org/id/london-borough-council/sutton,London Borough of Sutton,31/12/2019,40375554,"3,930.35 ",Dunfield & Mead Ltd,28055,Peoples Services Directorate,Approved Lodgings,H323
http://opendatacommunities.org/id/london-borough-council/sutton,London Borough of Sutton,31/12/2019,40375563,"4,262.50 ",Dunfield & Mead Ltd,28055,Peoples Services Directorate,Accommodation - Supported Living,H201
http://opendatacommunities.org/id/london-borough-council/sutton,London Borough of Sutton,31/12/2019,40375564,"4,262.50 ",Dunfield & Mead Ltd,28055,Peoples Services Directorate,Accommodation - Supported Living,H201
http://opendatacommunities.org/id/london-borough-council/sutton,London Borough of Sutton,31/12/2019,40375589,"4,594.64 ",Dunfield & Mead Ltd,28055,Peoples Services Directorate,Approved Lodgings,H323
http://opendatacommunities.org/id/london-borough-council/sutton,London Borough of Sutton,15/01/2020,40378636,"3,976.00 ",Dunheved Lodge,11403,Peoples Services Directorate,One to One Care,G335
http://opendatacommunities.org/id/london-borough-council/sutton,London Borough of Sutton,24/01/2020,40380835,"2,999.92 ",Dunheved Lodge,11403,Peoples Services Directorate,Residential Care - Ext Provider,G310
http://opendatacommunities.org/id/london-borough-council/sutton,London Borough of Sutton,31/12/2019,6964617,"5,449.00 ",Dunheved Partnership Ltd,26353,"Environment, Housing & Regeneration Directorate",Bed and Breakfast Accommodation,G400
http://opendatacommunities.org/id/london-borough-council/sutton,London Borough of Sutton,07/01/2020,40375604,"31,806.00 ",Durham County Council,22986,Peoples Services Directorate,Secure Accommodation,G332
http://opendatacommunities.org/id/london-borough-council/sutton,London Borough of Sutton,20/01/2020,6964905,597.85 ,Dynamic Care Ltd,29928,Peoples Services Directorate,Approved Lodgings,H323
http://opendatacommunities.org/id/london-borough-council/sutton,London Borough of Sutton,20/01/2020,6964906,"1,151.42 ",Dynamic Care Ltd,29928,Peoples Services Directorate,Approved Lodgings,H323
http://opendatacommunities.org/id/london-borough-council/sutton,London Borough of Sutton,20/01/2020,6964907,"1,705.00 ",Dynamic Care Ltd,29928,Peoples Services Directorate,Approved Lodgings,H323
http://opendatacommunities.org/id/london-borough-council/sutton,London Borough of Sutton,20/01/2020,6964909,597.85 ,Dynamic Care Ltd,29928,Peoples Services Directorate,Approved Lodgings,H323
http://opendatacommunities.org/id/london-borough-council/sutton,London Borough of Sutton,20/01/2020,6964910,"4,373.20 ",Dynamic Care Ltd,29928,Peoples Services Directorate,Approved Lodgings,H323
http://opendatacommunities.org/id/london-borough-council/sutton,London Borough of Sutton,01/01/2020,40375544,"4,373.20 ",Dynamic Care Ltd,29928,Peoples Services Directorate,Approved Lodgings,H323
http://opendatacommunities.org/id/london-borough-council/sutton,London Borough of Sutton,01/01/2020,40375608,"5,444.61 ",Dynamic Care Ltd,29928,Peoples Services Directorate,Approved Lodgings,H323
http://opendatacommunities.org/id/london-borough-council/sutton,London Borough of Sutton,31/12/2019,6964632,"16,205.75 ",E Homes And Shelters,28378,"Environment, Housing & Regeneration Directorate",Bed and Breakfast Accommodation,G400
http://opendatacommunities.org/id/london-borough-council/sutton,London Borough of Sutton,03/01/2020,1285793,"23,960.67 ",Eagle House 6th Form (Strawberry Lodge),34847,Peoples Services Directorate,Independent Schools,G325
http://opendatacommunities.org/id/london-borough-council/sutton,London Borough of Sutton,03/01/2020,1285792,"27,488.33 ",Eagle House Junior School,15445,Peoples Services Directorate,Independent Schools,G325
http://opendatacommunities.org/id/london-borough-council/sutton,London Borough of Sutton,15/01/2020,6964593,"1,366.00 ",Earth Anchors Ltd,15290,"Environment, Housing & Regeneration Directorate",Furniture & Fittings,Y500
http://opendatacommunities.org/id/london-borough-council/sutton,London Borough of Sutton,15/01/2020,6964597,814.00 ,Earth Anchors Ltd,15290,"Environment, Housing & Regeneration Directorate",Furniture & Fittings,Y500
http://opendatacommunities.org/id/london-borough-council/sutton,London Borough of Sutton,24/01/2020,40380741,"3,300.00 ",Eastcroft Nursing Home,11420,Peoples Services Directorate,Nursing Care - Ext Provider,G311
http://opendatacommunities.org/id/london-borough-council/sutton,London Borough of Sutton,24/01/2020,40380897,"3,400.00 ",Eastcroft Nursing Home,11420,Peoples Services Directorate,Nursing Care - Ext Provider,G311
http://opendatacommunities.org/id/london-borough-council/sutton,London Borough of Sutton,02/01/2020,6964193,473.90 ,EDF Energy (Seeboard),13999,"Environment, Housing & Regeneration Directorate",Electricity - General,D620
http://opendatacommunities.org/id/london-borough-council/sutton,London Borough of Sutton,07/01/2020,6964360,"5,587.54 ",EDF Energy (Seeboard),13999,Resources Directorate,Electricity - General,D620
http://opendatacommunities.org/id/london-borough-council/sutton,London Borough of Sutton,06/01/2020,6964368,517.45 ,EDF Energy (Seeboard),13999,"Environment, Housing & Regeneration Directorate",Electricity - General,D620
http://opendatacommunities.org/id/london-borough-council/sutton,London Borough of Sutton,22/01/2020,6965340,925.59 ,EDF Energy (Seeboard),13999,HRA,Electricity - Anti Hypothermia Heating,D622
http://opendatacommunities.org/id/london-borough-council/sutton,London Borough of Sutton,02/01/2020,6963934,875.00 ,Edge Training and Consultancy Limited,22919,Chief Executive's Directorate,Training - Course Fees,A520
http://opendatacommunities.org/id/london-borough-council/sutton,London Borough of Sutton,24/12/2019,6964146,"1,054.12 ",EE,28356,Peoples Services Directorate,Telephones - Other Expenses,F373
http://opendatacommunities.org/id/london-borough-council/sutton,London Borough of Sutton,30/11/2019,6962822,"13,426.16 ",Eldercare,22163,HRA,Supporting People - Alarm Services,H237
http://opendatacommunities.org/id/london-borough-council/sutton,London Borough of Sutton,31/12/2019,6964183,"6,118.26 ",Eldercare,22163,Peoples Services Directorate,Equipment,H250
http://opendatacommunities.org/id/london-borough-council/sutton,London Borough of Sutton,31/12/2019,6964290,"5,723.22 ",Eldercare,22163,Peoples Services Directorate,Agency Services,G431
http://opendatacommunities.org/id/london-borough-council/sutton,London Borough of Sutton,31/12/2019,6964293,"14,217.51 ",Eldercare,22163,HRA,Supporting People - Alarm Services,H237
http://opendatacommunities.org/id/london-borough-council/sutton,London Borough of Sutton,31/12/2019,6964294,994.00 ,Eldercare,22163,Peoples Services Directorate,Agency Services,G431
http://opendatacommunities.org/id/london-borough-council/sutton,London Borough of Sutton,31/12/2019,6964300,"1,133.52 ",Eldercare,22163,Peoples Services Directorate,Agency Services,G431
http://opendatacommunities.org/id/london-borough-council/sutton,London Borough of Sutton,24/01/2020,40380785,"4,484.80 ",Eleanor Nursing & Social Care Ltd,25134,Peoples Services Directorate,Residential Care - Ext Provider,G310
http://opendatacommunities.org/id/london-borough-council/sutton,London Borough of Sutton,22/12/2019,40377567,672.00 ,Elite CarePlus Ltd,26199,Peoples Services Directorate,Home Care,G334
http://opendatacommunities.org/id/london-borough-council/sutton,London Borough of Sutton,29/12/2019,40377568,672.00 ,Elite CarePlus Ltd,26199,Peoples Services Directorate,Home Care,G334
http://opendatacommunities.org/id/london-borough-council/sutton,London Borough of Sutton,05/01/2020,40377569,672.00 ,Elite CarePlus Ltd,26199,Peoples Services Directorate,Home Care,G334
http://opendatacommunities.org/id/london-borough-council/sutton,London Borough of Sutton,22/12/2019,40377570,560.00 ,Elite CarePlus Ltd,26199,Peoples Services Directorate,Home Care,G334
http://opendatacommunities.org/id/london-borough-council/sutton,London Borough of Sutton,29/12/2019,40377571,560.00 ,Elite CarePlus Ltd,26199,Peoples Services Directorate,Home Care,G334
http://opendatacommunities.org/id/london-borough-council/sutton,London Borough of Sutton,05/01/2020,40377572,560.00 ,Elite CarePlus Ltd,26199,Peoples Services Directorate,Home Care,G334
http://opendatacommunities.org/id/london-borough-council/sutton,London Borough of Sutton,22/12/2019,40377573,560.00 ,Elite CarePlus Ltd,26199,Peoples Services Directorate,Home Care,G334
http://opendatacommunities.org/id/london-borough-council/sutton,London Borough of Sutton,29/12/2019,40377574,560.00 ,Elite CarePlus Ltd,26199,Peoples Services Directorate,Home Care,G334
http://opendatacommunities.org/id/london-borough-council/sutton,London Borough of Sutton,05/01/2020,40377575,560.00 ,Elite CarePlus Ltd,26199,Peoples Services Directorate,Home Care,G334
http://opendatacommunities.org/id/london-borough-council/sutton,London Borough of Sutton,22/12/2019,40377576,"1,350.00 ",Elite CarePlus Ltd,26199,Peoples Services Directorate,Home Care,G334
http://opendatacommunities.org/id/london-borough-council/sutton,London Borough of Sutton,29/12/2019,40377577,"1,350.00 ",Elite CarePlus Ltd,26199,Peoples Services Directorate,Home Care,G334
http://opendatacommunities.org/id/london-borough-council/sutton,London Borough of Sutton,05/01/2020,40377578,"1,350.00 ",Elite CarePlus Ltd,26199,Peoples Services Directorate,Home Care,G334
http://opendatacommunities.org/id/london-borough-council/sutton,London Borough of Sutton,22/12/2019,40377585,672.00 ,Elite CarePlus Ltd,26199,Peoples Services Directorate,Home Care,G334
http://opendatacommunities.org/id/london-borough-council/sutton,London Borough of Sutton,29/12/2019,40377586,672.00 ,Elite CarePlus Ltd,26199,Peoples Services Directorate,Home Care,G334
http://opendatacommunities.org/id/london-borough-council/sutton,London Borough of Sutton,05/01/2020,40377587,672.00 ,Elite CarePlus Ltd,26199,Peoples Services Directorate,Home Care,G334
http://opendatacommunities.org/id/london-borough-council/sutton,London Borough of Sutton,22/12/2019,40377591,784.00 ,Elite CarePlus Ltd,26199,Peoples Services Directorate,Home Care,G334
http://opendatacommunities.org/id/london-borough-council/sutton,London Borough of Sutton,29/12/2019,40377592,784.00 ,Elite CarePlus Ltd,26199,Peoples Services Directorate,Home Care,G334
http://opendatacommunities.org/id/london-borough-council/sutton,London Borough of Sutton,05/01/2020,40377593,784.00 ,Elite CarePlus Ltd,26199,Peoples Services Directorate,Home Care,G334
http://opendatacommunities.org/id/london-borough-council/sutton,London Borough of Sutton,22/12/2019,40377657,672.00 ,Elite CarePlus Ltd,26199,Peoples Services Directorate,Home Care,G334
http://opendatacommunities.org/id/london-borough-council/sutton,London Borough of Sutton,29/12/2019,40377658,672.00 ,Elite CarePlus Ltd,26199,Peoples Services Directorate,Home Care,G334
http://opendatacommunities.org/id/london-borough-council/sutton,London Borough of Sutton,05/01/2020,40377659,672.00 ,Elite CarePlus Ltd,26199,Peoples Services Directorate,Home Care,G334
http://opendatacommunities.org/id/london-borough-council/sutton,London Borough of Sutton,05/01/2020,40377710,436.00 ,Elite CarePlus Ltd,26199,Peoples Services Directorate,Home Care,G334
http://opendatacommunities.org/id/london-borough-council/sutton,London Borough of Sutton,05/01/2020,40377740,728.00 ,Elite CarePlus Ltd,26199,Peoples Services Directorate,Home Care,G334
http://opendatacommunities.org/id/london-borough-council/sutton,London Borough of Sutton,24/01/2020,40380728,"3,893.92 ",Elysium Supported Living Limited,34957,Peoples Services Directorate,Residential Care - Ext Provider,G310
http://opendatacommunities.org/id/london-borough-council/sutton,London Borough of Sutton,24/01/2020,40380922,"2,903.42 ",Elysium Supported Living Limited,34957,Peoples Services Directorate,Residential Care - Ext Provider,G310
http://opendatacommunities.org/id/london-borough-council/sutton,London Borough of Sutton,06/01/2020,6964001,554.00 ,Emma L Thompson,99853,"Environment, Housing & Regeneration Directorate",Other Services,F340
http://opendatacommunities.org/id/london-borough-council/sutton,London Borough of Sutton,03/01/2020,6963924,"20,141.00 ",Encompass,29087,Peoples Services Directorate,General Office Expenses,F235
http://opendatacommunities.org/id/london-borough-council/sutton,London Borough of Sutton,15/01/2020,6964640,"290,757.75 ",Encompass,29087,"Environment, Housing & Regeneration Directorate",Other Services,F340
http://opendatacommunities.org/id/london-borough-council/sutton,London Borough of Sutton,28/11/2019,6964782,"24,460.36 ",ENGIE Regeneration Ltd,97680,"Environment, Housing & Regeneration Directorate",Building Works -Main Contractor,Y350
http://opendatacommunities.org/id/london-borough-council/sutton,London Borough of Sutton,24/01/2020,40380919,"2,600.00 ",Eothen Homes Ltd,11539,Peoples Services Directorate,Residential Care - Ext Provider,G310
http://opendatacommunities.org/id/london-borough-council/sutton,London Borough of Sutton,24/01/2020,40380947,"2,400.00 ",Eothen Homes Ltd,11539,Peoples Services Directorate,Residential Care - Ext Provider,G310
http://opendatacommunities.org/id/london-borough-council/sutton,London Borough of Sutton,24/01/2020,40380971,"1,724.16 ",Eothen Homes Ltd,11539,Peoples Services Directorate,Residential Care - Ext Provider,G310
http://opendatacommunities.org/id/london-borough-council/sutton,London Borough of Sutton,04/12/2019,6962749,"92,158.37 ",Epsom & St Helier Nhs Trust,11542,Chief Executive's Directorate,Provider Contract Payments,F470
http://opendatacommunities.org/id/london-borough-council/sutton,London Borough of Sutton,07/01/2020,6964373,"7,841.63 ",Epsom & St Helier Nhs Trust,11542,Chief Executive's Directorate,Provider Contract Payments,F470
http://opendatacommunities.org/id/london-borough-council/sutton,London Borough of Sutton,07/01/2020,6964374,"92,158.37 ",Epsom & St Helier Nhs Trust,11542,Chief Executive's Directorate,Provider Contract Payments,F470
http://opendatacommunities.org/id/london-borough-council/sutton,London Borough of Sutton,07/11/2019,6964662,"(11,669.69)",Epsom & St Helier Nhs Trust,11542,Chief Executive's Directorate,Provider Contract Payments,F470
http://opendatacommunities.org/id/london-borough-council/sutton,London Borough of Sutton,16/01/2020,6964815,"27,322.98 ",Epsom & St Helier Nhs Trust,11542,"Environment, Housing & Regeneration Directorate",Agency Services,G431
http://opendatacommunities.org/id/london-borough-council/sutton,London Borough of Sutton,27/01/2020,6965183,"1,595.00 ",EQUITI PROPERTY,99898,"Environment, Housing & Regeneration Directorate",Depositors,X460
http://opendatacommunities.org/id/london-borough-council/sutton,London Borough of Sutton,27/01/2020,6965183,"1,840.38 ",EQUITI PROPERTY,99898,"Environment, Housing & Regeneration Directorate",Depositors,X460
http://opendatacommunities.org/id/london-borough-council/sutton,London Borough of Sutton,05/12/2019,40375659,"4,086.77 ",Ethelbert Specialist Homes Ltd,11560,Peoples Services Directorate,Foster Parents,G326
http://opendatacommunities.org/id/london-borough-council/sutton,London Borough of Sutton,30/11/2019,6962545,990.00 ,Euro Hotels (Croydon Court) Ltd,21414,Peoples Services Directorate,Accommodation - Bed and Breakfast,H202
http://opendatacommunities.org/id/london-borough-council/sutton,London Borough of Sutton,31/10/2019,6963010,792.00 ,Euro Hotels (Croydon Court) Ltd,21414,Peoples Services Directorate,Accommodation - Bed and Breakfast,H202
http://opendatacommunities.org/id/london-borough-council/sutton,London Borough of Sutton,30/11/2019,6963959,"1,050.00 ",Euro Hotels (Croydon Court) Ltd,21414,Peoples Services Directorate,Client Care/Assistance,H301
http://opendatacommunities.org/id/london-borough-council/sutton,London Borough of Sutton,31/12/2019,6964618,"6,811.00 ",Euro Hotels (Croydon Court) Ltd,21414,"Environment, Housing & Regeneration Directorate",Bed and Breakfast Accommodation,G400
http://opendatacommunities.org/id/london-borough-council/sutton,London Borough of Sutton,31/12/2019,6964162,"13,858.00 ",Euro Hotels (Gilroy Court) Ltd,25822,"Environment, Housing & Regeneration Directorate",Bed and Breakfast Accommodation,G400
http://opendatacommunities.org/id/london-borough-council/sutton,London Borough of Sutton,31/10/2019,6965010,"1,085.00 ",Euro Hotels (Thornton Heath) Ltd,10030,Peoples Services Directorate,Client Care/Assistance,H301
http://opendatacommunities.org/id/london-borough-council/sutton,London Borough of Sutton,21/11/2019,6964755,"8,320.00 ",EVOLVE LTD,99815,"Environment, Housing & Regeneration Directorate",Grants -Made,Y610
http://opendatacommunities.org/id/london-borough-council/sutton,London Borough of Sutton,22/12/2019,40375172,705.25 ,Exodus Health Care Services Ltd,33380,Peoples Services Directorate,Home Care,G334
http://opendatacommunities.org/id/london-borough-council/sutton,London Borough of Sutton,22/12/2019,40375177,542.50 ,Exodus Health Care Services Ltd,33380,Peoples Services Directorate,Home Care,G334
http://opendatacommunities.org/id/london-borough-council/sutton,London Borough of Sutton,22/12/2019,40375185,488.15 ,Exodus Health Care Services Ltd,33380,Peoples Services Directorate,Home Care,G334
http://opendatacommunities.org/id/london-borough-council/sutton,London Borough of Sutton,22/12/2019,40375187,542.50 ,Exodus Health Care Services Ltd,33380,Peoples Services Directorate,Home Care,G334
http://opendatacommunities.org/id/london-borough-council/sutton,London Borough of Sutton,22/12/2019,40375189,488.25 ,Exodus Health Care Services Ltd,33380,Peoples Services Directorate,Home Care,G334
http://opendatacommunities.org/id/london-borough-council/sutton,London Borough of Sutton,22/12/2019,40375198,542.50 ,Exodus Health Care Services Ltd,33380,Peoples Services Directorate,Home Care,G334
http://opendatacommunities.org/id/london-borough-council/sutton,London Borough of Sutton,22/12/2019,40375199,542.50 ,Exodus Health Care Services Ltd,33380,Peoples Services Directorate,Home Care,G334
http://opendatacommunities.org/id/london-borough-council/sutton,London Borough of Sutton,22/12/2019,40375200,488.25 ,Exodus Health Care Services Ltd,33380,Peoples Services Directorate,Home Care,G334
http://opendatacommunities.org/id/london-borough-council/sutton,London Borough of Sutton,22/12/2019,40375201,488.25 ,Exodus Health Care Services Ltd,33380,Peoples Services Directorate,Home Care,G334
http://opendatacommunities.org/id/london-borough-council/sutton,London Borough of Sutton,22/12/2019,40375203,488.25 ,Exodus Health Care Services Ltd,33380,Peoples Services Directorate,Home Care,G334
http://opendatacommunities.org/id/london-borough-council/sutton,London Borough of Sutton,22/12/2019,40375204,488.25 ,Exodus Health Care Services Ltd,33380,Peoples Services Directorate,Home Care,G334
http://opendatacommunities.org/id/london-borough-council/sutton,London Borough of Sutton,22/12/2019,40375216,488.25 ,Exodus Health Care Services Ltd,33380,Peoples Services Directorate,Home Care,G334
http://opendatacommunities.org/id/london-borough-council/sutton,London Borough of Sutton,29/12/2019,40381539,542.50 ,Exodus Health Care Services Ltd,33380,Peoples Services Directorate,Home Care,G334
http://opendatacommunities.org/id/london-borough-council/sutton,London Borough of Sutton,29/12/2019,40381540,488.25 ,Exodus Health Care Services Ltd,33380,Peoples Services Directorate,Home Care,G334
http://opendatacommunities.org/id/london-borough-council/sutton,London Borough of Sutton,29/12/2019,40381541,488.25 ,Exodus Health Care Services Ltd,33380,Peoples Services Directorate,Home Care,G334
http://opendatacommunities.org/id/london-borough-council/sutton,London Borough of Sutton,29/12/2019,40381543,488.25 ,Exodus Health Care Services Ltd,33380,Peoples Services Directorate,Home Care,G334
http://opendatacommunities.org/id/london-borough-council/sutton,London Borough of Sutton,29/12/2019,40381544,488.25 ,Exodus Health Care Services Ltd,33380,Peoples Services Directorate,Home Care,G334
http://opendatacommunities.org/id/london-borough-council/sutton,London Borough of Sutton,29/12/2019,40381555,488.25 ,Exodus Health Care Services Ltd,33380,Peoples Services Directorate,Home Care,G334
http://opendatacommunities.org/id/london-borough-council/sutton,London Borough of Sutton,29/12/2019,40381566,705.25 ,Exodus Health Care Services Ltd,33380,Peoples Services Directorate,Home Care,G334
http://opendatacommunities.org/id/london-borough-council/sutton,London Borough of Sutton,29/12/2019,40381570,542.50 ,Exodus Health Care Services Ltd,33380,Peoples Services Directorate,Home Care,G334
http://opendatacommunities.org/id/london-borough-council/sutton,London Borough of Sutton,29/12/2019,40381578,488.15 ,Exodus Health Care Services Ltd,33380,Peoples Services Directorate,Home Care,G334
http://opendatacommunities.org/id/london-borough-council/sutton,London Borough of Sutton,29/12/2019,40381580,542.50 ,Exodus Health Care Services Ltd,33380,Peoples Services Directorate,Home Care,G334
http://opendatacommunities.org/id/london-borough-council/sutton,London Borough of Sutton,29/12/2019,40381582,488.25 ,Exodus Health Care Services Ltd,33380,Peoples Services Directorate,Home Care,G334
http://opendatacommunities.org/id/london-borough-council/sutton,London Borough of Sutton,29/12/2019,40381591,542.50 ,Exodus Health Care Services Ltd,33380,Peoples Services Directorate,Home Care,G334
http://opendatacommunities.org/id/london-borough-council/sutton,London Borough of Sutton,19/09/2019,6965128,"5,326.00 ",Expert In Mind,22228,Peoples Services Directorate,Children Assessments,G329
http://opendatacommunities.org/id/london-borough-council/sutton,London Borough of Sutton,09/01/2020,6964270,"81,416.35 ",F M Conway Limited,97060,"Environment, Housing & Regeneration Directorate",Roads & Sewers Etc-Main Contract,Y300
http://opendatacommunities.org/id/london-borough-council/sutton,London Borough of Sutton,28/01/2020,6965261,"36,400.95 ",F M Conway Limited,97060,"Environment, Housing & Regeneration Directorate",Roads & Sewers Etc-Main Contract,Y300
http://opendatacommunities.org/id/london-borough-council/sutton,London Borough of Sutton,22/01/2020,1286407,"1,200.00 ",Fairlands Pre-School,11598,Peoples Services Directorate,Non-Maintained Childrens' Nurseries - 3 & 4 yr olds,G405
http://opendatacommunities.org/id/london-borough-council/sutton,London Borough of Sutton,22/11/2019,6964911,"7,876.00 ",Falcon Builders,99815,"Environment, Housing & Regeneration Directorate",Grants -Made,Y610
http://opendatacommunities.org/id/london-borough-council/sutton,London Borough of Sutton,21/11/2019,6965167,"4,150.00 ",FALCON BUILDERS,99815,"Environment, Housing & Regeneration Directorate",Grants -Made,Y610
http://opendatacommunities.org/id/london-borough-council/sutton,London Borough of Sutton,30/11/2019,6962648,647.50 ,Family Action Enterprises Ltd,29710,Chief Executive's Directorate,Training - Course Fees,A520
http://opendatacommunities.org/id/london-borough-council/sutton,London Borough of Sutton,30/11/2019,6962648,647.50 ,Family Action Enterprises Ltd,29710,Chief Executive's Directorate,Training - Course Fees,A520
http://opendatacommunities.org/id/london-borough-council/sutton,London Borough of Sutton,30/06/2019,6964167,500.00 ,Family Action Enterprises Ltd,29710,Chief Executive's Directorate,Training - Course Fees,A520
http://opendatacommunities.org/id/london-borough-council/sutton,London Borough of Sutton,02/01/2020,40375555,"5,757.14 ",Family First Fostering,27926,Peoples Services Directorate,Foster Parents,G326
http://opendatacommunities.org/id/london-borough-council/sutton,London Borough of Sutton,31/12/2019,40375596,"4,030.00 ",Family Fostering,34259,Peoples Services Directorate,Foster Parents,G326
http://opendatacommunities.org/id/london-borough-council/sutton,London Borough of Sutton,31/12/2019,40375597,"6,288.66 ",Family Fostering,34259,Peoples Services Directorate,Foster Parents,G326
http://opendatacommunities.org/id/london-borough-council/sutton,London Borough of Sutton,24/01/2020,40380719,"3,462.24 ",Family Star Ltd,19653,Peoples Services Directorate,Nursing Care - Ext Provider,G311
http://opendatacommunities.org/id/london-borough-council/sutton,London Borough of Sutton,24/01/2020,40380730,625.40 ,Family Star Ltd,19653,Peoples Services Directorate,Nursing Care - Ext Provider,G311
